Department,Entity, Transaction Date, Expense Type, Expense Area, Supplier Name,Transaction number, Amount, Invoice Description
DFID,DFID,02/10/2016,Air fares ,East and Central Africa ,Corporate Travel Provider ,100016-107 ,604.70,
DFID,DFID,02/10/2016,Air fares ,East and Central Africa ,Corporate Travel Provider ,100016-107 ,"2,646.32",
DFID,DFID,02/10/2016,Air fares ,East and Central Africa ,Corporate Travel Provider ,100016-107 ,"1,618.45",
DFID,DFID,02/10/2016,Air fares ,East and Central Africa ,Corporate Travel Provider ,100016-107 ,"2,540.12",
DFID,DFID,02/10/2016,Air fares ,Asia  Caribbean and Overseas Territories ,Corporate Travel Provider ,100025-101 ,752.11,
DFID,DFID,12/10/2016,Air fares ,Asia  Caribbean and Overseas Territories ,Foreign & Commonwealth Office ,100025-101 ,647.00,
DFID,DFID,12/10/2016,Consultancy Services ,Asia  Caribbean and Overseas Territories ,Foreign & Commonwealth Office ,100025-101 ,"4,125.00",
DFID,DFID,02/10/2016,Hotels - Accommodation only ,Research and Evidence Division ,Corporate Travel Provider ,100039-110 ,"1,866.95",
DFID,DFID,02/10/2016,Air fares ,Research and Evidence Division ,Corporate Travel Provider ,100039-110 ,508.05,
DFID,DFID,02/10/2016,Air fares ,Research and Evidence Division ,Corporate Travel Provider ,100039-111 ,"1,317.35",
DFID,DFID,02/10/2016,Air fares ,Research and Evidence Division ,Corporate Travel Provider ,100039-111 ,760.25,
DFID,DFID,02/10/2016,Air fares ,Policy Division ,Corporate Travel Provider ,100045-101 ,700.33,
DFID,DFID,02/10/2016,Hotels - Accommodation only ,Conflict  Humanitarian  Security & Stabilisation Division ,Corporate Travel Provider ,100049-102 ,755.56,
DFID,DFID,02/10/2016,Air fares ,Conflict  Humanitarian  Security & Stabilisation Division ,Corporate Travel Provider ,100049-102 ,961.15,
DFID,DFID,02/10/2016,Air fares ,Conflict  Humanitarian  Security & Stabilisation Division ,Corporate Travel Provider ,100049-133 ,514.65,
DFID,DFID,02/10/2016,Air fares ,Conflict  Humanitarian  Security & Stabilisation Division ,Corporate Travel Provider ,100049-134 ,518.05,
DFID,DFID,02/10/2016,Air fares ,Conflict  Humanitarian  Security & Stabilisation Division ,Corporate Travel Provider ,100049-134 ,606.50,
DFID,DFID,24/10/2016,Air fares ,East and Central Africa ,Foreign & Commonwealth Office ,100082-101 ,903.20,
DFID,DFID,02/10/2016,Hotels - Accommodation only ,Asia  Caribbean and Overseas Territories ,Corporate Travel Provider ,100084-101 ,"1,288.56",
DFID,DFID,02/10/2016,Air fares ,Asia  Caribbean and Overseas Territories ,Corporate Travel Provider ,100084-101 ,961.75,
DFID,DFID,02/10/2016,Air fares ,Global Funds ,Corporate Travel Provider ,100098-101 ,678.55,
DFID,DFID,02/10/2016,Air fares ,Global Funds ,Corporate Travel Provider ,100098-101 ,653.15,
DFID,DFID,02/10/2016,Air fares ,Global Funds ,Corporate Travel Provider ,100098-101 ,678.15,
DFID,DFID,02/10/2016,Air fares ,Global Funds ,Corporate Travel Provider ,100098-101 ,629.95,
DFID,DFID,02/10/2016,Hotels - Accommodation only ,Internal Audit ,Corporate Travel Provider ,100121-101 ,503.40,
DFID,DFID,02/10/2016,Hotels - Accommodation only ,Internal Audit ,Corporate Travel Provider ,100121-101 ,503.40,
DFID,DFID,02/10/2016,Air fares ,Economic Development Division ,Corporate Travel Provider ,100111-101 ,845.55,
DFID,DFID,02/10/2016,Air fares ,Middle East and North Africa Division ,Corporate Travel Provider ,100146-101 ,665.40,
DFID,DFID,02/10/2016,Air fares ,Middle East and North Africa Division ,Corporate Travel Provider ,100146-101 ,595.55,
DFID,DFID,02/10/2016,Air fares ,West and Southern Africa ,Supplier Name withheld ,100152-114 ,702.05,
DFID,DFID,02/10/2016,Air fares ,Policy Division ,Corporate Travel Provider ,100191-101 ,741.15,
DFID,DFID,02/10/2016,Air fares ,Policy Division ,Corporate Travel Provider ,100191-101 ,741.15,
DFID,DFID,02/10/2016,Air fares ,Communications Division ,Corporate Travel Provider ,100197-101 ,"1,129.20",
DFID,DFID,02/10/2016,Air fares ,Communications Division ,Corporate Travel Provider ,100197-101 ,"1,229.15",
DFID,DFID,02/10/2016,Air fares ,Communications Division ,Corporate Travel Provider ,100197-101 ,"1,725.25",
DFID,DFID,02/10/2016,Air fares ,Top Management Group ,Corporate Travel Provider ,100232-102 ,"2,276.15",
DFID,DFID,02/10/2016,Air fares ,Top Management Group ,Corporate Travel Provider ,100232-102 ,"7,721.15",
DFID,DFID,02/10/2016,Air fares ,Top Management Group ,Corporate Travel Provider ,100232-102 ,"4,946.15",
DFID,DFID,02/10/2016,Air fares ,Top Management Group ,Corporate Travel Provider ,100232-102 ,"4,946.15",
DFID,DFID,02/10/2016,Air fares ,Top Management Group ,Corporate Travel Provider ,100232-102 ,523.20,
DFID,DFID,02/10/2016,Air fares ,Top Management Group ,Corporate Travel Provider ,100232-102 ,523.20,
DFID,DFID,02/10/2016,Air fares ,Top Management Group ,Corporate Travel Provider ,100232-102 ,523.20,
DFID,DFID,02/10/2016,Air fares ,Top Management Group ,Corporate Travel Provider ,100232-102 ,"5,985.60",
DFID,DFID,02/10/2016,Air fares ,Top Management Group ,Corporate Travel Provider ,100232-102 ,"5,985.60",
DFID,DFID,02/10/2016,Air fares ,Top Management Group ,Corporate Travel Provider ,100232-102 ,"4,999.45",
DFID,DFID,02/10/2016,Air fares ,Top Management Group ,Corporate Travel Provider ,100232-103 ,"2,276.45",
DFID,DFID,02/10/2016,Air fares ,Top Management Group ,Corporate Travel Provider ,100232-103 ,"2,267.00",
DFID,DFID,02/10/2016,Air fares ,Top Management Group ,Corporate Travel Provider ,100232-103 ,902.10,
DFID,DFID,02/10/2016,Air fares ,Top Management Group ,Corporate Travel Provider ,100232-103 ,"1,229.15",
DFID,DFID,02/10/2016,Air fares ,Top Management Group ,Corporate Travel Provider ,100232-103 ,"1,229.15",
DFID,DFID,02/10/2016,Air fares ,Top Management Group ,Corporate Travel Provider ,100232-103 ,"2,282.30",
DFID,DFID,02/10/2016,Air fares ,Top Management Group ,Corporate Travel Provider ,100232-104 ,"2,550.30",
DFID,DFID,02/10/2016,Air fares ,Top Management Group ,Corporate Travel Provider ,100232-104 ,"1,222.45",
DFID,DFID,02/10/2016,Air fares ,Top Management Group ,Corporate Travel Provider ,100232-104 ,"1,222.45",
DFID,DFID,02/10/2016,Air fares ,Top Management Group ,Corporate Travel Provider ,100232-104 ,"4,721.15",
DFID,DFID,02/10/2016,Air fares ,Top Management Group ,Corporate Travel Provider ,100232-104 ,"2,495.50",
DFID,DFID,02/10/2016,Air fares ,Top Management Group ,Corporate Travel Provider ,100232-104 ,"4,545.15",
DFID,DFID,02/10/2016,Air fares ,Top Management Group ,Corporate Travel Provider ,100232-104 ,"1,102.80",
DFID,DFID,02/10/2016,Air fares ,Top Management Group ,Corporate Travel Provider ,100232-104 ,"2,148.45",
DFID,DFID,02/10/2016,Air fares ,Top Management Group ,Corporate Travel Provider ,100232-104 ,"2,148.45",
DFID,DFID,02/10/2016,Air fares ,Top Management Group ,Corporate Travel Provider ,100232-105 ,"1,012.91",
DFID,DFID,02/10/2016,Air fares ,Top Management Group ,Corporate Travel Provider ,100232-105 ,"1,758.40",
DFID,DFID,02/10/2016,Air fares ,Top Management Group ,Corporate Travel Provider ,100232-105 ,"1,677.48",
DFID,DFID,02/10/2016,Air fares ,Top Management Group ,Corporate Travel Provider ,100232-105 ,800.60,
DFID,DFID,02/10/2016,Air fares ,Top Management Group ,Corporate Travel Provider ,100232-105 ,"1,677.48",
DFID,DFID,02/10/2016,Air fares ,Top Management Group ,Corporate Travel Provider ,100232-105 ,"1,012.91",
DFID,DFID,02/10/2016,Air fares ,Top Management Group ,Corporate Travel Provider ,100232-105 ,"1,758.40",
DFID,DFID,02/10/2016,Air fares ,Top Management Group ,Corporate Travel Provider ,100232-105 ,800.60,
DFID,DFID,02/10/2016,Air fares ,Top Management Group ,Corporate Travel Provider ,100232-105 ,"1,499.95",
DFID,DFID,02/10/2016,Air fares ,Top Management Group ,Corporate Travel Provider ,100232-105 ,"1,665.55",
DFID,DFID,02/10/2016,Air fares ,Top Management Group ,Corporate Travel Provider ,100232-106 ,705.27,
DFID,DFID,02/10/2016,Air fares ,Top Management Group ,Corporate Travel Provider ,100232-106 ,"1,589.27",
DFID,DFID,02/10/2016,Air fares ,Top Management Group ,Corporate Travel Provider ,100232-108 ,"3,284.28",
DFID,DFID,02/10/2016,Air fares ,Top Management Group ,Corporate Travel Provider ,100232-108 ,"2,970.15",
DFID,DFID,02/10/2016,Air fares ,Top Management Group ,Corporate Travel Provider ,100232-108 ,"2,326.15",
DFID,DFID,02/10/2016,Hotels - Accommodation only ,International Relations Division ,Corporate Travel Provider ,100236-101 ,"3,072.48",
DFID,DFID,02/10/2016,Air fares ,International Relations Division ,Corporate Travel Provider ,100240-101 ,"1,161.95",
DFID,DFID,02/10/2016,Air fares ,International Relations Division ,Corporate Travel Provider ,100240-101 ,504.13,
DFID,DFID,02/10/2016,Air fares ,Human Resources ,Corporate Travel Provider ,100261-101 ,"1,309.17",
DFID,DFID,02/10/2016,Hotels - Accommodation only ,Human Resources ,Corporate Travel Provider ,100261-101 ,796.86,
DFID,DFID,02/10/2016,Air fares ,Human Resources ,Corporate Travel Provider ,100268-101 ,563.55,
DFID,DFID,02/10/2016,Air fares ,Human Resources ,Corporate Travel Provider ,100268-101 ,"1,776.35",
DFID,DFID,02/10/2016,Air fares ,Human Resources ,Corporate Travel Provider ,100269-128 ,606.15,
DFID,DFID,02/10/2016,Air fares ,Human Resources ,Corporate Travel Provider ,100269-128 ,758.15,
DFID,DFID,02/10/2016,Air fares ,Human Resources ,Corporate Travel Provider ,100269-128 ,606.15,
DFID,DFID,02/10/2016,Air fares ,Policy Division ,Corporate Travel Provider ,100274-111 ,"2,142.15",
DFID,DFID,02/10/2016,Air fares ,Policy Division ,Corporate Travel Provider ,100274-111 ,"1,426.45",
DFID,DFID,02/10/2016,Air fares ,Policy Division ,Corporate Travel Provider ,100274-111 ,"2,489.75",
DFID,DFID,02/10/2016,Air fares ,Policy Division ,Corporate Travel Provider ,100274-111 ,"1,216.15",
DFID,DFID,02/10/2016,Air fares ,Policy Division ,Corporate Travel Provider ,100275-105 ,"1,571.20",
DFID,DFID,02/10/2016,Hotels - Accommodation only ,Policy Division ,Corporate Travel Provider ,100275-111 ,846.58,
DFID,DFID,02/10/2016,Air fares ,Asia  Caribbean and Overseas Territories ,Corporate Travel Provider ,101601-110 ,"3,595.08",
DFID,DFID,02/10/2016,Air fares ,Asia  Caribbean and Overseas Territories ,Corporate Travel Provider ,101601-110 ,"2,106.73",
DFID,DFID,02/10/2016,Air fares ,Asia  Caribbean and Overseas Territories ,Corporate Travel Provider ,101601-110 ,"2,293.41",
DFID,DFID,03/10/2016,Air fares ,Asia  Caribbean and Overseas Territories ,Foreign & Commonwealth Office ,101601-110 ,"28,371.00",Hellicoptor transport support costs for  Kabul for the period 2015/ 2016
DFID,DFID,24/10/2016,Contract Catering Services ,Asia  Caribbean and Overseas Territories ,Foreign & Commonwealth Office ,101601-110 ,"1,242.71",
DFID,DFID,24/10/2016,Other passenger transport ,Asia  Caribbean and Overseas Territories ,Foreign & Commonwealth Office ,101601-110 ,"1,145.30",
DFID,DFID,02/10/2016,Air fares ,Asia  Caribbean and Overseas Territories ,Corporate Travel Provider ,101601-110 ,"1,400.31",
DFID,DFID,02/10/2016,Air fares ,Asia  Caribbean and Overseas Territories ,Corporate Travel Provider ,101601-110 ,"2,233.85",
DFID,DFID,02/10/2016,Air fares ,Asia  Caribbean and Overseas Territories ,Corporate Travel Provider ,101601-110 ,"1,395.28",
DFID,DFID,02/10/2016,Air fares ,Asia  Caribbean and Overseas Territories ,Corporate Travel Provider ,101601-110 ,657.70,
DFID,DFID,02/10/2016,Air fares ,Asia  Caribbean and Overseas Territories ,Corporate Travel Provider ,101601-110 ,"2,171.38",
DFID,DFID,02/10/2016,Air fares ,Asia  Caribbean and Overseas Territories ,Corporate Travel Provider ,101601-110 ,657.70,
DFID,DFID,24/10/2016,Hotels - Accommodation only ,Asia  Caribbean and Overseas Territories ,Foreign & Commonwealth Office ,101603-101 ,581.15,
DFID,DFID,02/10/2016,Air fares ,Asia  Caribbean and Overseas Territories ,Corporate Travel Provider ,101603-101 ,716.81,
DFID,DFID,02/10/2016,Hotels - Accommodation only ,Asia  Caribbean and Overseas Territories ,Corporate Travel Provider ,101603-102 ,651.78,
DFID,DFID,02/10/2016,Hotels - Accommodation only ,Asia  Caribbean and Overseas Territories ,Corporate Travel Provider ,101603-102 ,604.08,
DFID,DFID,02/10/2016,Air fares ,Asia  Caribbean and Overseas Territories ,Corporate Travel Provider ,101604-101 ,827.50,
DFID,DFID,05/10/2016,Training - Travel & Subsistence ,Asia  Caribbean and Overseas Territories ,Foreign & Commonwealth Office ,101604-101 ,924.06,
DFID,DFID,13/10/2016,Air fares ,Asia  Caribbean and Overseas Territories ,Foreign & Commonwealth Office ,101604-101 ,615.85,
DFID,DFID,13/10/2016,Air fares ,Asia  Caribbean and Overseas Territories ,Foreign & Commonwealth Office ,101604-101 ,646.50,
DFID,DFID,05/10/2016,Air fares ,Asia  Caribbean and Overseas Territories ,Foreign & Commonwealth Office ,101604-101 ,"1,227.03",
DFID,DFID,02/10/2016,Hotels - Accommodation only ,Asia  Caribbean and Overseas Territories ,Corporate Travel Provider ,101605-101 ,773.00,
DFID,DFID,03/10/2016,Hotels - Accommodation only ,Asia  Caribbean and Overseas Territories ,Foreign & Commonwealth Office ,101605-101 ,632.43,
DFID,DFID,03/10/2016,Training - Travel & Subsistence ,Asia  Caribbean and Overseas Territories ,Foreign & Commonwealth Office ,101605-101 ,952.45,
DFID,DFID,03/10/2016,Storage & Distribution costs ,Asia  Caribbean and Overseas Territories ,Foreign & Commonwealth Office ,101605-101 ,"3,886.01",
DFID,DFID,03/10/2016,Travel - Subsistence ,Asia  Caribbean and Overseas Territories ,Foreign & Commonwealth Office ,101605-101 ,"1,287.10",
DFID,DFID,02/10/2016,Hotels - Accommodation only ,Asia  Caribbean and Overseas Territories ,Corporate Travel Provider ,101605-101 ,585.18,
DFID,DFID,24/10/2016,Air fares ,Asia  Caribbean and Overseas Territories ,Foreign & Commonwealth Office ,101605-101 ,761.69,
DFID,DFID,24/10/2016,Hotels - Accommodation only ,Asia  Caribbean and Overseas Territories ,Foreign & Commonwealth Office ,101605-101 ,801.71,
DFID,DFID,24/10/2016,Other travel costs ,Asia  Caribbean and Overseas Territories ,Foreign & Commonwealth Office ,101605-101 ,"1,565.24",
DFID,DFID,24/10/2016,Travel - Subsistence ,Asia  Caribbean and Overseas Territories ,Foreign & Commonwealth Office ,101605-101 ,610.83,
DFID,DFID,24/10/2016,Hotels - Accommodation only ,Asia  Caribbean and Overseas Territories ,Foreign & Commonwealth Office ,101605-101 ,572.65,
DFID,DFID,24/10/2016,Hotels - Accommodation only ,Asia  Caribbean and Overseas Territories ,Foreign & Commonwealth Office ,101605-101 ,570.27,
DFID,DFID,24/10/2016,Hotels - Accommodation only ,Asia  Caribbean and Overseas Territories ,Foreign & Commonwealth Office ,101605-101 ,"1,236.21",
DFID,DFID,02/10/2016,Air fares ,Asia  Caribbean and Overseas Territories ,Corporate Travel Provider ,101605-101 ,"1,397.25",
DFID,DFID,02/10/2016,Air fares ,West and Southern Africa ,Corporate Travel Provider ,101610-101 ,807.61,
DFID,DFID,02/10/2016,Air fares ,West and Southern Africa ,Corporate Travel Provider ,101610-101 ,"1,046.60",
DFID,DFID,02/10/2016,Hotels - Accommodation only ,West and Southern Africa ,Corporate Travel Provider ,101610-101 ,"2,223.61",
DFID,DFID,02/10/2016,Air fares ,West and Southern Africa ,Corporate Travel Provider ,101610-101 ,"1,290.71",
DFID,DFID,02/10/2016,Air fares ,West and Southern Africa ,Corporate Travel Provider ,101610-101 ,841.21,
DFID,DFID,02/10/2016,Air fares ,West and Southern Africa ,Corporate Travel Provider ,101610-101 ,"1,308.21",
DFID,DFID,02/10/2016,Air fares ,East and Central Africa ,Corporate Travel Provider ,101612-101 ,607.65,
DFID,DFID,02/10/2016,Air fares ,East and Central Africa ,Corporate Travel Provider ,101612-101 ,655.21,
DFID,DFID,03/10/2016,Air fares ,East and Central Africa ,Foreign & Commonwealth Office ,101612-101 ,867.44,
DFID,DFID,03/10/2016,Air fares ,East and Central Africa ,Foreign & Commonwealth Office ,101612-101 ,867.44,
DFID,DFID,03/10/2016,Air fares ,East and Central Africa ,Foreign & Commonwealth Office ,101612-101 ,807.35,
DFID,DFID,24/10/2016,Training - Travel & Subsistence ,East and Central Africa ,Foreign & Commonwealth Office ,101612-101 ,"1,091.95",
DFID,DFID,24/10/2016,Telephone Usage & services ,East and Central Africa ,Foreign & Commonwealth Office ,101612-101 ,"1,689.24",
DFID,DFID,24/10/2016,Telephone Usage & services ,East and Central Africa ,Foreign & Commonwealth Office ,101612-101 ,"2,443.70",
DFID,DFID,24/10/2016,Air fares ,East and Central Africa ,Foreign & Commonwealth Office ,101612-101 ,626.80,
DFID,DFID,24/10/2016,Hotels - Accommodation only ,East and Central Africa ,Foreign & Commonwealth Office ,101612-101 ,686.29,
DFID,DFID,02/10/2016,Air fares ,East and Central Africa ,Corporate Travel Provider ,101612-101 ,529.95,
DFID,DFID,02/10/2016,Air fares ,East and Central Africa ,Corporate Travel Provider ,101612-101 ,509.21,
DFID,DFID,02/10/2016,Air fares ,West and Southern Africa ,Corporate Travel Provider ,101613-101 ,667.10,
DFID,DFID,02/10/2016,Air fares ,West and Southern Africa ,Corporate Travel Provider ,101613-101 ,787.45,
DFID,DFID,02/10/2016,Air fares ,West and Southern Africa ,Corporate Travel Provider ,101613-101 ,600.21,
DFID,DFID,12/10/2016,Hotels - Accommodation only ,East and Central Africa ,Foreign & Commonwealth Office ,101616-101 ,770.17,
DFID,DFID,02/10/2016,Air fares ,West and Southern Africa ,Corporate Travel Provider ,101618-101 ,"1,238.05",
DFID,DFID,02/10/2016,Air fares ,West and Southern Africa ,Corporate Travel Provider ,101618-101 ,809.15,
DFID,DFID,02/10/2016,Air fares ,West and Southern Africa ,Corporate Travel Provider ,101618-101 ,617.85,
DFID,DFID,02/10/2016,Air fares ,West and Southern Africa ,Corporate Travel Provider ,101618-101 ,760.95,
DFID,DFID,02/10/2016,Air fares ,West and Southern Africa ,Corporate Travel Provider ,101618-101 ,837.11,
DFID,DFID,02/10/2016,Hotels - Accommodation only ,West and Southern Africa ,Corporate Travel Provider ,101620-101 ,833.41,
DFID,DFID,02/10/2016,Air fares ,West and Southern Africa ,Corporate Travel Provider ,101629-101,"1,703.00",
DFID,DFID,02/10/2016,Air fares ,West and Southern Africa ,Corporate Travel Provider ,101620-101 ,"1,300.45",
DFID,DFID,02/10/2016,Air fares ,West and Southern Africa ,Corporate Travel Provider ,101629-101,666.40,
DFID,DFID,02/10/2016,Hotels - Accommodation only ,West and Southern Africa ,Corporate Travel Provider ,101620-101 ,924.00,
DFID,DFID,02/10/2016,Air fares ,West and Southern Africa ,Corporate Travel Provider ,101620-101 ,668.55,
DFID,DFID,02/10/2016,Air fares ,West and Southern Africa ,Corporate Travel Provider ,101620-101 ,530.00,
DFID,DFID,24/10/2016,Air fares ,West and Southern Africa ,Foreign & Commonwealth Office ,101620-102 ,644.50,
DFID,DFID,02/10/2016,Air fares ,West and Southern Africa ,Corporate Travel Provider ,101620-102 ,828.65,
DFID,DFID,02/10/2016,Air fares ,West and Southern Africa ,Corporate Travel Provider ,101620-102 ,698.65,
DFID,DFID,02/10/2016,Air fares ,West and Southern Africa ,Corporate Travel Provider ,101620-102 ,698.65,
DFID,DFID,02/10/2016,Air fares ,West and Southern Africa ,Corporate Travel Provider ,101620-102 ,731.45,
DFID,DFID,02/10/2016,Air fares ,West and Southern Africa ,Corporate Travel Provider ,101620-102 ,"1,319.55",
DFID,DFID,02/10/2016,Air fares ,Asia  Caribbean and Overseas Territories ,Corporate Travel Provider ,101621-101 ,556.15,
DFID,DFID,02/10/2016,Air fares ,Middle East and North Africa Division ,Corporate Travel Provider ,101619-101 ,779.55,
DFID,DFID,02/10/2016,Air fares ,Middle East and North Africa Division ,Corporate Travel Provider ,101619-101 ,532.35,
DFID,DFID,02/10/2016,Air fares ,Middle East and North Africa Division ,Corporate Travel Provider ,101619-101 ,538.85,
DFID,DFID,02/10/2016,Air fares ,West and Southern Africa ,Supplier Name withheld ,101622-105 ,754.12,
DFID,DFID,02/10/2016,Air fares ,West and Southern Africa ,Supplier Name withheld ,101622-105 ,"1,259.35",
DFID,DFID,02/10/2016,Air fares ,West and Southern Africa ,Supplier Name withheld ,101622-105 ,618.75,
DFID,DFID,02/10/2016,Air fares ,West and Southern Africa ,Supplier Name withheld ,101622-105 ,611.12,
DFID,DFID,02/10/2016,Air fares ,West and Southern Africa ,Supplier Name withheld ,101622-106 ,817.45,
DFID,DFID,02/10/2016,Air fares ,West and Southern Africa ,Supplier Name withheld ,101622-106 ,817.45,
DFID,DFID,02/10/2016,Air fares ,West and Southern Africa ,Supplier Name withheld ,101622-106 ,"2,742.84",
DFID,DFID,02/10/2016,Air fares ,West and Southern Africa ,Supplier Name withheld ,101622-106 ,632.45,
DFID,DFID,02/10/2016,Air fares ,West and Southern Africa ,Supplier Name withheld ,101622-106 ,854.75,
DFID,DFID,02/10/2016,Air fares ,West and Southern Africa ,Supplier Name withheld ,101622-106 ,597.55,
DFID,DFID,02/10/2016,Air fares ,Asia  Caribbean and Overseas Territories ,Corporate Travel Provider ,101624-101 ,589.15,
DFID,DFID,02/10/2016,Air fares ,Asia  Caribbean and Overseas Territories ,Corporate Travel Provider ,101624-101 ,565.30,
DFID,DFID,02/10/2016,Air fares ,Asia  Caribbean and Overseas Territories ,Corporate Travel Provider ,101624-101 ,623.55,
DFID,DFID,02/10/2016,Air fares ,Asia  Caribbean and Overseas Territories ,Corporate Travel Provider ,101624-101 ,560.75,
DFID,DFID,02/10/2016,Air fares ,Asia  Caribbean and Overseas Territories ,Corporate Travel Provider ,101624-101 ,717.65,
DFID,DFID,02/10/2016,Air fares ,Asia  Caribbean and Overseas Territories ,Corporate Travel Provider ,101624-101 ,547.75,
DFID,DFID,02/10/2016,Air fares ,East and Central Africa ,Corporate Travel Provider ,101625-107 ,760.42,
DFID,DFID,02/10/2016,Air fares ,East and Central Africa ,Corporate Travel Provider ,101625-108 ,748.30,
DFID,DFID,02/10/2016,Air fares ,East and Central Africa ,Corporate Travel Provider ,101625-108 ,"1,113.61",
DFID,DFID,02/10/2016,Air fares ,West and Southern Africa ,Corporate Travel Provider ,101629-101 ,683.35,
DFID,DFID,02/10/2016,Air fares ,West and Southern Africa ,Corporate Travel Provider ,101629-101 ,661.55,
DFID,DFID,02/10/2016,Air fares ,West and Southern Africa ,Corporate Travel Provider ,101629-101 ,799.01,
DFID,DFID,02/10/2016,Air fares ,West and Southern Africa ,Corporate Travel Provider ,101629-101 ,628.52,
DFID,DFID,02/10/2016,Air fares ,West and Southern Africa ,Corporate Travel Provider ,101629-101 ,894.97,
DFID,DFID,02/10/2016,Air fares ,West and Southern Africa ,Corporate Travel Provider ,101629-101 ,881.61,
DFID,DFID,02/10/2016,Air fares ,East and Central Africa ,Corporate Travel Provider ,101630-101 ,504.92,
DFID,DFID,02/10/2016,Air fares ,West and Southern Africa ,Corporate Travel Provider ,101631-101 ,582.85,
DFID,DFID,02/10/2016,Air fares ,West and Southern Africa ,Corporate Travel Provider ,101631-101 ,818.70,
DFID,DFID,02/10/2016,Air fares ,West and Southern Africa ,Corporate Travel Provider ,101631-101 ,564.60,
DFID,DFID,02/10/2016,Air fares ,East and Central Africa ,Corporate Travel Provider ,101633-101 ,868.96,
DFID,DFID,03/10/2016,Training - Travel & Subsistence ,East and Central Africa ,Foreign & Commonwealth Office ,101633-101 ,"1,179.43",
DFID,DFID,02/10/2016,Air fares ,East and Central Africa ,Corporate Travel Provider ,101633-101 ,633.63,
DFID,DFID,24/10/2016,Air fares ,East and Central Africa ,Foreign & Commonwealth Office ,101633-101 ,"1,225.78",
DFID,DFID,24/10/2016,Hotels - Accommodation only ,East and Central Africa ,Foreign & Commonwealth Office ,101633-101 ,656.64,
DFID,DFID,02/10/2016,Air fares ,East and Central Africa ,Corporate Travel Provider ,101634-101 ,813.41,
DFID,DFID,02/10/2016,Air fares ,East and Central Africa ,Corporate Travel Provider ,101634-101 ,558.95,
DFID,DFID,02/10/2016,Hotels - Accommodation only ,East and Central Africa ,Corporate Travel Provider ,101634-101 ,"1,200.00",
DFID,DFID,02/10/2016,Hotels - Accommodation only ,East and Central Africa ,Corporate Travel Provider ,101634-101 ,"1,200.00",
DFID,DFID,02/10/2016,Hotels - Accommodation only ,East and Central Africa ,Corporate Travel Provider ,101634-101 ,"1,200.00",
DFID,DFID,02/10/2016,Hotels - Accommodation only ,East and Central Africa ,Corporate Travel Provider ,101634-101 ,"1,200.00",
DFID,DFID,02/10/2016,Hotels - Accommodation only ,East and Central Africa ,Corporate Travel Provider ,101634-101 ,556.00,
DFID,DFID,02/10/2016,Hotels - Accommodation only ,East and Central Africa ,Corporate Travel Provider ,101634-101 ,"1,059.00",
DFID,DFID,02/10/2016,Air fares ,East and Central Africa ,Corporate Travel Provider ,101625-101 ,587.02,
DFID,DFID,02/10/2016,Air fares ,West and Southern Africa ,Corporate Travel Provider ,101631-101 ,"3,181.95",
DFID,DFID,02/10/2016,Air fares ,West and Southern Africa ,Corporate Travel Provider ,101631-101 ,746.25,
DFID,DFID,24/10/2016,Medical Equipment ,West and Southern Africa ,Foreign & Commonwealth Office ,104227-106 ,"1,193.00",
DFID,DFID,24/10/2016,Medical Equipment ,West and Southern Africa ,Foreign & Commonwealth Office ,104227-106 ,"2,711.48",
DFID,DFID,24/10/2016,Medical Equipment ,West and Southern Africa ,Foreign & Commonwealth Office ,104227-106 ,"1,249.77",
DFID,DFID,24/10/2016,Project delivery costs – supplier services ,West and Southern Africa ,Foreign & Commonwealth Office ,104229-101 ,"5,634.08",
DFID,DFID,24/10/2016,Project delivery costs – supplier services ,West and Southern Africa ,Foreign & Commonwealth Office ,104229-101 ,"1,135.96",
DFID,DFID,24/10/2016,Project delivery costs – supplier services ,West and Southern Africa ,Foreign & Commonwealth Office ,104229-101 ,"4,174.93",
DFID,DFID,24/10/2016,Project delivery costs – supplier services ,West and Southern Africa ,Foreign & Commonwealth Office ,104229-101 ,"2,501.71",
DFID,DFID,24/10/2016,Project delivery costs – supplier services ,West and Southern Africa ,Foreign & Commonwealth Office ,104229-101 ,"2,617.78",
DFID,DFID,24/10/2016,Project delivery costs – supplier services ,West and Southern Africa ,Foreign & Commonwealth Office ,104229-101 ,"4,610.74",
DFID,DFID,24/10/2016,Project delivery costs – supplier services ,West and Southern Africa ,Foreign & Commonwealth Office ,104229-101 ,"3,164.86",
DFID,DFID,03/10/2016,Project delivery costs – supplier services ,West and Southern Africa ,Foreign & Commonwealth Office ,104229-101 ,"20,288.48",
DFID,DFID,03/10/2016,Project delivery costs – supplier services ,West and Southern Africa ,Foreign & Commonwealth Office ,104229-101 ,"24,056.50",
DFID,DFID,03/10/2016,Project delivery costs – supplier services ,West and Southern Africa ,Foreign & Commonwealth Office ,104229-101 ,"6,750.85",
DFID,DFID,03/10/2016,Project delivery costs – supplier services ,West and Southern Africa ,Foreign & Commonwealth Office ,104229-101 ,"1,485.91",
DFID,DFID,03/10/2016,Project delivery costs – supplier services ,West and Southern Africa ,Foreign & Commonwealth Office ,104229-101 ,"1,309.55",
DFID,DFID,03/10/2016,Project delivery costs – supplier services ,West and Southern Africa ,Foreign & Commonwealth Office ,104229-101 ,"5,366.35",
DFID,DFID,24/10/2016,Data Network -Satellite ,West and Southern Africa ,Foreign & Commonwealth Office ,101637-101 ,576.78,
DFID,DFID,02/10/2016,Air fares ,West and Southern Africa ,Corporate Travel Provider ,101637-102 ,620.15,
DFID,DFID,02/10/2016,Air fares ,West and Southern Africa ,Corporate Travel Provider ,101638-101 ,870.05,
DFID,DFID,24/10/2016,Vehicle Hire Charges,West and Southern Africa ,Foreign & Commonwealth Office ,101638-101 ,891.98,
DFID,DFID,02/10/2016,Air fares ,West and Southern Africa ,Corporate Travel Provider ,101638-101 ,941.85,
DFID,DFID,02/10/2016,Hotels - Accommodation only ,West and Southern Africa ,Corporate Travel Provider ,101638-101 ,869.04,
DFID,DFID,02/10/2016,Hotels - Accommodation only ,West and Southern Africa ,Corporate Travel Provider ,101638-101 ,651.78,
DFID,DFID,02/10/2016,Air fares ,West and Southern Africa ,Corporate Travel Provider ,101638-105 ,"1,094.55",
DFID,DFID,02/10/2016,Air fares ,Business Solutions Division Level ,Corporate Travel Provider ,200001-101 ,777.22,
DFID,DFID,24/10/2016,Data Network - land lines ,Business Solutions Division Level ,Foreign & Commonwealth Office ,200002-121 ,635.19,
DFID,DFID,20/10/2016,Data Network - land lines ,Business Solutions Division Level ,Foreign & Commonwealth Office ,200002-121 ,858.02,
DFID,DFID,04/10/2016,Data network- remote working ,Business Solutions Division Level ,Foreign & Commonwealth Office ,200002-121 ,561.94,
DFID,DFID,02/10/2016,Air fares ,Middle East and North Africa Division ,Corporate Travel Provider ,201701-101 ,574.80,
DFID,DFID,02/10/2016,Air fares ,Middle East and North Africa Division ,Corporate Travel Provider ,201701-101 ,548.75,
DFID,DFID,03/10/2016,Air fares ,Middle East and North Africa Division ,Foreign & Commonwealth Office ,201701-101 ,691.46,
DFID,DFID,02/10/2016,Air fares ,Middle East and North Africa Division ,Corporate Travel Provider ,201701-101 ,625.65,
DFID,DFID,02/10/2016,Air fares ,Middle East and North Africa Division ,Corporate Travel Provider ,201701-101 ,534.50,
DFID,DFID,02/10/2016,Air fares ,Middle East and North Africa Division ,Corporate Travel Provider ,201705-101 ,569.15,
DFID,DFID,02/10/2016,Air fares ,Middle East and North Africa Division ,Corporate Travel Provider ,201705-101 ,569.15,
DFID,DFID,24/10/2016,Training - Travel & Subsistence ,Middle East and North Africa Division ,Foreign & Commonwealth Office ,201705-101 ,595.56,
DFID,DFID,24/10/2016,Training - Travel & Subsistence ,Middle East and North Africa Division ,Foreign & Commonwealth Office ,201705-101 ,"1,197.22",
DFID,DFID,24/10/2016,Hotels - Accommodation only ,Middle East and North Africa Division ,Foreign & Commonwealth Office ,201705-101 ,534.47,
DFID,DFID,24/10/2016,Cleaning Costs ,Middle East and North Africa Division ,Foreign & Commonwealth Office ,201705-101 ,785.45,
DFID,DFID,24/10/2016,Hotels - Accommodation only ,Middle East and North Africa Division ,Foreign & Commonwealth Office ,201705-101 ,534.47,
DFID,DFID,24/10/2016,Hotels - Accommodation only ,Middle East and North Africa Division ,Foreign & Commonwealth Office ,201705-101 ,534.47,
DFID,DFID,24/10/2016,Hotels - Accommodation only ,Middle East and North Africa Division ,Foreign & Commonwealth Office ,201705-101 ,641.37,
DFID,DFID,24/10/2016,Telephone Usage & services ,Middle East and North Africa Division ,Foreign & Commonwealth Office ,201705-101 ,"1,064.30",
DFID,DFID,24/10/2016,Telephone Usage & services ,Middle East and North Africa Division ,Foreign & Commonwealth Office ,201705-101 ,"1,049.62",
DFID,DFID,02/10/2016,Air fares ,Middle East and North Africa Division ,Corporate Travel Provider ,201705-101 ,585.41,
DFID,DFID,02/10/2016,Air fares ,International Relations Division ,Corporate Travel Provider ,201711-101 ,735.31,
DFID,DFID,25/10/2016,Air fares ,International Relations Division ,Foreign & Commonwealth Office ,201711-101 ,"2,196.41",
DFID,DFID,13/10/2016,Air fares ,International Relations Division ,Foreign & Commonwealth Office ,201711-101 ,"1,690.00",
DFID,DFID,24/10/2016,Hotels - Accommodation only ,Asia  Caribbean and Overseas Territories ,Foreign & Commonwealth Office ,201724-154 ,"1,530.36",
DFID,DFID,02/10/2016,Air fares ,Research and Evidence Division ,Corporate Travel Provider ,202348-103 ,774.26,
DFID,DFID,02/10/2016,Air fares ,Research and Evidence Division ,Corporate Travel Provider ,202348-103 ,507.11,
DFID,DFID,02/10/2016,Air fares ,Economic Development Division ,Corporate Travel Provider ,202373-101 ,"1,102.91",
DFID,DFID,02/10/2016,Air fares ,Research and Evidence Division ,Corporate Travel Provider ,202392-102 ,908.43,
DFID,DFID,02/10/2016,Air fares ,Research and Evidence Division ,Corporate Travel Provider ,202392-102 ,897.88,
DFID,DFID,02/10/2016,Air fares ,Research and Evidence Division ,Corporate Travel Provider ,202392-102 ,"1,058.94",
DFID,DFID,02/10/2016,Air fares ,Research and Evidence Division ,Corporate Travel Provider ,202392-103 ,641.99,
DFID,DFID,02/10/2016,Hotels - Accommodation only ,Research and Evidence Division ,Corporate Travel Provider ,202392-103 ,872.03,
DFID,DFID,02/10/2016,Air fares ,Research and Evidence Division ,Corporate Travel Provider ,202392-106 ,945.35,
DFID,DFID,02/10/2016,Hotels - Accommodation only ,Research and Evidence Division ,Corporate Travel Provider ,202392-107 ,600.00,
DFID,DFID,02/10/2016,Hotels - Accommodation only ,Research and Evidence Division ,Corporate Travel Provider ,202392-109 ,701.70,
DFID,DFID,02/10/2016,Air fares ,Research and Evidence Division ,Corporate Travel Provider ,202392-113 ,"1,088.45",
DFID,DFID,02/10/2016,Air fares ,Policy Division ,Corporate Travel Provider ,202396-101 ,650.45,
DFID,DFID,02/10/2016,Air fares ,Policy Division ,Corporate Travel Provider ,202402-107 ,844.45,
DFID,DFID,02/10/2016,Air fares ,Policy Division ,Corporate Travel Provider ,202402-107 ,700.05,
DFID,DFID,02/10/2016,Air fares ,Policy Division ,Corporate Travel Provider ,202402-107 ,543.11,
DFID,DFID,02/10/2016,Hotels - Accommodation only ,Policy Division ,Corporate Travel Provider ,202402-107 ,682.25,
DFID,DFID,02/10/2016,Air fares ,Policy Division ,Corporate Travel Provider ,202402-107 ,744.71,
DFID,DFID,02/10/2016,Air fares ,Policy Division ,Corporate Travel Provider ,202402-107 ,"1,327.93",
DFID,DFID,02/10/2016,Air fares ,Asia  Caribbean and Overseas Territories ,Corporate Travel Provider ,202403-101 ,530.85,
DFID,DFID,02/10/2016,Air fares ,Conflict  Humanitarian  Security & Stabilisation Division ,Corporate Travel Provider ,202410-107 ,915.75,
DFID,DFID,02/10/2016,Air fares ,Policy Division ,Corporate Travel Provider ,202419-101 ,644.95,
DFID,DFID,02/10/2016,Air fares ,Policy Division ,Corporate Travel Provider ,202419-101 ,775.19,
DFID,DFID,02/10/2016,Air fares ,Policy Division ,Corporate Travel Provider ,202419-101 ,"1,334.43",
DFID,DFID,02/10/2016,Air fares ,Policy Division ,Corporate Travel Provider ,202419-101 ,755.45,
DFID,DFID,02/10/2016,Air fares ,Policy Division ,Corporate Travel Provider ,202419-104 ,819.11,
DFID,DFID,02/10/2016,Air fares ,Conflict  Humanitarian  Security & Stabilisation Division ,Corporate Travel Provider ,202410-108 ,"1,087.85",
DFID,DFID,02/10/2016,Air fares ,Conflict  Humanitarian  Security & Stabilisation Division ,Corporate Travel Provider ,202410-108 ,"1,917.85",
DFID,DFID,02/10/2016,Air fares ,Economic Development Division ,Corporate Travel Provider ,202432-101 ,649.10,
DFID,DFID,03/10/2016,Courier & Bag Services ,East and Central Africa ,Foreign & Commonwealth Office ,202594-101 ,952.45,
DFID,DFID,02/10/2016,Air fares ,East and Central Africa ,Corporate Travel Provider ,202594-101 ,602.05,
DFID,DFID,02/10/2016,Hotels - Accommodation only ,East and Central Africa ,Corporate Travel Provider ,202594-101 ,883.95,
DFID,DFID,02/10/2016,Air fares ,East and Central Africa ,Corporate Travel Provider ,202594-101 ,"1,047.65",
DFID,DFID,02/10/2016,Air fares ,East and Central Africa ,Corporate Travel Provider ,202594-101 ,645.30,
DFID,DFID,02/10/2016,Air fares ,East and Central Africa ,Corporate Travel Provider ,202594-101 ,562.90,
DFID,DFID,02/10/2016,Air fares ,East and Central Africa ,Corporate Travel Provider ,202594-101 ,601.85,
DFID,DFID,02/10/2016,Air fares ,East and Central Africa ,Corporate Travel Provider ,202594-101 ,501.40,
DFID,DFID,02/10/2016,Air fares ,East and Central Africa ,Corporate Travel Provider ,202594-101 ,663.05,
DFID,DFID,02/10/2016,Air fares ,East and Central Africa ,Corporate Travel Provider ,202594-101 ,"1,332.75",
DFID,DFID,02/10/2016,Air fares ,East and Central Africa ,Corporate Travel Provider ,202594-101 ,961.45,
DFID,DFID,02/10/2016,Air fares ,East and Central Africa ,Corporate Travel Provider ,202594-101 ,617.30,
DFID,DFID,02/10/2016,Air fares ,East and Central Africa ,Corporate Travel Provider ,202594-101 ,596.26,
DFID,DFID,02/10/2016,Air fares ,East and Central Africa ,Corporate Travel Provider ,202594-101 ,692.70,
DFID,DFID,02/10/2016,Air fares ,East and Central Africa ,Corporate Travel Provider ,202594-101 ,624.17,
DFID,DFID,02/10/2016,Air fares ,East and Central Africa ,Corporate Travel Provider ,202594-101 ,624.17,
DFID,DFID,04/10/2016,Medical/Health Services ,East and Central Africa ,Foreign & Commonwealth Office ,202586-101 ,"2,085.97",
DFID,DFID,02/10/2016,Air fares ,Asia  Caribbean and Overseas Territories ,Corporate Travel Provider ,202775-108 ,573.60,
DFID,DFID,24/10/2016,Telephone Usage & services ,East and Central Africa ,Foreign & Commonwealth Office ,202913-104 ,"1,327.52",
DFID,DFID,13/10/2016,Project delivery costs � supplier services,Middle East and North Africa Division ,Foreign & Commonwealth Office ,203120-102 ,"2,694.79",
DFID,DFID,20/10/2016,Data Network - land lines ,Business Solutions Division Level ,Foreign & Commonwealth Office ,203329-102 ,858.02,
DFID,DFID,02/10/2016,Air fares ,Business Solutions Division Level ,Corporate Travel Provider ,203329-104 ,959.30,
DFID,DFID,02/10/2016,Air fares ,Business Solutions Division Level ,Corporate Travel Provider ,203329-104 ,"1,108.60",
DFID,DFID,24/10/2016,Project delivery costs – supplier services ,Asia  Caribbean and Overseas Territories ,Foreign & Commonwealth Office ,203454-104 ,"1,955.24",
DFID,DFID,24/10/2016,Project delivery costs – supplier services ,Asia  Caribbean and Overseas Territories ,Foreign & Commonwealth Office ,203454-104 ,"3,377.23",
DFID,DFID,24/10/2016,Project delivery costs – supplier services ,Asia  Caribbean and Overseas Territories ,Foreign & Commonwealth Office ,203454-104 ,"3,643.86",
DFID,DFID,02/10/2016,Air fares ,East and Central Africa ,Corporate Travel Provider ,203603-105 ,622.65,
DFID,DFID,02/10/2016,Air fares ,West and Southern Africa ,Corporate Travel Provider ,203627-106 ,722.44,
DFID,DFID,24/10/2016,DFID Purchased Relief Supplies ,West and Southern Africa ,Foreign & Commonwealth Office ,203674-103 ,"6,529.00",
DFID,DFID,24/10/2016,DFID Purchased Relief Supplies ,West and Southern Africa ,Foreign & Commonwealth Office ,203674-103 ,"6,529.00",
DFID,DFID,24/10/2016,DFID Purchased Relief Supplies ,West and Southern Africa ,Foreign & Commonwealth Office ,203674-103 ,"8,705.33",
DFID,DFID,24/10/2016,DFID Purchased Relief Supplies ,West and Southern Africa ,Foreign & Commonwealth Office ,203674-103 ,"5,803.55",
DFID,DFID,24/10/2016,DFID Purchased Relief Supplies ,West and Southern Africa ,Foreign & Commonwealth Office ,203674-103 ,"6,529.00",
DFID,DFID,02/10/2016,Air fares ,Research and Evidence Division ,Corporate Travel Provider ,203804-108 ,653.15,
DFID,DFID,02/10/2016,Air fares ,Research and Evidence Division ,Corporate Travel Provider ,203874-102 ,872.95,
DFID,DFID,02/10/2016,Air fares ,Research and Evidence Division ,Corporate Travel Provider ,203874-102 ,"1,055.10",
DFID,DFID,02/10/2016,Air fares ,Research and Evidence Division ,Corporate Travel Provider ,203874-102 ,"1,059.15",
DFID,DFID,03/10/2016,Aid Programme - Humanitarian Material Relief Assistance and Services ,East and Central Africa ,Foreign & Commonwealth Office ,203961-114 ,816.45,
DFID,DFID,03/10/2016,Aid Programme - Humanitarian Material Relief Assistance and Services ,East and Central Africa ,Foreign & Commonwealth Office ,203961-114 ,"1,349.22",
DFID,DFID,03/10/2016,Aid Programme - Humanitarian Material Relief Assistance and Services ,East and Central Africa ,Foreign & Commonwealth Office ,203961-114 ,"3,898.36",
DFID,DFID,24/10/2016,Training - Travel & Subsistence ,East and Central Africa ,Foreign & Commonwealth Office ,203986-103 ,867.17,
DFID,DFID,26/10/2016,Air fares ,Middle East and North Africa Division ,Foreign & Commonwealth Office ,204055-101 ,646.45,
DFID,DFID,25/10/2016,Hotels - Accommodation only ,Middle East and North Africa Division ,Foreign & Commonwealth Office ,204055-101 ,"1,548.80",
DFID,DFID,25/10/2016,Hotels - Accommodation only ,Middle East and North Africa Division ,Foreign & Commonwealth Office ,204055-101 ,"1,623.69",
DFID,DFID,25/10/2016,AV Conferencing systems -hardware ,Middle East and North Africa Division ,Foreign & Commonwealth Office ,204055-101 ,"3,165.51",
DFID,DFID,12/10/2016,Hotels - Accommodation only ,Middle East and North Africa Division ,Foreign & Commonwealth Office ,204055-101 ,"1,469.07",
DFID,DFID,12/10/2016,Hotels - Accommodation only ,Middle East and North Africa Division ,Foreign & Commonwealth Office ,204055-101 ,"1,475.04",
DFID,DFID,13/10/2016,Hotels - Accommodation only ,Middle East and North Africa Division ,Foreign & Commonwealth Office ,204055-101 ,"1,924.85",
DFID,DFID,13/10/2016,AV Conferencing systems -hardware ,Middle East and North Africa Division ,Foreign & Commonwealth Office ,204055-101 ,"3,139.44",
DFID,DFID,13/10/2016,AV Conferencing systems -hardware ,Middle East and North Africa Division ,Foreign & Commonwealth Office ,204055-101 ,"3,223.42",
DFID,DFID,12/10/2016,Hotels - Accommodation only ,Middle East and North Africa Division ,Foreign & Commonwealth Office ,204055-101 ,"1,516.05",
DFID,DFID,12/10/2016,Hotels - Accommodation only ,Middle East and North Africa Division ,Foreign & Commonwealth Office ,204055-101 ,"1,469.07",
DFID,DFID,02/10/2016,Hotels - Accommodation only ,Middle East and North Africa Division ,Corporate Travel Provider ,204055-101 ,654.00,
DFID,DFID,02/10/2016,Hotels - Accommodation only ,Middle East and North Africa Division ,Corporate Travel Provider ,204055-101 ,545.00,
DFID,DFID,02/10/2016,Air fares ,Middle East and North Africa Division ,Corporate Travel Provider ,204084-101 ,"1,464.32",
DFID,DFID,02/10/2016,Air fares ,Global Funds ,Corporate Travel Provider ,204452-101 ,680.15,
DFID,DFID,02/10/2016,Air fares ,Global Funds ,Corporate Travel Provider ,204452-101 ,"1,641.55",
DFID,DFID,24/10/2016,Aid Programme - Humanitarian Material Relief Assistance and Services ,Middle East and North Africa Division ,Foreign & Commonwealth Office ,204516-102 ,"3,057.41",
DFID,DFID,24/10/2016,Aid Programme - Humanitarian Material Relief Assistance and Services ,Middle East and North Africa Division ,Foreign & Commonwealth Office ,204516-102 ,"1,522.49",
DFID,DFID,24/10/2016,Aid Programme - Humanitarian Material Relief Assistance and Services ,Middle East and North Africa Division ,Foreign & Commonwealth Office ,204516-102 ,"1,469.07",
DFID,DFID,24/10/2016,Aid Programme - Humanitarian Material Relief Assistance and Services ,Middle East and North Africa Division ,Foreign & Commonwealth Office ,204516-102 ,"1,469.07",
DFID,DFID,24/10/2016,Aid Programme - Humanitarian Material Relief Assistance and Services ,Middle East and North Africa Division ,Foreign & Commonwealth Office ,204516-102 ,"1,000.60",
DFID,DFID,24/10/2016,Aid Programme - Humanitarian Material Relief Assistance and Services ,Middle East and North Africa Division ,Foreign & Commonwealth Office ,204516-102 ,"1,000.60",
DFID,DFID,02/10/2016,Air fares ,Research and Evidence Division ,Corporate Travel Provider ,204815-101 ,908.15,
DFID,DFID,02/10/2016,Air fares ,Research and Evidence Division ,Corporate Travel Provider ,204815-101 ,"1,645.55",
DFID,DFID,02/10/2016,Air fares ,West and Southern Africa ,Corporate Travel Provider ,204856-102 ,538.00,
DFID,DFID,03/10/2016,Secure Staff Accommodation ,Asia  Caribbean and Overseas Territories ,Foreign & Commonwealth Office ,204857-102 ,"1,861.59",
DFID,DFID,02/10/2016,Hotels - Accommodation only ,West and Southern Africa ,Corporate Travel Provider ,204939-102 ,578.79,
DFID,DFID,03/10/2016,Air fares ,East and Central Africa ,Foreign & Commonwealth Office ,204957-101 ,867.65,
DFID,DFID,03/10/2016,Air fares ,East and Central Africa ,Foreign & Commonwealth Office ,204957-101 ,867.65,
DFID,DFID,24/10/2016,Training - Travel & Subsistence ,East and Central Africa ,Foreign & Commonwealth Office ,204957-104 ,506.18,
DFID,DFID,02/10/2016,Air fares ,Policy Division ,Corporate Travel Provider ,204963-101 ,642.81,
DFID,DFID,02/10/2016,Air fares ,Policy Division ,Corporate Travel Provider ,204963-101 ,741.15,
DFID,DFID,02/10/2016,Air fares ,Middle East and North Africa Division ,Corporate Travel Provider ,204978-101 ,563.25,
DFID,DFID,02/10/2016,Air fares ,Middle East and North Africa Division ,Corporate Travel Provider ,204981-101 ,547.35,
DFID,DFID,02/10/2016,Hotels - Accommodation only ,West and Southern Africa ,Corporate Travel Provider ,205035-103 ,529.24,
DFID,DFID,02/10/2016,Air fares ,PGP Directorate ,Corporate Travel Provider ,205044-101 ,544.05,
DFID,DFID,24/10/2016,"Repairs, Maint, Alter - Property & Constrct. Services",International Relations Division ,Foreign & Commonwealth Office ,205081-101 ,"2,285.97",
DFID,DFID,24/10/2016,"Repairs, Maint, Alter - Property & Constrct. Services",International Relations Division ,Foreign & Commonwealth Office ,205081-101 ,711.19,
DFID,DFID,24/10/2016,"Repairs, Maint, Alter - Property & Constrct. Services",International Relations Division ,Foreign & Commonwealth Office ,205081-101 ,"2,285.97",
DFID,DFID,24/10/2016,"Repairs, Maint, Alter - Property & Constrct. Services",International Relations Division ,Foreign & Commonwealth Office ,205081-101 ,"1,015.99",
DFID,DFID,24/10/2016,Project delivery costs � supplier services,International Relations Division ,Foreign & Commonwealth Office ,205081-101 ,"2,031.97",
DFID,DFID,03/10/2016,Secure Staff Accommodation ,International Relations Division ,Foreign & Commonwealth Office ,205081-101 ,"1,971.53",
DFID,DFID,12/10/2016,Secure Staff Accommodation ,International Relations Division ,Foreign & Commonwealth Office ,205081-101 ,"8,622.20",
DFID,DFID,03/10/2016,Secure Staff Accommodation ,International Relations Division ,Foreign & Commonwealth Office ,205081-101 ,"1,848.43",
DFID,DFID,02/10/2016,Air fares ,International Relations Division ,Corporate Travel Provider ,205081-101 ,"1,277.90",
DFID,DFID,02/10/2016,Hotels - Accommodation only ,Asia  Caribbean and Overseas Territories ,Corporate Travel Provider ,205093-102 ,518.45,
DFID,DFID,12/10/2016,Secure Staff Accommodation ,Asia  Caribbean and Overseas Territories ,Foreign & Commonwealth Office ,205138-103 ,"2,172.03",
DFID,DFID,11/10/2016,Project delivery costs – supplier services ,Conflict  Humanitarian  Security & Stabilisation Division ,Foreign & Commonwealth Office ,205141-104 ,"3,831.42",
DFID,DFID,05/10/2016,Training - Travel & Subsistence ,Asia  Caribbean and Overseas Territories ,Foreign & Commonwealth Office ,205157-103 ,854.68,
DFID,DFID,05/10/2016,Air fares ,Asia  Caribbean and Overseas Territories ,Foreign & Commonwealth Office ,205157-103 ,601.54,
DFID,DFID,20/10/2016,Staff Travel - Air Fares ,Asia  Caribbean and Overseas Territories ,Foreign & Commonwealth Office ,205157-103 ,623.48,
DFID,DFID,02/10/2016,Air fares ,Policy Division ,Corporate Travel Provider ,205248-102 ,962.45,
DFID,DFID,03/10/2016,Aid Programme - Humanitarian Material Relief Assistance and Services ,East and Central Africa ,Foreign & Commonwealth Office ,205256-104 ,"7,124.51",
DFID,DFID,02/10/2016,Air fares ,Conflict  Humanitarian  Security & Stabilisation Division ,Corporate Travel Provider ,205279-101 ,"2,219.15",
DFID,DFID,02/10/2016,Air fares ,Conflict  Humanitarian  Security & Stabilisation Division ,Corporate Travel Provider ,205280-101 ,530.15,
DFID,DFID,02/10/2016,Air fares ,Policy Division ,Corporate Travel Provider ,300032-101 ,"1,328.75",
DFID,DFID,02/10/2016,Air fares ,Policy Division ,Corporate Travel Provider ,300032-101 ,552.73,
DFID,DFID,02/10/2016,Air fares ,Policy Division ,Corporate Travel Provider ,300032-101 ,552.73,
DFID,DFID,02/10/2016,Air fares ,Policy Division ,Corporate Travel Provider ,300032-101 ,557.20,
DFID,DFID,02/10/2016,Air fares ,Policy Division ,Corporate Travel Provider ,300033-101 ,615.09,
DFID,DFID,02/10/2016,Air fares ,Asia  Caribbean and Overseas Territories ,Corporate Travel Provider ,300048-101 ,623.95,
DFID,DFID,24/10/2016,Air fares ,Middle East and North Africa Division ,Foreign & Commonwealth Office ,300077-101 ,600.57,
DFID,DFID,24/10/2016,Hotels - Accommodation only ,Middle East and North Africa Division ,Foreign & Commonwealth Office ,300078-101 ,799.70,
DFID,DFID,12/10/2016,Travel - Subsistence ,Middle East and North Africa Division ,Foreign & Commonwealth Office ,300078-101 ,633.33,
DFID,DFID,12/10/2016,Hotels - Accommodation only ,Middle East and North Africa Division ,Foreign & Commonwealth Office ,300078-101 ,"1,844.22",
DFID,DFID,24/10/2016,UK Staff overseas - Flexi Travel Allowance ,Middle East and North Africa Division ,Foreign & Commonwealth Office ,300078-101 ,"4,557.34",
DFID,DFID,02/10/2016,Air fares ,Middle East and North Africa Division ,Corporate Travel Provider ,300078-101 ,542.35,
DFID,DFID,12/10/2016,Aid Programme - Partnership Programme Arrangements ,Policy Division ,ACTIONAID ,202663-101 ,"1,029,751.00",
DFID,DFID,05/10/2016,Aid Programme - Partnership Programme Arrangements ,Policy Division ,ACTION ON DISABILITY AND DE ,202561-101 ,"283,456.50",
DFID,DFID,04/10/2016,Project delivery costs – supplier services ,East and Central Africa ,ADAM SMITH INTERNATIONAL  LTD ,203308-111 ,"347,220.00",
DFID,DFID,24/10/2016,Project delivery costs – supplier services ,Asia  Caribbean and Overseas Territories ,ADAM SMITH INTERNATIONAL  LTD ,202328-102 ,"414,293.93",
DFID,DFID,04/10/2016,Project delivery costs – supplier services ,West and Southern Africa ,ADAM SMITH INTERNATIONAL  LTD ,203161-103 ,"654,874.37",
DFID,DFID,18/10/2016,Project delivery costs – supplier services ,East and Central Africa ,ADAM SMITH INTERNATIONAL  LTD ,204456-103 ,"249,252.00",
DFID,DFID,18/10/2016,Project delivery costs – supplier services ,East and Central Africa ,ADAM SMITH INTERNATIONAL  LTD ,204456-105 ,"29,073.87",
DFID,DFID,18/10/2016,Project delivery costs – supplier services ,Middle East and North Africa Division ,ADAM SMITH INTERNATIONAL  LTD ,205048-102 ,"67,618.64",
DFID,DFID,20/10/2016,Project delivery costs – supplier services ,West and Southern Africa ,ADAM SMITH INTERNATIONAL  LTD ,202539-108 ,"192,493.28",
DFID,DFID,18/10/2016,Project delivery costs – supplier services ,West and Southern Africa ,ADAM SMITH INTERNATIONAL  LTD ,202539-108 ,"202,426.39",
DFID,DFID,24/10/2016,Project delivery costs – supplier services ,Asia  Caribbean and Overseas Territories ,ADAM SMITH INTERNATIONAL  LTD ,202328-102 ,"4,344.38",
DFID,DFID,14/10/2016,Project delivery costs – supplier services ,East and Central Africa ,ADAM SMITH INTERNATIONAL  LTD ,205092-101 ,"20,211.15",
DFID,DFID,26/10/2016,Project delivery costs – supplier services ,West and Southern Africa ,ADAM SMITH INTERNATIONAL  LTD ,203674-102 ,"2,209.22",
DFID,DFID,20/10/2016,Project delivery costs – supplier services ,West and Southern Africa ,ADAM SMITH INTERNATIONAL  LTD ,202541-106 ,"349,352.00",
DFID,DFID,28/10/2016,Project delivery costs – supplier services ,West and Southern Africa ,ADAM SMITH INTERNATIONAL  LTD ,202539-106 ,"31,362.45",
DFID,DFID,24/10/2016,Project delivery costs – supplier services ,West and Southern Africa ,ADAM SMITH INTERNATIONAL  LTD ,202539-106 ,"378,646.49",
DFID,DFID,26/10/2016,Project delivery costs – supplier services ,East and Central Africa ,ADAM SMITH INTERNATIONAL  LTD ,202698-113 ,"86,393.90",
DFID,DFID,07/10/2016,Project delivery costs – supplier services ,East and Central Africa ,ADAM SMITH INTERNATIONAL  LTD ,202698-113 ,"127,917.59",
DFID,DFID,05/10/2016,Project delivery costs – supplier services ,East and Central Africa ,ADAM SMITH INTERNATIONAL  LTD ,205065-102 ,"144,855.58",
DFID,DFID,26/10/2016,Project delivery costs – supplier services ,West and Southern Africa ,ADAM SMITH INTERNATIONAL  LTD ,203674-103 ,"618,192.14",
DFID,DFID,20/10/2016,Project delivery costs – supplier services ,West and Southern Africa ,ADAM SMITH INTERNATIONAL  LTD ,201433-102 ,"1,643,976.54",
DFID,DFID,12/10/2016,Project delivery costs – supplier services ,West and Southern Africa ,ADAM SMITH INTERNATIONAL  LTD ,104190-102 ,"693,858.08",
DFID,DFID,19/10/2016,Project delivery costs – supplier services ,Asia  Caribbean and Overseas Territories ,ADAM SMITH INTERNATIONAL  LTD ,204468-110 ,"25,398.60",
DFID,DFID,26/10/2016,Project delivery costs – supplier services ,West and Southern Africa ,ADAM SMITH INTERNATIONAL  LTD ,203674-102 ,"148,242.60",
DFID,DFID,13/10/2016,Project delivery costs – supplier services ,West and Southern Africa ,ADAM SMITH INTERNATIONAL  LTD ,203839-101 ,"253,459.40",
DFID,DFID,28/10/2016,Project delivery costs – supplier services ,West and Southern Africa ,ADAM SMITH INTERNATIONAL  LTD ,202584-108 ,"22,120.56",
DFID,DFID,07/10/2016,Project delivery costs – supplier services ,West and Southern Africa ,ADAM SMITH INTERNATIONAL  LTD ,202584-106 ,"186,888.19",
DFID,DFID,26/10/2016,Project delivery costs – supplier services ,Asia  Caribbean and Overseas Territories ,ADAM SMITH INTERNATIONAL  LTD ,203508-103 ,"11,888.00",
DFID,DFID,24/10/2016,Project delivery costs – supplier services ,West and Southern Africa ,ADAM SMITH INTERNATIONAL  LTD ,203719-101 ,"179,116.29",
DFID,DFID,24/10/2016,Project delivery costs – supplier services ,West and Southern Africa ,ADAM SMITH INTERNATIONAL  LTD ,203719-101 ,"171,162.43",
DFID,DFID,26/10/2016,Project delivery costs – supplier services ,West and Southern Africa ,ADAM SMITH INTERNATIONAL  LTD ,205192-102 ,"528,853.00",
DFID,DFID,21/10/2016,Project delivery costs – supplier services ,West and Southern Africa ,ADAM SMITH INTERNATIONAL  LTD ,202584-106 ,"361,628.78",
DFID,DFID,10/10/2016,Consultancy Services (As defined by central gov),Business Solutions Division Level ,ALLEGIS GROUP LIMITED ,200001-101 ,"3,825.00",
DFID,DFID,24/10/2016,Project delivery costs – supplier services ,Asia  Caribbean and Overseas Territories ,Supplier Name withheld ,204122-101 ,"124,890.00",
DFID,DFID,24/10/2016,Project delivery costs – supplier services ,Asia  Caribbean and Overseas Territories ,Supplier Name withheld ,204122-104 ,"371,601.00",
DFID,DFID,24/10/2016,Project delivery costs – supplier services ,Asia  Caribbean and Overseas Territories ,Supplier Name withheld ,204122-105 ,"329,534.00",
DFID,DFID,20/10/2016,Aid Programme - Accountable Grant Payments ,East and Central Africa ,THE AEGIS TRUST ,203923-101 ,"298,636.00",
DFID,DFID,17/10/2016,Encashment of Promissory Notes ,Economic Development Division ,AFRICAN  DEVELOPMENT BANK GROUP ,203546-101 ,"22,234,460.09",
DFID,DFID,17/10/2016,Encashment of Promissory Notes ,Economic Development Division ,AFRICAN  DEVELOPMENT BANK GROUP ,200147-104 ,"8,757,000.00",
DFID,DFID,17/10/2016,Encashment of Promissory Notes ,Economic Development Division ,AFRICAN  DEVELOPMENT BANK GROUP ,202278-102 ,"556,508.47",
DFID,DFID,17/10/2016,Encashment of Promissory Notes ,Economic Development Division ,AFRICAN  DEVELOPMENT BANK GROUP ,202278-103 ,"15,276,805.64",
DFID,DFID,11/10/2016,Project delivery costs – supplier services ,Business Solutions Division Level ,Unit 4 ,200005-132 ,"3,000.00",
DFID,DFID,20/10/2016,Project delivery costs – supplier services ,West and Southern Africa ,BRITISH COUNCIL (UK) ,114161-101 ,"380,808.86",
DFID,DFID,14/10/2016,Aid Programme - Partnership Programme Arrangements ,Policy Division ,Supplier Name withheld ,202786-101 ,"409,498.25",
DFID,DFID,28/10/2016,Aid Programme - Core contributions ,Conflict  Humanitarian  Security & Stabilisation Division ,Supplier Name withheld ,205039-102 ,"4,500,000.00",
DFID,DFID,12/10/2016,Project delivery costs – supplier services ,West and Southern Africa ,BRITISH GEOLOGICAL SURVEY ,203634-103 ,"42,783.77",
DFID,DFID,11/10/2016,Project delivery costs – supplier services ,Policy Division ,BRITISH COUNCIL ,204864-102 ,"87,258.50",
DFID,DFID,04/10/2016,Project delivery costs – supplier services ,West and Southern Africa ,BRITISH COUNCIL ,201625-109 ,"213,558.63",
DFID,DFID,26/10/2016,Project delivery costs – supplier services ,West and Southern Africa ,BRITISH COUNCIL ,201625-109 ,"117,416.03",
DFID,DFID,04/10/2016,Project delivery costs – supplier services ,Middle East and North Africa Division ,BRITISH COUNCIL ,202886-102 ,"91,188.56",
DFID,DFID,17/10/2016,Project delivery costs – supplier services ,Asia  Caribbean and Overseas Territories ,BRITISH COUNCIL ,203488-103 ,"90,426.00",
DFID,DFID,17/10/2016,Project delivery costs – supplier services ,Asia  Caribbean and Overseas Territories ,BRITISH COUNCIL ,203488-105 ,"167,934.56",
DFID,DFID,21/10/2016,Project delivery costs – supplier services ,West and Southern Africa ,BRITISH COUNCIL ,201625-101 ,"315,399.05",
DFID,DFID,04/10/2016,Project delivery costs – supplier services ,Middle East and North Africa Division ,BRITISH COUNCIL ,202886-102 ,"78,830.26",
DFID,DFID,06/10/2016,Project delivery costs – supplier services ,West and Southern Africa ,BRITISH COUNCIL ,203816-103 ,"873,971.00",
DFID,DFID,25/10/2016,Project delivery costs – supplier services ,Middle East and North Africa Division ,BRITISH COUNCIL ,203726-101 ,"293,962.52",
DFID,DFID,06/10/2016,Aid Programme - Accountable Grant Payments ,East and Central Africa ,BRITISH COUNCIL ,205144-101 ,"50,000.00",
DFID,DFID,06/10/2016,Project delivery costs – supplier services ,West and Southern Africa ,BRITISH COUNCIL ,203816-102 ,"98,282.41",
DFID,DFID,14/10/2016,Project delivery costs – supplier services ,West and Southern Africa ,BRITISH COUNCIL ,203851-102 ,"41,467.85",
DFID,DFID,14/10/2016,Aid Programme - Partnership Programme Arrangements ,Policy Division ,CAFOD ,202669-101 ,"1,044,411.00",
DFID,DFID,06/10/2016,Aid Programme - Partnership Programme Arrangements ,Policy Division ,CHRISTIAN AID ,202651-101 ,"1,813,981.25",
DFID,DFID,20/10/2016,DFID Purchased Relief Supplies ,West and Southern Africa ,Crown Agents. ,202640-102 ,"1,673,380.68",
DFID,DFID,20/10/2016,DFID Purchased Relief Supplies ,West and Southern Africa ,Crown Agents. ,202640-102 ,"2,026.30",
DFID,DFID,18/10/2016,Project delivery costs – supplier services ,West and Southern Africa ,Crown Agents. ,202640-103 ,"40,722.40",
DFID,DFID,26/10/2016,Project delivery costs – supplier services ,West and Southern Africa ,Crown Agents. ,202640-103 ,"38,973.10",
DFID,DFID,20/10/2016,Project delivery costs – supplier services ,East and Central Africa ,Crown Agents. ,205256-108 ,"523,947.95",
DFID,DFID,03/10/2016,Project delivery costs – supplier services ,West and Southern Africa ,Crown Agents. ,204902-103 ,"28,512.00",
DFID,DFID,24/10/2016,DFID Purchased Relief Supplies ,Policy Division ,Crown Agents. ,201724-156 ,"17,000.00",
DFID,DFID,21/10/2016,Aid Programme - Humanitarian Material Relief Assistance and Services ,Middle East and North Africa Division ,Crown Agents. ,204516-102 ,"19,908.60",
DFID,DFID,27/10/2016,Aid Programme - Humanitarian Material Relief Assistance and Services ,Middle East and North Africa Division ,Crown Agents. ,204516-102 ,"31,398.60",
DFID,DFID,06/10/2016,Aid Programme - Humanitarian Material Relief Assistance and Services ,Middle East and North Africa Division ,Crown Agents. ,204516-102 ,"44,515.20",
DFID,DFID,27/10/2016,Aid Programme - Humanitarian Material Relief Assistance and Services ,Middle East and North Africa Division ,Crown Agents. ,204516-102 ,"50,265.00",
DFID,DFID,28/10/2016,Aid Programme - Humanitarian Material Relief Assistance and Services ,Middle East and North Africa Division ,Crown Agents. ,204516-102 ,"38,469.60",
DFID,DFID,28/10/2016,Aid Programme - Humanitarian Material Relief Assistance and Services ,Middle East and North Africa Division ,Crown Agents. ,204516-102 ,"5,279.59",
DFID,DFID,31/10/2016,Project delivery costs – supplier services ,Asia  Caribbean and Overseas Territories ,Crown Agents. ,202393-103 ,"310,413.78",
DFID,DFID,31/10/2016,Project delivery costs – supplier services ,Asia  Caribbean and Overseas Territories ,Crown Agents. ,202393-108 ,"845,388.95",
DFID,DFID,18/10/2016,Project delivery costs – supplier services ,Conflict  Humanitarian  Security & Stabilisation Division ,Crown Agents. ,205141-104 ,"5,260.80",
DFID,DFID,04/10/2016,Project delivery costs – supplier services ,Conflict  Humanitarian  Security & Stabilisation Division ,Crown Agents. ,205141-104 ,"4,277.80",
DFID,DFID,20/10/2016,Project delivery costs – supplier services ,East and Central Africa ,Crown Agents. ,200349-102 ,"186,995.80",
DFID,DFID,11/10/2016,Project delivery costs – supplier services ,East and Central Africa ,Crown Agents. ,200349-102 ,"548,602.14",
DFID,DFID,17/10/2016,Project delivery costs – supplier services ,West and Southern Africa ,Crown Agents. ,205161-103 ,"4,082.40",
DFID,DFID,25/10/2016,Fund monies to be managed and dispersed by the supplier ,East and Central Africa ,Crown Agents. ,203109-106 ,"269,604.79",
DFID,DFID,25/10/2016,Fund monies to be managed and dispersed by the supplier ,East and Central Africa ,Crown Agents. ,203109-112 ,"69,370.28",
DFID,DFID,21/10/2016,Fund monies to be managed and dispersed by the supplier ,East and Central Africa ,Crown Agents. ,203109-112 ,"280,422.41",
DFID,DFID,20/10/2016,Project delivery costs – supplier services ,Economic Development Division ,Crown Agents. ,203375-101 ,"243,950.05",
DFID,DFID,20/10/2016,Project delivery costs – supplier services ,Economic Development Division ,Crown Agents. ,203375-101 ,"109,557.88",
DFID,DFID,20/10/2016,Project delivery costs – supplier services ,Economic Development Division ,Crown Agents. ,203375-101 ,"160,774.15",
DFID,DFID,24/10/2016,Project delivery costs – supplier services ,Economic Development Division ,Crown Agents. ,203375-101 ,"25,255.00",
DFID,DFID,20/10/2016,Project delivery costs – supplier services ,Asia  Caribbean and Overseas Territories ,Crown Agents. ,202433-109 ,"18,387.00",
DFID,DFID,31/10/2016,Fund monies to be managed and dispersed by the supplier ,West and Southern Africa ,Crown Agents. ,202541-105 ,"177,210.48",
DFID,DFID,20/10/2016,Project delivery costs – supplier services ,West and Southern Africa ,Crown Agents. ,300047-102 ,"5,169.42",
DFID,DFID,19/10/2016,Project delivery costs – supplier services ,West and Southern Africa ,Crown Agents. ,300047-102 ,"36,943.20",
DFID,DFID,03/10/2016,Project delivery costs – supplier services ,West and Southern Africa ,Crown Agents. ,300047-102 ,817.15,
DFID,DFID,27/10/2016,Project delivery costs – supplier services ,West and Southern Africa ,Crown Agents. ,300047-102 ,"7,744.44",
DFID,DFID,24/10/2016,Project delivery costs – supplier services ,West and Southern Africa ,Crown Agents. ,300047-102 ,"58,003.20",
DFID,DFID,13/10/2016,Project delivery costs – supplier services ,East and Central Africa ,Crown Agents. ,204439-103 ,"20,142.00",
DFID,DFID,12/10/2016,Project delivery costs – supplier services ,West and Southern Africa ,Crown Agents. ,203551-102 ,"152,102.50",
DFID,DFID,12/10/2016,Fund monies to be managed and dispersed by the supplier ,West and Southern Africa ,Crown Agents. ,203551-102 ,"1,721,804.79",
DFID,DFID,21/10/2016,Project delivery costs – supplier services ,Asia  Caribbean and Overseas Territories ,Crown Agents. ,203275-102 ,"123,543.04",
DFID,DFID,27/10/2016,Project delivery costs – supplier services ,Asia  Caribbean and Overseas Territories ,Crown Agents. ,203275-102 ,"132,939.29",
DFID,DFID,25/10/2016,Project delivery costs – supplier services ,East and Central Africa ,Crown Agents. ,101630-101 ,652.45,
DFID,DFID,26/10/2016,Aid Programme - Accountable Grant Payments ,East and Central Africa ,Crown Agents. ,205110-103 ,"427,612.00",
DFID,DFID,07/10/2016,Contract & Agency Staff ,Asia  Caribbean and Overseas Territories ,Crown Agents. ,205138-103 ,"1,711.54",
DFID,DFID,25/10/2016,Fund monies to be managed and dispersed by the supplier ,Research and Evidence Division ,Crown Agents. ,204415-101 ,"15,000.00",
DFID,DFID,31/10/2016,Fund monies to be managed and dispersed by the supplier ,Research and Evidence Division ,Crown Agents. ,204415-103 ,"18,200.00",
DFID,DFID,31/10/2016,Fund monies to be managed and dispersed by the supplier ,Research and Evidence Division ,Crown Agents. ,204415-103 ,"34,780.00",
DFID,DFID,31/10/2016,Fund monies to be managed and dispersed by the supplier ,Research and Evidence Division ,Crown Agents. ,204415-103 ,"67,025.00",
DFID,DFID,31/10/2016,Fund monies to be managed and dispersed by the supplier ,Research and Evidence Division ,Crown Agents. ,204415-103 ,"7,200.00",
DFID,DFID,14/10/2016,Fund monies to be managed and dispersed by the supplier ,Research and Evidence Division ,Crown Agents. ,204415-103 ,"214,816.00",
DFID,DFID,31/10/2016,Fund monies to be managed and dispersed by the supplier ,Research and Evidence Division ,Crown Agents. ,204415-103 ,"7,832.00",
DFID,DFID,13/10/2016,Aid Programme - Humanitarian Material Relief Assistance and Services ,Middle East and North Africa Division ,Crown Agents. ,204516-102 ,"19,286.40",
DFID,DFID,28/10/2016,Aid Programme - Humanitarian Material Relief Assistance and Services ,Middle East and North Africa Division ,Crown Agents. ,204516-102 ,"33,330.24",
DFID,DFID,10/10/2016,Fund monies to be managed and dispersed by the supplier ,East and Central Africa ,Crown Agents. ,202946-107 ,"448,913.23",
DFID,DFID,03/10/2016,DFID Purchased Relief Supplies ,West and Southern Africa ,Crown Agents. ,203674-103 ,"27,747.88",
DFID,DFID,03/10/2016,DFID Purchased Relief Supplies ,West and Southern Africa ,Crown Agents. ,203674-103 ,"105,457.26",
DFID,DFID,03/10/2016,DFID Purchased Relief Supplies ,West and Southern Africa ,Crown Agents. ,203674-103 ,"319,563.93",
DFID,DFID,03/10/2016,DFID Purchased Relief Supplies ,West and Southern Africa ,Crown Agents. ,203674-103 ,"751,914.29",
DFID,DFID,04/10/2016,DFID Purchased Relief Supplies ,West and Southern Africa ,Crown Agents. ,203674-103 ,"21,817.00",
DFID,DFID,07/10/2016,DFID Purchased Relief Supplies ,West and Southern Africa ,Crown Agents. ,203674-103 ,"124,777.16",
DFID,DFID,03/10/2016,DFID Purchased Relief Supplies ,West and Southern Africa ,Crown Agents. ,203674-103 ,"772,800.80",
DFID,DFID,12/10/2016,DFID Purchased Relief Supplies ,West and Southern Africa ,Crown Agents. ,203674-103 ,"21,820.92",
DFID,DFID,05/10/2016,DFID Purchased Relief Supplies ,Conflict  Humanitarian  Security & Stabilisation Division ,Crown Agents. ,205038-107 ,"1,172.51",
DFID,DFID,18/10/2016,DFID Purchased Relief Supplies ,Conflict  Humanitarian  Security & Stabilisation Division ,Crown Agents. ,205038-107 ,"10,791.60",
DFID,DFID,18/10/2016,DFID Purchased Relief Supplies ,Conflict  Humanitarian  Security & Stabilisation Division ,Crown Agents. ,205038-107 ,"9,522.00",
DFID,DFID,19/10/2016,Project delivery costs – supplier services ,West and Southern Africa ,Crown Agents. ,202992-102 ,"2,264.47",
DFID,DFID,17/10/2016,Project delivery costs – supplier services ,West and Southern Africa ,Crown Agents. ,202992-102 ,"3,631.30",
DFID,DFID,17/10/2016,Medical Equipment ,West and Southern Africa ,Crown Agents. ,202992-102 ,"237,655.20",
DFID,DFID,17/10/2016,Project delivery costs – supplier services ,West and Southern Africa ,Crown Agents. ,202992-102 ,"6,892.00",
DFID,DFID,19/10/2016,Medical Equipment ,West and Southern Africa ,Crown Agents. ,202992-102 ,"76,904.10",
DFID,DFID,19/10/2016,Project delivery costs – supplier services ,West and Southern Africa ,Crown Agents. ,202992-102 ,"2,230.22",
DFID,DFID,19/10/2016,Medical Equipment ,West and Southern Africa ,Crown Agents. ,202992-102 ,"78,085.25",
DFID,DFID,17/10/2016,Medical Equipment ,West and Southern Africa ,Crown Agents. ,202992-102 ,"52,928.65",
DFID,DFID,17/10/2016,Project delivery costs – supplier services ,West and Southern Africa ,Crown Agents. ,202992-102 ,"1,534.93",
DFID,DFID,17/10/2016,Medical Equipment ,West and Southern Africa ,Crown Agents. ,202992-102 ,"55,282.50",
DFID,DFID,17/10/2016,Project delivery costs – supplier services ,West and Southern Africa ,Crown Agents. ,202992-102 ,"1,603.19",
DFID,DFID,17/10/2016,Medical Equipment ,West and Southern Africa ,Crown Agents. ,202992-102 ,"125,217.15",
DFID,DFID,06/10/2016,Medicines & Drugs ,West and Southern Africa ,Crown Agents. ,202992-102 ,"53,781.48",
DFID,DFID,06/10/2016,Project delivery costs – supplier services ,West and Southern Africa ,Crown Agents. ,202992-102 ,"1,559.66",
DFID,DFID,07/10/2016,Medicines & Drugs ,West and Southern Africa ,Crown Agents. ,202992-102 ,"4,019.55",
DFID,DFID,11/10/2016,Medicines & Drugs ,West and Southern Africa ,Crown Agents. ,202992-102 ,"33,241.23",
DFID,DFID,11/10/2016,Project delivery costs – supplier services ,West and Southern Africa ,Crown Agents. ,202992-102 ,964.00,
DFID,DFID,13/10/2016,Medicines & Drugs ,West and Southern Africa ,Crown Agents. ,202992-102 ,"452,476.04",
DFID,DFID,13/10/2016,Project delivery costs – supplier services ,West and Southern Africa ,Crown Agents. ,202992-102 ,"13,121.81",
DFID,DFID,13/10/2016,Medicines & Drugs ,West and Southern Africa ,Crown Agents. ,202992-102 ,"29,551.97",
DFID,DFID,13/10/2016,Project delivery costs – supplier services ,West and Southern Africa ,Crown Agents. ,202992-102 ,857.01,
DFID,DFID,11/10/2016,Medical Equipment ,West and Southern Africa ,Crown Agents. ,202992-102 ,"25,427.22",
DFID,DFID,11/10/2016,Project delivery costs – supplier services ,West and Southern Africa ,Crown Agents. ,202992-102 ,737.39,
DFID,DFID,11/10/2016,Medical Equipment ,West and Southern Africa ,Crown Agents. ,202992-102 ,"18,427.16",
DFID,DFID,11/10/2016,Project delivery costs – supplier services ,West and Southern Africa ,Crown Agents. ,202992-102 ,534.39,
DFID,DFID,17/10/2016,Project delivery costs – supplier services ,Middle East and North Africa Division ,Crown Agents. ,204267-101 ,"5,163.07",
DFID,DFID,27/10/2016,Project delivery costs – supplier services ,Conflict  Humanitarian  Security & Stabilisation Division ,Crown Agents. ,203815-106 ,"15,475.20",
DFID,DFID,18/10/2016,Project delivery costs – supplier services ,Conflict  Humanitarian  Security & Stabilisation Division ,Crown Agents. ,203815-106 ,"4,177.48",
DFID,DFID,21/10/2016,Fund monies to be managed and dispersed by the supplier ,East and Central Africa ,Crown Agents. ,205068-103 ,"1,379,393.49",
DFID,DFID,18/10/2016,Project delivery costs – supplier services ,West and Southern Africa ,Crown Agents. ,203330-102 ,"169,406.59",
DFID,DFID,11/10/2016,Project delivery costs – supplier services ,West and Southern Africa ,Crown Agents. ,203330-102 ,"215,297.25",
DFID,DFID,21/10/2016,Project delivery costs – supplier services ,Asia  Caribbean and Overseas Territories ,Crown Agents. ,202433-103 ,"1,613.21",
DFID,DFID,21/10/2016,Project delivery costs – supplier services ,Asia  Caribbean and Overseas Territories ,Crown Agents. ,202433-109 ,"11,361.00",
DFID,DFID,21/10/2016,Project delivery costs – supplier services ,Asia  Caribbean and Overseas Territories ,Crown Agents. ,202433-109 ,"14,931.60",
DFID,DFID,14/10/2016,Project delivery costs – supplier services ,Asia  Caribbean and Overseas Territories ,Crown Agents. ,202433-109 ,"19,431.00",
DFID,DFID,05/10/2016,Project delivery costs – supplier services ,Policy Division ,Crown Agents. ,200706-102 ,"10,557.50",
DFID,DFID,04/10/2016,Project delivery costs – supplier services ,Policy Division ,Crown Agents. ,200706-102 ,"25,737.20",
DFID,DFID,13/10/2016,Project delivery costs – supplier services ,East and Central Africa ,Crown Agents. ,204439-103 ,"9,590.40",
DFID,DFID,10/10/2016,Project delivery costs – supplier services ,East and Central Africa ,Crown Agents. ,204439-103 ,"2,893.70",
DFID,DFID,27/10/2016,Project delivery costs – supplier services ,East and Central Africa ,Crown Agents. ,204439-103 ,"12,254.40",
DFID,DFID,20/10/2016,Project delivery costs – supplier services ,Middle East and North Africa Division ,Crown Agents. ,205094-103 ,"11,088.00",
DFID,DFID,05/10/2016,Project delivery costs – supplier services ,Middle East and North Africa Division ,Crown Agents. ,300045-102 ,"10,111.70",
DFID,DFID,04/10/2016,Project delivery costs – supplier services ,Middle East and North Africa Division ,Crown Agents. ,300045-102 ,"45,586.80",
DFID,DFID,06/10/2016,Project delivery costs – supplier services ,Middle East and North Africa Division ,Crown Agents. ,300045-102 ,"2,880.70",
DFID,DFID,07/10/2016,Aid Programme - Humanitarian Material Relief Assistance and Services ,Middle East and North Africa Division ,Crown Agents. ,204968-103 ,"4,109.85",
DFID,DFID,06/10/2016,Aid Programme - Humanitarian Material Relief Assistance and Services ,Middle East and North Africa Division ,Crown Agents. ,204968-103 ,"4,261.95",
DFID,DFID,10/10/2016,Aid Programme - Humanitarian Material Relief Assistance and Services ,Middle East and North Africa Division ,Crown Agents. ,204968-103 ,"1,047.15",
DFID,DFID,11/10/2016,Aid Programme - Humanitarian Material Relief Assistance and Services ,Middle East and North Africa Division ,Crown Agents. ,204968-103 ,"14,478.00",
DFID,DFID,10/10/2016,Aid Programme - Humanitarian Material Relief Assistance and Services ,Middle East and North Africa Division ,Crown Agents. ,204968-103 ,"10,080.00",
DFID,DFID,12/10/2016,Aid Programme - Accountable Grant Payments ,Asia  Caribbean and Overseas Territories ,Crown Agents. ,204623-108 ,"401,579.23",
DFID,DFID,25/10/2016,Project delivery costs – supplier services ,West and Southern Africa ,Crown Agents. ,204902-103 ,"27,216.00",
DFID,DFID,28/10/2016,Project delivery costs – supplier services ,Economic Development Division ,Crown Agents. ,203375-105 ,"6,000.00",
DFID,DFID,13/10/2016,Aid Programme - Accountable Grant Payments ,East and Central Africa ,Crown Agents. ,203961-114 ,806.00,
DFID,DFID,06/10/2016,Aid Programme - Accountable Grant Payments ,East and Central Africa ,Crown Agents. ,203961-114 ,888.26,
DFID,DFID,07/10/2016,Aid Programme - Accountable Grant Payments ,East and Central Africa ,Crown Agents. ,203961-114 ,"1,513.15",
DFID,DFID,07/10/2016,Aid Programme - Accountable Grant Payments ,East and Central Africa ,Crown Agents. ,203961-114 ,"14,968.80",
DFID,DFID,27/10/2016,Aid Programme - Accountable Grant Payments ,East and Central Africa ,Crown Agents. ,203961-114 ,"1,360.80",
DFID,DFID,24/10/2016,Aid Programme - Accountable Grant Payments ,East and Central Africa ,Crown Agents. ,203961-114 ,"14,817.60",
DFID,DFID,17/10/2016,DFID Purchased Relief Supplies ,West and Southern Africa ,Crown Agents. ,104229-102 ,"20,353.46",
DFID,DFID,13/10/2016,DFID Purchased Relief Supplies ,West and Southern Africa ,Crown Agents. ,104229-102 ,620.54,
DFID,DFID,19/10/2016,DFID Purchased Relief Supplies ,West and Southern Africa ,Crown Agents. ,104229-102 ,"5,257.30",
DFID,DFID,19/10/2016,DFID Purchased Relief Supplies ,West and Southern Africa ,Crown Agents. ,104229-102 ,"3,745.56",
DFID,DFID,10/10/2016,Fund monies to be managed and dispersed by the supplier ,East and Central Africa ,Crown Agents. ,203109-112 ,"310,436.26",
DFID,DFID,27/10/2016,Fund monies to be managed and dispersed by the supplier ,East and Central Africa ,Crown Agents. ,203109-112 ,"1,030,057.00",
DFID,DFID,20/10/2016,Project delivery costs – supplier services ,West and Southern Africa ,Crown Agents. ,204902-103 ,"7,776.00",
DFID,DFID,06/10/2016,Project delivery costs – supplier services ,West and Southern Africa ,Crown Agents. ,204902-103 ,"8,572.47",
DFID,DFID,03/10/2016,Project delivery costs – supplier services ,West and Southern Africa ,Crown Agents. ,203674-103 ,"19,320.02",
DFID,DFID,03/10/2016,Project delivery costs – supplier services ,West and Southern Africa ,Crown Agents. ,203674-103 ,693.70,
DFID,DFID,07/10/2016,Project delivery costs – supplier services ,West and Southern Africa ,Crown Agents. ,203674-103 ,"3,119.43",
DFID,DFID,10/10/2016,Project delivery costs – supplier services ,West and Southern Africa ,Crown Agents. ,203674-103 ,"25,460.83",
DFID,DFID,03/10/2016,Project delivery costs – supplier services ,West and Southern Africa ,Crown Agents. ,203674-103 ,"2,636.43",
DFID,DFID,03/10/2016,Project delivery costs – supplier services ,West and Southern Africa ,Crown Agents. ,203674-103 ,"18,797.86",
DFID,DFID,31/10/2016,Aid Programme - Humanitarian Material Relief Assistance and Services ,Middle East and North Africa Division ,Crown Agents. ,204516-103 ,"7,422.08",
DFID,DFID,24/10/2016,Project delivery costs – supplier services ,Asia  Caribbean and Overseas Territories ,Supplier Name withheld ,202112-103 ,"1,027.99",
DFID,DFID,24/10/2016,Project delivery costs – supplier services ,Asia  Caribbean and Overseas Territories ,Supplier Name withheld ,202112-103 ,"7,133.69",
DFID,DFID,31/10/2016,Project delivery costs – supplier services ,Asia  Caribbean and Overseas Territories ,Supplier Name withheld ,202112-103 ,"2,370.19",
DFID,DFID,31/10/2016,Project delivery costs – supplier services ,Asia  Caribbean and Overseas Territories ,Supplier Name withheld ,202112-103 ,"1,734.42",
DFID,DFID,31/10/2016,Project delivery costs – supplier services ,Asia  Caribbean and Overseas Territories ,Supplier Name withheld ,202112-103 ,"5,725.34",
DFID,DFID,31/10/2016,Project delivery costs – supplier services ,Asia  Caribbean and Overseas Territories ,Supplier Name withheld ,202112-103 ,"3,309.90",
DFID,DFID,31/10/2016,Project delivery costs – supplier services ,Asia  Caribbean and Overseas Territories ,Supplier Name withheld ,202112-103 ,"9,504.80",
DFID,DFID,28/10/2016,Project delivery costs – supplier services ,Asia  Caribbean and Overseas Territories ,Supplier Name withheld ,202112-103 ,892.02,
DFID,DFID,27/10/2016,Project delivery costs – supplier services ,Asia  Caribbean and Overseas Territories ,Supplier Name withheld ,202112-103 ,"4,627.23",
DFID,DFID,31/10/2016,Project delivery costs – supplier services ,Asia  Caribbean and Overseas Territories ,Supplier Name withheld ,202112-103 ,"6,018.78",
DFID,DFID,31/10/2016,Project delivery costs – supplier services ,Asia  Caribbean and Overseas Territories ,Supplier Name withheld ,202112-103 ,775.27,
DFID,DFID,26/10/2016,Fund monies to be managed and dispersed by the supplier ,Economic Development Division ,Crown Agents. ,202089-101 ,"69,042.89",
DFID,DFID,24/10/2016,Fund monies to be managed and dispersed by the supplier ,Economic Development Division ,Crown Agents. ,202089-102 ,"32,573.16",
DFID,DFID,03/10/2016,DFID Purchased Relief Supplies ,East and Central Africa ,Crown Agents. ,202900-107 ,"4,723.71",
DFID,DFID,21/10/2016,Fund monies to be managed and dispersed by the supplier ,East and Central Africa ,Crown Agents. ,205068-104,"62,603.22",
DFID,DFID,03/10/2016,Aid Programme - Humanitarian Material Relief Assistance and Services ,Asia  Caribbean and Overseas Territories ,Crown Agents. ,205028-101 ,"26,083.20",
DFID,DFID,28/10/2016,Project delivery costs – supplier services ,West and Southern Africa ,Crown Agents. ,202463-103 ,"92,705.36",
DFID,DFID,13/10/2016,Aid Programme - Accountable Grant Payments ,East and Central Africa ,Crown Agents. ,203961-114 ,780.00,
DFID,DFID,13/10/2016,Project delivery costs – supplier services ,East and Central Africa ,Crown Agents. ,205256-104 ,"1,000.05",
DFID,DFID,12/10/2016,Project delivery costs – supplier services ,West and Southern Africa ,Crown Agents. ,203551-102 ,"59,914.18",
DFID,DFID,06/10/2016,Medical Equipment ,West and Southern Africa ,Crown Agents. ,202992-102 ,925.99,
DFID,DFID,26/10/2016,Medical Equipment ,West and Southern Africa ,Crown Agents. ,202992-102 ,555.50,
DFID,DFID,26/10/2016,Medical Equipment ,West and Southern Africa ,Crown Agents. ,202992-102 ,"15,771.88",
DFID,DFID,26/10/2016,Medical Equipment ,West and Southern Africa ,Crown Agents. ,202992-102 ,"19,452.81",
DFID,DFID,26/10/2016,Medical Equipment ,West and Southern Africa ,Crown Agents. ,202992-102 ,"23,790.95",
DFID,DFID,26/10/2016,Medical Equipment ,West and Southern Africa ,Crown Agents. ,202992-102 ,"24,940.41",
DFID,DFID,26/10/2016,Medical Equipment ,West and Southern Africa ,Crown Agents. ,202992-102 ,"65,552.21",
DFID,DFID,26/10/2016,Medical Equipment ,West and Southern Africa ,Crown Agents. ,202992-102 ,"5,257.29",
DFID,DFID,26/10/2016,Medical Equipment ,West and Southern Africa ,Crown Agents. ,202992-102 ,"1,166.00",
DFID,DFID,26/10/2016,Medical Equipment ,West and Southern Africa ,Crown Agents. ,202992-102 ,"10,514.59",
DFID,DFID,26/10/2016,Medical Equipment ,West and Southern Africa ,Crown Agents. ,202992-102 ,"14,021.84",
DFID,DFID,26/10/2016,Medical Equipment ,West and Southern Africa ,Crown Agents. ,202992-102 ,"2,637.34",
DFID,DFID,26/10/2016,Medical Equipment ,West and Southern Africa ,Crown Agents. ,202992-102 ,"8,054.28",
DFID,DFID,26/10/2016,Medical Equipment ,West and Southern Africa ,Crown Agents. ,202992-102 ,"8,166.00",
DFID,DFID,25/10/2016,DFID Purchased Relief Supplies ,West and Southern Africa ,Crown Agents. ,202992-102 ,"1,941.19",
DFID,DFID,19/10/2016,Project delivery costs – supplier services ,Conflict  Humanitarian  Security & Stabilisation Division ,Crown Agents. ,203416-102 ,"7,115.40",
DFID,DFID,19/10/2016,Project delivery costs – supplier services ,Conflict  Humanitarian  Security & Stabilisation Division ,Crown Agents. ,203416-102 ,734.40,
DFID,DFID,18/10/2016,Project delivery costs – supplier services ,Conflict  Humanitarian  Security & Stabilisation Division ,Crown Agents. ,203416-102 ,"41,281.46",
DFID,DFID,18/10/2016,Project delivery costs – supplier services ,Conflict  Humanitarian  Security & Stabilisation Division ,Crown Agents. ,203416-102 ,"58,037.98",
DFID,DFID,24/10/2016,Project delivery costs – supplier services ,Conflict  Humanitarian  Security & Stabilisation Division ,Crown Agents. ,202741-106 ,"182,131.20",
DFID,DFID,21/10/2016,Project delivery costs – supplier services ,Conflict  Humanitarian  Security & Stabilisation Division ,Crown Agents. ,202741-106 ,"392,113.20",
DFID,DFID,13/10/2016,Aid Programme - Humanitarian Material Relief Assistance and Services ,Conflict  Humanitarian  Security & Stabilisation Division ,Crown Agents. ,202741-107 ,"12,093.60",
DFID,DFID,20/10/2016,Aid Programme - Humanitarian Material Relief Assistance and Services ,Conflict  Humanitarian  Security & Stabilisation Division ,Crown Agents. ,202741-107 ,"7,058.40",
DFID,DFID,10/10/2016,Aid Programme - Humanitarian Material Relief Assistance and Services ,Conflict  Humanitarian  Security & Stabilisation Division ,Crown Agents. ,202741-107 ,"4,762.80",
DFID,DFID,10/10/2016,Aid Programme - Humanitarian Material Relief Assistance and Services ,Conflict  Humanitarian  Security & Stabilisation Division ,Crown Agents. ,202878-103 ,"3,659.40",
DFID,DFID,20/10/2016,Aid Programme - Humanitarian Material Relief Assistance and Services ,Conflict  Humanitarian  Security & Stabilisation Division ,Crown Agents. ,202878-103 ,"2,088.00",
DFID,DFID,19/10/2016,Aid Programme - Humanitarian Material Relief Assistance and Services ,Conflict  Humanitarian  Security & Stabilisation Division ,Crown Agents. ,202878-103 ,"222,243.49",
DFID,DFID,13/10/2016,Aid Programme - Humanitarian Material Relief Assistance and Services ,Conflict  Humanitarian  Security & Stabilisation Division ,Crown Agents. ,202878-103 ,"1,468.80",
DFID,DFID,19/10/2016,Aid Programme - Humanitarian Material Relief Assistance and Services ,Conflict  Humanitarian  Security & Stabilisation Division ,Crown Agents. ,202878-103 ,"6,001.05",
DFID,DFID,03/10/2016,Aid Programme - Humanitarian Material Relief Assistance and Services ,Conflict  Humanitarian  Security & Stabilisation Division ,Crown Agents. ,202878-103 ,"8,241.14",
DFID,DFID,03/10/2016,Aid Programme - Humanitarian Material Relief Assistance and Services ,Conflict  Humanitarian  Security & Stabilisation Division ,Crown Agents. ,202878-103 ,"45,194.28",
DFID,DFID,10/10/2016,Project delivery costs – supplier services ,East and Central Africa ,Crown Agents. ,202594-101 ,"1,247.25",
DFID,DFID,14/10/2016,Project delivery costs – supplier services ,West and Southern Africa ,Crown Agents. ,205122-101 ,755.70,
DFID,DFID,31/10/2016,Project delivery costs – supplier services ,West and Southern Africa ,Crown Agents. ,205122-101 ,"17,409.60",
DFID,DFID,14/10/2016,Project delivery costs – supplier services ,East and Central Africa ,Crown Agents. ,205256-104 ,"1,983.15",
DFID,DFID,26/10/2016,Project delivery costs – supplier services ,East and Central Africa ,Crown Agents. ,205256-104 ,"11,664.00",
DFID,DFID,20/10/2016,DFID Purchased Relief Supplies ,East and Central Africa ,Crown Agents. ,205256-108 ,"34,565.71",
DFID,DFID,14/10/2016,Aid Programme - Humanitarian Material Relief Assistance and Services ,East and Central Africa ,Crown Agents. ,202890-104 ,"1,053.40",
DFID,DFID,27/10/2016,Project delivery costs – supplier services ,Middle East and North Africa Division ,Crown Agents. ,204016-103 ,"11,040.00",
DFID,DFID,12/10/2016,Project delivery costs – supplier services ,Middle East and North Africa Division ,Crown Agents. ,204016-103 ,"7,200.00",
DFID,DFID,12/10/2016,Project delivery costs – supplier services ,Middle East and North Africa Division ,Crown Agents. ,204016-103 ,"6,532.11",
DFID,DFID,17/10/2016,Project delivery costs – supplier services ,Middle East and North Africa Division ,Crown Agents. ,204016-103 ,"9,211.20",
DFID,DFID,03/10/2016,Project delivery costs – supplier services ,Middle East and North Africa Division ,Crown Agents. ,204016-103 ,"34,108.80",
DFID,DFID,14/10/2016,Project delivery costs – supplier services ,Middle East and North Africa Division ,Crown Agents. ,204267-101 ,"14,763.00",
DFID,DFID,31/10/2016,Aid Programme - Accountable Grant Payments ,West and Southern Africa ,CONCERN WORLDWIDE ,300308-101 ,"1,401,769.00",
DFID,DFID,14/10/2016,Aid Programme - Accountable Grant Payments ,East and Central Africa ,CONCERN WORLDWIDE ,202619-114 ,"182,745.94",
DFID,DFID,20/10/2016,Computer Consumables ,Business Solutions Division Level ,COMPUTACENTER (UK) LTD ,200004-102 ,"6,996.60",
DFID,DFID,31/10/2016,Aid Programme - Accountable Grant Payments ,Policy Division ,SEND A COW ,203559-155 ,"69,505.55",
DFID,DFID,10/10/2016,Aid Programme - Partnership Programme Arrangements ,Policy Division ,Conciliation Resources ,202702-101 ,"250,000.00",
DFID,DFID,24/10/2016,Aid Programme - Partnership Programme Arrangements ,Policy Division ,Conciliation Resources ,202702-101 ,"1,934.00",
DFID,DFID,17/10/2016,Aid Programme - Accountable Grant Payments ,West and Southern Africa ,CAMFED ,203292-101 ,"368,491.00",
DFID,DFID,31/10/2016,Aid Programme - Accountable Grant Payments ,Policy Division ,CARE INTERNATIONAL UK ,203559-139 ,"82,189.69",
DFID,DFID,07/10/2016,Aid Programme - Accountable Grant Payments ,West and Southern Africa ,CARE INTERNATIONAL UK ,205040-101 ,"1,463,731.14",
DFID,DFID,07/10/2016,Aid Programme - Accountable Grant Payments ,West and Southern Africa ,CARE INTERNATIONAL UK ,205040-101 ,"9,152,513.99",
DFID,DFID,04/10/2016,Aid Programme - Accountable Grant Payments ,Asia  Caribbean and Overseas Territories ,CARE INTERNATIONAL UK ,205138-104 ,"1,402,104.23",
DFID,DFID,24/10/2016,Aid Programme - Accountable Grant Payments ,Asia  Caribbean and Overseas Territories ,CARE INTERNATIONAL UK ,203274-113 ,"150,000.00",
DFID,DFID,18/10/2016,Aid Programme - Accountable Grant Payments ,Research and Evidence Division ,CENTRE FOR ECONOMIC POLICY RESEARCH ,202835-104 ,"1,118,801.04",
DFID,DFID,18/10/2016,Aid Programme - Accountable Grant Payments ,Research and Evidence Division ,CENTRE FOR ECONOMIC POLICY RESEARCH ,202835-104 ,"62,025.18",
DFID,DFID,18/10/2016,Aid Programme - Accountable Grant Payments ,Research and Evidence Division ,CENTRE FOR ECONOMIC POLICY RESEARCH ,202835-104 ,"16,549.80",
DFID,DFID,06/10/2016,Aid Programme - Core contributions ,Research and Evidence Division ,CABI ,202748-103 ,"992,000.00",
DFID,DFID,24/10/2016,Aid Programme - Core contributions ,Research and Evidence Division ,CABI ,205271-101 ,"1,933,344.00",
DFID,DFID,04/10/2016,Property rates ,Group Operations ,CITY OF WESTMINSTER ,203717-101 ,"128,216.00",One tenth of the 2016/17 Whitehall headquarters rateable value (October instalment)
DFID,DFID,17/10/2016,Training - Course Fees ,Human Resources ,CIPD ,100266-106 ,"2,220.00",
DFID,DFID,24/10/2016,DFID Purchased Relief Supplies ,East and Central Africa ,CHARLES KENDALL & PARTNERS LIMITED (PROCUREMENT) ,202874-104 ,"6,861.50",
DFID,DFID,24/10/2016,Project delivery costs – supplier services ,East and Central Africa ,CHARLES KENDALL & PARTNERS LIMITED (PROCUREMENT) ,202874-104 ,"3,775.85",
DFID,DFID,24/10/2016,DFID Purchased Relief Supplies ,West and Southern Africa ,CHARLES KENDALL & PARTNERS LIMITED (PROCUREMENT) ,202214-106 ,"89,000.00",
DFID,DFID,06/10/2016,Storage & Distribution costs ,West and Southern Africa ,CROWN RELOCATIONS  UK ,101622-106 ,834.00,
DFID,DFID,27/10/2016,Storage & Distribution costs ,Asia  Caribbean and Overseas Territories ,CROWN RELOCATIONS  UK ,101603-101 ,630.00,
DFID,DFID,10/10/2016,Relocation costs ,International Relations Division ,CROWN RELOCATIONS  UK ,205081-101 ,990.00,
DFID,DFID,06/10/2016,Storage & Distribution costs ,Asia  Caribbean and Overseas Territories ,CROWN RELOCATIONS  UK ,101624-101 ,"1,080.00",
DFID,DFID,06/10/2016,Storage & Distribution costs ,East and Central Africa ,CROWN RELOCATIONS  UK ,101634-101 ,825.00,
DFID,DFID,22/10/2016,Storage & Distribution costs ,West and Southern Africa ,CROWN RELOCATIONS  UK ,101618-101 ,843.20,
DFID,DFID,18/10/2016,Aid Programme - Partnership Programme Arrangements ,Policy Division ,Supplier Name withheld ,202615-101 ,"808,317.00",
DFID,DFID,26/10/2016,Aid Programme - Accountable Grant Payments ,East and Central Africa ,Supplier Name withheld ,200658-102 ,"287,500.00",
DFID,DFID,13/10/2016,FCO shared service charges ,Human Resources ,CABINET OFFICE ,100269-151 ,"2,548.08",
DFID,DFID,27/10/2016,Training Providers/Facilitation Services ,Human Resources ,Capita  Business Services ,100269-155 ,"3,456.00",
DFID,DFID,27/10/2016,Training Providers/Facilitation Services ,Human Resources ,Capita  Business Services ,100269-155 ,"3,456.00",
DFID,DFID,04/10/2016,Training Providers/Facilitation Services ,Human Resources ,Capita  Business Services ,100269-155 ,"2,639.35",
DFID,DFID,19/10/2016,Training Providers/Facilitation Services ,Human Resources ,Capita  Business Services ,100269-155 ,"3,456.00",
DFID,DFID,17/10/2016,Training - Course Fees ,Human Resources ,Capita  Business Services ,100269-155 ,"2,606.71",
DFID,DFID,04/10/2016,Training - Course Fees ,Human Resources ,Capita  Business Services ,100266-106 ,"3,700.00",
DFID,DFID,03/10/2016,Training Providers/Facilitation Services ,Asia  Caribbean and Overseas Territories ,Capita  Business Services ,101624-101 ,"10,905.80",
DFID,DFID,04/10/2016,Training Providers/Facilitation Services ,Asia  Caribbean and Overseas Territories ,Capita  Business Services ,101624-101 ,"2,810.17",
DFID,DFID,14/10/2016,Training Providers/Facilitation Services ,Finance and Corporate Performance Division ,Capita  Business Services ,204846-101 ,"9,276.88",
DFID,DFID,31/10/2016,Training Providers/Facilitation Services ,East and Central Africa ,Capita  Business Services ,101634-101 ,"3,040.35",
DFID,DFID,20/10/2016,Training - Course Fees ,East and Central Africa ,Capita  Business Services ,101612-101 ,"10,905.80",
DFID,DFID,21/10/2016,Training - Course Fees ,East and Central Africa ,Capita  Business Services ,101612-101 ,"2,639.35",
DFID,DFID,24/10/2016,Aid Programme - Accountable Grant Payments ,West and Southern Africa ,CONCERN WORLDWIDE ,203445-104 ,"1,940,625.00",
DFID,DFID,24/10/2016,Project delivery costs – supplier services ,West and Southern Africa ,MINISTRY OF DEFENCE ,203627-106 ,"20,796.01",
DFID,DFID,31/10/2016,Project delivery costs – supplier services ,Middle East and North Africa Division ,DEVELOPMENT INITIATIVES ,204516-108 ,"54,030.00",
DFID,DFID,20/10/2016,Research and development costs - supplier services ,Research and Evidence Division ,DEVELOPMENT FINANCE INTERNATIONAL LTD ,204584-128 ,"12,175.05",
DFID,DFID,17/10/2016,Project delivery costs – supplier services ,International Relations Division ,DIPLOMATIC MISSION SUPPLIES ,205081-101 ,"3,843.50",
DFID,DFID,13/10/2016,Training Providers/Facilitation Services ,Regional Directorate ,DYSLEXIA ACTION  (LONDON) ,204832-101 ,960.00,
DFID,DFID,05/10/2016,Aid Programme - Partnership Programme Arrangements ,Policy Division ,ETHICAL TRADING INITIATIVE ,202620-101 ,"100,442.50",
DFID,DFID,03/10/2016,Project delivery costs – supplier services ,West and Southern Africa ,COFFEY INTERNATIONAL DEVELOPMENT LTD ,203429-105 ,"5,100.00",
DFID,DFID,26/10/2016,Project delivery costs – supplier services ,West and Southern Africa ,COFFEY INTERNATIONAL DEVELOPMENT LTD ,203429-105 ,"5,100.00",
DFID,DFID,27/10/2016,Project delivery costs – supplier services ,West and Southern Africa ,COFFEY INTERNATIONAL DEVELOPMENT LTD ,203429-105 ,"116,410.00",
DFID,DFID,24/10/2016,Project delivery costs – supplier services ,Asia  Caribbean and Overseas Territories ,COFFEY INTERNATIONAL DEVELOPMENT LTD ,204619-109 ,"36,868.00",
DFID,DFID,28/10/2016,Project delivery costs – supplier services ,Asia  Caribbean and Overseas Territories ,COFFEY INTERNATIONAL DEVELOPMENT LTD ,202368-102 ,"29,799.96",
DFID,DFID,31/10/2016,Project delivery costs – supplier services ,Asia  Caribbean and Overseas Territories ,COFFEY INTERNATIONAL DEVELOPMENT LTD ,202368-102 ,"775,524.00",
DFID,DFID,10/10/2016,Project delivery costs – supplier services ,Asia  Caribbean and Overseas Territories ,COFFEY INTERNATIONAL DEVELOPMENT LTD ,202368-102 ,"27,215.37",
DFID,DFID,03/10/2016,Project delivery costs – supplier services ,Asia  Caribbean and Overseas Territories ,COFFEY INTERNATIONAL DEVELOPMENT LTD ,202368-102 ,"196,534.00",
DFID,DFID,21/10/2016,Project delivery costs – supplier services ,East and Central Africa ,COFFEY INTERNATIONAL DEVELOPMENT LTD ,200498-106 ,"34,249.65",
DFID,DFID,07/10/2016,Project delivery costs – supplier services ,Policy Division ,COFFEY INTERNATIONAL DEVELOPMENT LTD ,202035-101 ,"34,215.73",
DFID,DFID,07/10/2016,Project delivery costs – supplier services ,Policy Division ,COFFEY INTERNATIONAL DEVELOPMENT LTD ,202194-102 ,"3,565.81",
DFID,DFID,03/10/2016,Project delivery costs – supplier services ,West and Southern Africa ,COFFEY INTERNATIONAL DEVELOPMENT LTD ,104190-109 ,"4,831.63",
DFID,DFID,27/10/2016,Project delivery costs – supplier services ,Asia  Caribbean and Overseas Territories ,COFFEY INTERNATIONAL DEVELOPMENT LTD ,202495-112 ,"3,831.92",
DFID,DFID,04/10/2016,Project delivery costs – supplier services ,West and Southern Africa ,COFFEY INTERNATIONAL DEVELOPMENT LTD ,201857-104 ,"16,320.00",
DFID,DFID,03/10/2016,Project delivery costs – supplier services ,West and Southern Africa ,COFFEY INTERNATIONAL DEVELOPMENT LTD ,201857-104 ,"3,143.60",
DFID,DFID,20/10/2016,Project delivery costs – supplier services ,Policy Division ,COFFEY INTERNATIONAL DEVELOPMENT LTD ,202372-104 ,"210,022.16",
DFID,DFID,03/10/2016,Project delivery costs – supplier services ,Asia  Caribbean and Overseas Territories ,COFFEY INTERNATIONAL DEVELOPMENT LTD ,205138-103 ,"4,930.24",
DFID,DFID,24/10/2016,Project delivery costs – supplier services ,Asia  Caribbean and Overseas Territories ,COFFEY INTERNATIONAL DEVELOPMENT LTD ,205138-103 ,"6,250.00",
DFID,DFID,07/10/2016,Aid Programme - Accountable Grant Payments ,Research and Evidence Division ,ECONOMIC AND SOCIAL RESEARCH COUNCIL ,202168-105 ,"8,333.33",
DFID,DFID,07/10/2016,Aid Programme - Strategic Grant Arrangement payments ,Research and Evidence Division ,ECONOMIC AND SOCIAL RESEARCH COUNCIL ,203545-104 ,"6,616.54",
DFID,DFID,11/10/2016,Aid Programme - Strategic Grant Arrangement payments ,Research and Evidence Division ,ECONOMIC AND SOCIAL RESEARCH COUNCIL ,203545-104 ,"464,145.20",
DFID,DFID,07/10/2016,Aid Programme - Accountable Grant Payments ,Research and Evidence Division ,ECONOMIC AND SOCIAL RESEARCH COUNCIL ,204324-102 ,"10,156.25",
DFID,DFID,28/10/2016,Aid Programme - Accountable Grant Payments ,Policy Division ,FARM-Africa ,203559-103 ,"29,324.00",
DFID,DFID,07/10/2016,Aid Programme - Accountable Grant Payments ,Asia  Caribbean and Overseas Territories ,FACULTY OF PUBLIC HEALTH MEDECI ,203224-103 ,"17,429.00",
DFID,DFID,14/10/2016,Training Providers/Facilitation Services ,Research and Evidence Division ,MARZIA FONTANA ,202331-101 ,939.20,
DFID,DFID,17/10/2016,Computer software maintenance ,Business Solutions Division Level ,FCO SERVICES ,200002-165 ,"1,452.31",
DFID,DFID,10/10/2016,Postage Costs ,Group Operations ,FCO SERVICES ,203717-101 ,"1,330.48",
DFID,DFID,27/10/2016,Project delivery costs – supplier services ,Asia  Caribbean and Overseas Territories ,PALLADIUM ,204613-101 ,"81,266.80",
DFID,DFID,19/10/2016,Project delivery costs – supplier services ,Policy Division ,PALLADIUM ,202745-104 ,"652,592.15",
DFID,DFID,28/10/2016,Project delivery costs – supplier services ,East and Central Africa ,PALLADIUM ,204809-102 ,"108,792.58",
DFID,DFID,06/10/2016,Project delivery costs – supplier services ,East and Central Africa ,PALLADIUM ,204809-102 ,"105,994.51",
DFID,DFID,31/10/2016,Project delivery costs – supplier services ,East and Central Africa ,PALLADIUM ,203539-102 ,"145,867.17",
DFID,DFID,31/10/2016,Fund monies to be managed and dispersed by the supplier ,East and Central Africa ,PALLADIUM ,203539-102 ,"277,844.11",
DFID,DFID,10/10/2016,Project delivery costs – supplier services ,East and Central Africa ,PALLADIUM ,202596-108 ,"12,496.37",
DFID,DFID,03/10/2016,Project delivery costs – supplier services ,East and Central Africa ,PALLADIUM ,202900-108 ,"3,082.90",
DFID,DFID,05/10/2016,Project delivery costs – supplier services ,West and Southern Africa ,PALLADIUM ,203429-103 ,"281,019.72",
DFID,DFID,05/10/2016,Project delivery costs – supplier services ,West and Southern Africa ,PALLADIUM ,203429-103 ,"5,000.00",
DFID,DFID,21/10/2016,Project delivery costs – supplier services ,Policy Division ,PALLADIUM ,201724-155 ,"70,010.90",
DFID,DFID,05/10/2016,Project delivery costs – supplier services ,Asia  Caribbean and Overseas Territories ,PALLADIUM ,201851-101 ,"213,550.13",
DFID,DFID,14/10/2016,Project delivery costs – supplier services ,Asia  Caribbean and Overseas Territories ,PALLADIUM ,201851-101 ,"163,208.03",
DFID,DFID,19/10/2016,Project delivery costs – supplier services ,Asia  Caribbean and Overseas Territories ,PALLADIUM ,201851-101 ,"146,588.81",
DFID,DFID,26/10/2016,Project delivery costs – supplier services ,East and Central Africa ,PALLADIUM ,204012-106 ,"214,875.59",
DFID,DFID,13/10/2016,Project delivery costs – supplier services ,West and Southern Africa ,PALLADIUM ,204822-102 ,"1,178,211.15",
DFID,DFID,03/10/2016,Project delivery costs – supplier services ,West and Southern Africa ,PALLADIUM ,204822-102 ,"275,785.24",
DFID,DFID,21/10/2016,Project delivery costs – supplier services ,West and Southern Africa ,PALLADIUM ,202352-102 ,"218,999.77",
DFID,DFID,26/10/2016,Project delivery costs – supplier services ,West and Southern Africa ,PALLADIUM ,202370-102 ,"624,845.44",
DFID,DFID,19/10/2016,Project delivery costs – supplier services ,West and Southern Africa ,PALLADIUM ,202370-102 ,"590,955.16",
DFID,DFID,07/10/2016,Project delivery costs – supplier services ,West and Southern Africa ,PALLADIUM ,202370-102 ,"609,526.74",
DFID,DFID,07/10/2016,Project delivery costs – supplier services ,West and Southern Africa ,PALLADIUM ,202098-101 ,"534,363.46",
DFID,DFID,13/10/2016,Aid Programme - Accountable Grant Payments ,Research and Evidence Division ,GVEP INTERNATIONAL LTD ,201879-105 ,"187,382.76",
DFID,DFID,18/10/2016,Training - Course Fees ,Human Resources ,HM TREASURY VOTES CASH ACCOUNT ,100269-155 ,"8,288.63",
DFID,DFID,24/10/2016,Aid Programme - Accountable Grant Payments ,Asia  Caribbean and Overseas Territories ,Supplier Name withheld ,203748-101 ,"387,537.37",
DFID,DFID,07/10/2016,Project delivery costs – supplier services ,Conflict  Humanitarian  Security & Stabilisation Division ,THE HALO TRUST ,203243-119 ,"122,301.00",
DFID,DFID,27/10/2016,Project delivery costs – supplier services ,Asia  Caribbean and Overseas Territories ,MARY HOBLEY & ASSOCIATES LTD ,203764-105 ,"14,567.87",
DFID,DFID,31/10/2016,Project delivery costs – supplier services ,West and Southern Africa ,HEALTH PARTNERS INTERNATIONAL ,202694-101 ,"284,452.20",
DFID,DFID,31/10/2016,Project delivery costs – supplier services ,Research and Evidence Division ,HTSPE LTD ,203193-101 ,"7,516.54",
DFID,DFID,31/10/2016,Project delivery costs – supplier services ,East and Central Africa ,HTSPE LTD ,201575-107 ,"24,357.50",
DFID,DFID,20/10/2016,Project delivery costs – supplier services ,Asia  Caribbean and Overseas Territories ,HTSPE LTD ,203764-105 ,"11,610.99",
DFID,DFID,25/10/2016,Project delivery costs – supplier services ,Asia  Caribbean and Overseas Territories ,HTSPE LTD ,202491-102 ,"104,312.12",
DFID,DFID,25/10/2016,Aid Programme - Challenge Fund payments ,Asia  Caribbean and Overseas Territories ,HTSPE LTD ,202491-106 ,"35,543.84",
DFID,DFID,28/10/2016,Aid Programme - Challenge Fund payments ,Asia  Caribbean and Overseas Territories ,HTSPE LTD ,202491-106 ,"136,456.68",
DFID,DFID,18/10/2016,Project delivery costs – supplier services ,Policy Division ,HTSPE LTD ,204789-102 ,"11,799.00",
DFID,DFID,21/10/2016,Project delivery costs – supplier services ,East and Central Africa ,HTSPE LTD ,203574-103 ,"17,574.96",
DFID,DFID,21/10/2016,Project delivery costs – supplier services ,East and Central Africa ,HTSPE LTD ,203574-109 ,"2,347.50",
DFID,DFID,21/10/2016,Project delivery costs – supplier services ,East and Central Africa ,HTSPE LTD ,203574-112 ,"41,821.41",
DFID,DFID,19/10/2016,Project delivery costs – supplier services ,Research and Evidence Division ,HTSPE LTD ,203804-107 ,"38,252.59",
DFID,DFID,03/10/2016,Project delivery costs – supplier services ,East and Central Africa ,HTSPE LTD ,203595-101 ,"42,980.20",
DFID,DFID,07/10/2016,Aid Programme - Humanitarian Material Relief Assistance and Services ,Conflict  Humanitarian  Security & Stabilisation Division ,HANDICAP INTERNATIONAL UK ,202878-103 ,"18,912.00",
DFID,DFID,20/10/2016,Aid Programme - Accountable Grant Payments ,Middle East and North Africa Division ,HANDICAP INTERNATIONAL UK ,300229-101 ,"438,619.00",
DFID,DFID,04/10/2016,Contract & Agency Staff ,Business Solutions Division Level ,Hays Specialist Recruitment Ltd ,200005-116 ,"1,248.00",
DFID,DFID,07/10/2016,Contract & Agency Staff ,Group Operations ,Hays Specialist Recruitment Ltd ,100161-101 ,"1,455.72",
DFID,DFID,13/10/2016,Contract & Agency Staff ,Finance and Corporate Performance Division ,Hays Specialist Recruitment Ltd ,100201-101 ,892.92,
DFID,DFID,20/10/2016,Contract & Agency Staff ,Finance and Corporate Performance Division ,Hays Specialist Recruitment Ltd ,100201-101 ,892.92,
DFID,DFID,06/10/2016,Contract & Agency Staff ,Finance and Corporate Performance Division ,Hays Specialist Recruitment Ltd ,100201-101 ,714.34,
DFID,DFID,05/10/2016,Contract & Agency Staff ,Finance and Corporate Performance Division ,Hays Specialist Recruitment Ltd ,100201-101 ,535.75,
DFID,DFID,13/10/2016,Contract & Agency Staff ,Finance and Corporate Performance Division ,Hays Specialist Recruitment Ltd ,100201-101 ,701.21,
DFID,DFID,20/10/2016,Contract & Agency Staff ,Finance and Corporate Performance Division ,Hays Specialist Recruitment Ltd ,100201-101 ,"1,455.72",
DFID,DFID,20/10/2016,Contract & Agency Staff ,Finance and Corporate Performance Division ,Hays Specialist Recruitment Ltd ,100201-101 ,"1,310.15",
DFID,DFID,06/10/2016,Contract & Agency Staff ,Finance and Corporate Performance Division ,HUDSON GLOBAL RESOURCES LTD ,100201-101 ,"6,368.40",
DFID,DFID,04/10/2016,Contract & Agency Staff ,Human Resources ,HUDSON GLOBAL RESOURCES LTD ,100261-101 ,"3,774.43",
DFID,DFID,04/10/2016,Contract & Agency Staff ,Human Resources ,HUDSON GLOBAL RESOURCES LTD ,100261-101 ,"3,409.39",
DFID,DFID,31/10/2016,Project delivery costs – supplier services ,Asia  Caribbean and Overseas Territories ,HOME OFFICE ,203274-101 ,"17,608.50",
DFID,DFID,17/10/2016,Aid Programme - Partnership Programme Arrangements ,Policy Division ,International Planned Parent ,114146-101 ,"2,150,000.00",
DFID,DFID,17/10/2016,Research and development costs - supplier services ,Research and Evidence Division ,INASP ,203778-106 ,"374,870.68",
DFID,DFID,11/10/2016,Aid Programme - Partnership Programme Arrangements ,Policy Division ,INTERNATIONAL ALERT ,202687-101 ,"434,790.00",
DFID,DFID,19/10/2016,Travel - Subsistence ,Non-Departmental Public Body ,INLAND REVENUE ,204873-102 ,"3,252.77",
DFID,DFID,21/10/2016,Project delivery costs – supplier services ,Policy Division ,INTERN DEVEL EDUC ASSOC OF SCOTLAND ,201469-105 ,"130,428.00",
DFID,DFID,10/10/2016,Aid Programme - Voluntary contributions ,Asia  Caribbean and Overseas Territories ,INTER AMERICAN DEVELOPMENT BANK ,203643-102 ,"1,100,000.00",
DFID,DFID,25/10/2016,Aid Programme - Humanitarian Material Relief Assistance and Services ,Asia  Caribbean and Overseas Territories ,INTERNATIONAL RESCUE COMMITTEE UK ,204603-105 ,"739,374.00",
DFID,DFID,25/10/2016,Aid Programme - Accountable Grant Payments ,Asia  Caribbean and Overseas Territories ,INTERNATIONAL RESCUE COMMITTEE UK ,204603-116 ,"246,458.00",
DFID,DFID,26/10/2016,Aid Programme - Accountable Grant Payments ,Asia  Caribbean and Overseas Territories ,INTERNATIONAL RESCUE COMMITTEE UK ,203688-110 ,"275,304.00",
DFID,DFID,26/10/2016,Aid Programme - Accountable Grant Payments ,West and Southern Africa ,INTERNATIONAL RESCUE COMMITTEE UK ,202909-101 ,"96,595.00",
DFID,DFID,26/10/2016,Aid Programme - Trust Funds contributions ,Economic Development Division ,IBRD HSBC T ,203331-101 ,"12,000,000.00",
DFID,DFID,27/10/2016,Aid Programme - Trust Funds contributions ,Asia  Caribbean and Overseas Territories ,IBRD HSBC T ,202495-104 ,"1,141,887.00",
DFID,DFID,27/10/2016,Aid Programme - Trust Funds contributions ,Asia  Caribbean and Overseas Territories ,IBRD HSBC T ,202495-104 ,"570,943.00",
DFID,DFID,24/10/2016,Aid Programme - Trust Funds contributions ,Asia  Caribbean and Overseas Territories ,IBRD HSBC T ,204951-101 ,"2,000,000.00",
DFID,DFID,21/10/2016,Aid Programme - Trust Funds contributions ,Economic Development Division ,IBRD HSBC T ,203808-101 ,"1,000,000.00",
DFID,DFID,25/10/2016,Aid Programme - Trust Funds contributions ,Economic Development Division ,IBRD HSBC T ,203808-106 ,"700,000.00",
DFID,DFID,25/10/2016,Aid Programme - Trust Funds contributions ,East and Central Africa ,IBRD HSBC T ,203308-107 ,"100,000.00",
DFID,DFID,20/10/2016,Aid Programme - Trust Funds contributions ,Asia  Caribbean and Overseas Territories ,Supplier Name withheld ,204158-102 ,"33,000,000.00",
DFID,DFID,20/10/2016,Aid Programme - Trust Funds contributions ,Asia  Caribbean and Overseas Territories ,Supplier Name withheld ,204158-105 ,"17,000,000.00",
DFID,DFID,07/10/2016,Aid Programme - Core contributions ,Policy Division ,IBRD HSBC T ,203211-101 ,"201,900.00",
DFID,DFID,26/10/2016,Aid Programme - Trust Funds contributions ,Asia  Caribbean and Overseas Territories ,IBRD HSBC T ,201591-101 ,"5,000,000.00",
DFID,DFID,19/10/2016,Aid Programme - Trust Funds contributions ,Research and Evidence Division ,IBRD HSBC T ,202211-102 ,"30,000,000.00",
DFID,DFID,07/10/2016,Aid Programme - Trust Funds contributions ,East and Central Africa ,IBRD HSBC T ,204788-107 ,"555,500.00",
DFID,DFID,07/10/2016,Aid Programme - Pooled/Basket funding ,East and Central Africa ,IBRD HSBC T ,204788-103 ,"244,500.00",
DFID,DFID,07/10/2016,Aid Programme - Core contributions ,Policy Division ,IBRD HSBC T ,203211-101 ,"67,300.00",
DFID,DFID,19/10/2016,Aid Programme - Trust Funds contributions ,Research and Evidence Division ,IBRD (HSBC)  C/O THE WORLD BANK ,203872-102 ,"897,000.00",
DFID,DFID,11/10/2016,Aid Programme - Trust Funds contributions ,Economic Development Division ,IBRD (HSBC)  C/O THE WORLD BANK ,202571-101 ,"5,100,000.00",
DFID,DFID,11/10/2016,Aid Programme - Trust Funds contributions ,Economic Development Division ,IBRD (HSBC)  C/O THE WORLD BANK ,202571-103 ,"3,400,000.00",
DFID,DFID,14/10/2016,Aid Programme - Trust Funds contributions ,Policy Division ,IBRD (HSBC)  C/O THE WORLD BANK ,203034-103 ,"1,290,000.00",
DFID,DFID,12/10/2016,Aid Programme - Trust Funds contributions ,East and Central Africa ,IBRD (HSBC)  C/O THE WORLD BANK ,204290-106 ,"833,292.00",
DFID,DFID,05/10/2016,Aid Programme - Trust Funds contributions ,East and Central Africa ,IBRD (HSBC)  C/O THE WORLD BANK ,204313-102 ,"5,000,000.00",
DFID,DFID,05/10/2016,Aid Programme - Trust Funds contributions ,East and Central Africa ,IBRD (HSBC)  C/O THE WORLD BANK ,204313-103 ,"476,376.00",
DFID,DFID,13/10/2016,Aid Programme - Trust Funds contributions ,West and Southern Africa ,IBRD (HSBC)  C/O THE WORLD BANK ,204253-102 ,"500,000.00",
DFID,DFID,11/10/2016,Aid Programme - Trust Funds contributions ,West and Southern Africa ,IBRD (HSBC)  C/O THE WORLD BANK ,202427-101 ,"826,067.00",
DFID,DFID,25/10/2016,Aid Programme - Trust Funds contributions ,West and Southern Africa ,IBRD (HSBC)  C/O THE WORLD BANK ,204668-101 ,"1,700,000.00",
DFID,DFID,19/10/2016,Aid Programme - Trust Funds contributions ,East and Central Africa ,IBRD (HSBC)  C/O THE WORLD BANK ,204033-107 ,"594,000.00",
DFID,DFID,27/10/2016,Aid Programme - Trust Funds contributions ,Asia  Caribbean and Overseas Territories ,IBRD (HSBC)  C/O THE WORLD BANK ,205071-101 ,"600,000.00",
DFID,DFID,05/10/2016,Aid Programme - Trust Funds contributions ,Asia  Caribbean and Overseas Territories ,INTERNATIONAL TRADE CENTRE ,204735-101 ,"321,400.00",
DFID,DFID,17/10/2016,Project delivery costs – supplier services ,Policy Division ,IMPERIAL COLLEGE LONDON ,200706-101 ,"5,665.19",
DFID,DFID,17/10/2016,Project delivery costs – supplier services ,Policy Division ,IMPERIAL COLLEGE LONDON ,200706-101 ,"84,438.62",
DFID,DFID,10/10/2016,Project delivery costs – supplier services ,West and Southern Africa ,ICF INTERNATIONAL ,204822-103 ,"404,872.80",
DFID,DFID,10/10/2016,Aid Programme - Core contributions ,Global Funds ,IBRD-IFFIm ,201185-101 ,"4,611,022.11",
DFID,DFID,10/10/2016,Aid Programme - Core contributions ,Global Funds ,IBRD-IFFIm ,111073-101 ,"36,426,727.89",
DFID,DFID,11/10/2016,Aid Programme - Core contributions ,Global Funds ,IBRD-IFFIm ,111073-101 ,"5,194,701.53",
DFID,DFID,03/10/2016,Hostile Environment Training ,Global Funds ,KELLOGG BROWN & ROOT LIMITED ,100098-101 ,505.00,
DFID,DFID,05/10/2016,Hostile Environment Training ,Economic Development Division ,KELLOGG BROWN & ROOT LIMITED ,100276-101 ,660.00,
DFID,DFID,28/10/2016,Hostile Environment Training,Research and Evidence Division ,KELLOGG BROWN & ROOT LIMITED ,203874-103 ,549.15,
DFID,DFID,04/10/2016,Hostile Environment Training ,Top Management Group ,KELLOGG BROWN & ROOT LIMITED ,100232-106 ,606.00,
DFID,DFID,28/10/2016,Hostile Environment Training ,East and Central Africa ,KELLOGG BROWN & ROOT LIMITED ,202594-101 ,606.00,
DFID,DFID,03/10/2016,Hostile Environment Training ,East and Central Africa ,KELLOGG BROWN & ROOT LIMITED ,202594-101 ,606.00,
DFID,DFID,27/10/2016,Hostile Environment Training ,Policy Division ,KELLOGG BROWN & ROOT LIMITED ,202402-107 ,606.00,
DFID,DFID,27/10/2016,Hostile Environment Training ,Global Funds ,KELLOGG BROWN & ROOT LIMITED ,100098-101 ,606.00,
DFID,DFID,28/10/2016,Hostile Environment Training,Research and Evidence Division ,KELLOGG BROWN & ROOT LIMITED ,202392-110 ,505.00,
DFID,DFID,28/10/2016,Hostile Environment Training ,Communications Division ,KELLOGG BROWN & ROOT LIMITED ,100197-101 ,900.00,
DFID,DFID,28/10/2016,Research and development costs - supplier services ,Research and Evidence Division ,LIVERPOOL SCHOOL OF TROPICAL MEDICINE ,201400-103 ,"237,694.01",
DFID,DFID,21/10/2016,Research and development costs - supplier services ,Research and Evidence Division ,LIVERPOOL SCHOOL OF TROPICAL MEDICINE ,201401-103 ,"161,161.47",
DFID,DFID,18/10/2016,Aid Programme - Accountable Grant Payments ,Policy Division ,LIVERPOOL SCHOOL OF TROPICAL MEDICINE ,201177-101 ,"2,066,273.00",
DFID,DFID,19/10/2016,Project delivery costs – supplier services ,Research and Evidence Division ,London School of Hygiene and Tropical Medicine ,114396-104 ,"600,391.50",
DFID,DFID,21/10/2016,Professional member subscriptions ,Group Operations ,Reed Elsevier (UK) Ltd T/A LN ,204284-101 ,718.80,
DFID,DFID,31/10/2016,Aid Programme - Accountable Grant Payments ,Research and Evidence Division ,LONDON SCHOOL OF ECONOMICS ,205125-102 ,"62,216.00",
DFID,DFID,10/10/2016,Electricity ,Group Operations ,EDF ENERGY ,203717-101 ,"12,478.45",
DFID,DFID,12/10/2016,Electricity ,Group Operations ,EDF ENERGY ,203717-101 ,"9,530.15",
DFID,DFID,17/10/2016,Electricity ,Group Operations ,EDF ENERGY ,100106-101 ,"16,771.11",
DFID,DFID,03/10/2016,Aid Programme - Core contributions ,Research and Evidence Division ,MEDICAL RESEARCH COUNCIL ,201267-104 ,"982,733.02",
DFID,DFID,10/10/2016,Aid Programme - Core contributions ,Research and Evidence Division ,MEDICAL RESEARCH COUNCIL ,201267-105 ,"2,203,845.42",
DFID,DFID,03/10/2016,Aid Programme - Core contributions ,Research and Evidence Division ,MEDICAL RESEARCH COUNCIL ,203093-102 ,"203,324.52",
DFID,DFID,03/10/2016,Project delivery costs – supplier services ,Asia  Caribbean and Overseas Territories ,Supplier Name withheld ,204023-104 ,"137,535.54",
DFID,DFID,26/10/2016,Project delivery costs – supplier services ,Asia  Caribbean and Overseas Territories ,Supplier Name withheld ,204023-104 ,"120,583.63",
DFID,DFID,31/10/2016,Project delivery costs – supplier services ,Asia  Caribbean and Overseas Territories ,Supplier Name withheld ,204277-102 ,"76,584.00",
DFID,DFID,03/10/2016,Project delivery costs – supplier services ,Asia  Caribbean and Overseas Territories ,Supplier Name withheld ,204277-102 ,"78,382.36",
DFID,DFID,03/10/2016,Aid Programme - Challenge Fund payments ,Asia  Caribbean and Overseas Territories ,Supplier Name withheld ,204277-104 ,"130,518.59",
DFID,DFID,31/10/2016,Aid Programme - Challenge Fund payments ,Asia  Caribbean and Overseas Territories ,Supplier Name withheld ,204277-104 ,"147,633.00",
DFID,DFID,14/10/2016,Project delivery costs – supplier services ,East and Central Africa ,Supplier Name withheld ,203641-103 ,"29,580.27",
DFID,DFID,26/10/2016,Project delivery costs – supplier services ,Asia  Caribbean and Overseas Territories ,Supplier Name withheld ,203029-104 ,"213,836.00",
DFID,DFID,24/10/2016,Project delivery costs – supplier services ,East and Central Africa ,Supplier Name withheld ,204288-103 ,"108,186.10",
DFID,DFID,25/10/2016,Project delivery costs – supplier services ,East and Central Africa ,Supplier Name withheld ,203871-102 ,"52,191.78",
DFID,DFID,31/10/2016,Project delivery costs – supplier services ,West and Southern Africa ,Supplier Name withheld ,203154-103 ,"837,022.96",
DFID,DFID,27/10/2016,Project delivery costs – supplier services ,West and Southern Africa ,Supplier Name withheld ,202678-101 ,"56,576.59",
DFID,DFID,25/10/2016,Project delivery costs – supplier services ,West and Southern Africa ,Supplier Name withheld ,202942-102 ,"321,821.54",
DFID,DFID,07/10/2016,Project delivery costs – supplier services ,Asia  Caribbean and Overseas Territories ,Supplier Name withheld ,201388-102 ,"4,463.53",
DFID,DFID,21/10/2016,Project delivery costs – supplier services ,East and Central Africa ,Supplier Name withheld ,203363-103 ,"707,302.06",
DFID,DFID,11/10/2016,Project delivery costs – supplier services ,East and Central Africa ,Supplier Name withheld ,202893-102 ,"128,222.61",
DFID,DFID,27/10/2016,Project delivery costs – supplier services ,West and Southern Africa ,Supplier Name withheld ,202678-101 ,"57,534.87",
DFID,DFID,06/10/2016,Data Network - land lines ,Business Solutions Division Level ,VODAFONE LIMITED ,200002-187 ,"16,645.18",
DFID,DFID,07/10/2016,Data Network - land lines ,Business Solutions Division Level ,VODAFONE LIMITED ,200002-187 ,"16,619.64",
DFID,DFID,11/10/2016,Data Network - land lines ,Business Solutions Division Level ,VODAFONE LIMITED ,200002-187 ,"16,851.25",
DFID,DFID,07/10/2016,Telephone Usage & services ,Business Solutions Division Level ,VODAFONE LIMITED ,203329-103 ,"7,074.69",
DFID,DFID,06/10/2016,Data Network - land lines ,Business Solutions Division Level ,VODAFONE LIMITED ,203329-103 ,"197,631.43", WAN - Rental charge for telecommunication data links out with the European Union for August 2016 
DFID,DFID,06/10/2016,Data Network - land lines ,Business Solutions Division Level ,VODAFONE LIMITED ,203329-103 ,"7,023.07",
DFID,DFID,06/10/2016,Data Network - land lines ,Business Solutions Division Level ,VODAFONE LIMITED ,203329-103 ,"2,219.22",
DFID,DFID,07/10/2016,Telephone Usage & services ,Business Solutions Division Level ,VODAFONE LIMITED ,200002-185 ,"7,074.69",
DFID,DFID,06/10/2016,Data Network - land lines ,Business Solutions Division Level ,VODAFONE LIMITED ,200002-185 ,"7,023.08",
DFID,DFID,06/10/2016,Data Network - land lines ,Business Solutions Division Level ,VODAFONE LIMITED ,200002-185 ,"2,219.22",
DFID,DFID,07/10/2016,Telephone Usage & services ,Business Solutions Division Level ,VODAFONE LIMITED ,200002-168 ,"18,638.23",
DFID,DFID,12/10/2016,Project delivery costs – supplier services ,East and Central Africa ,MAXWELL STAMP PLC ,204626-101 ,"191,457.00",
DFID,DFID,31/10/2016,Project delivery costs – supplier services ,Group Operations ,MARSH PRIVATE CLIENT SERVICES ,204999-103 ,"10,111.40",
DFID,DFID,18/10/2016,Project delivery costs – supplier services ,Group Operations ,MARSH PRIVATE CLIENT SERVICES ,204999-103 ,"5,055.70",
DFID,DFID,18/10/2016,Project delivery costs – supplier services ,Group Operations ,MARSH PRIVATE CLIENT SERVICES ,202426-101 ,"45,501.29",Quarterly worldwide all risks & public liability insurance policy for overseas staff for the period  July - September 2016
DFID,DFID,31/10/2016,Project delivery costs – supplier services ,Group Operations ,MARSH PRIVATE CLIENT SERVICES ,202426-101 ,"91,002.58",Worldwide all risks & public liability insurance policy for overseas staff for the period  October 2016 - March 2017
DFID,DFID,04/10/2016,Repairs  Maint  Alter - Property & Constrct. Services ,Group Operations ,MITIE Technical Facilities Management Ltd ,100106-101 ,"1,598.38",
DFID,DFID,04/10/2016,Facilities Management payments ,Group Operations ,MITIE Technical Facilities Management Ltd ,100106-101 ,"15,219.81",
DFID,DFID,04/10/2016,Cleaning Costs ,Group Operations ,MITIE Technical Facilities Management Ltd ,100106-101 ,"16,547.90",
DFID,DFID,04/10/2016,Contract Catering Services ,Group Operations ,MITIE Technical Facilities Management Ltd ,100106-101 ,"1,028.18",
DFID,DFID,13/10/2016,Repairs  Maintenance and Alterations – Other Building Costs ,Group Operations ,MITIE Technical Facilities Management Ltd ,203717-101 ,"1,267.60",
DFID,DFID,04/10/2016,Repairs  Maint  Alter - Property & Constrct. Services ,Group Operations ,MITIE Technical Facilities Management Ltd ,203717-101 ,"9,145.12",
DFID,DFID,04/10/2016,Facilities Management payments ,Group Operations ,MITIE Technical Facilities Management Ltd ,203717-101 ,"23,883.80",
DFID,DFID,04/10/2016,Cleaning Costs ,Group Operations ,MITIE Technical Facilities Management Ltd ,203717-101 ,"19,308.92",
DFID,DFID,04/10/2016,Contract Catering Services ,Group Operations ,MITIE Technical Facilities Management Ltd ,203717-101 ,702.68,
DFID,DFID,03/10/2016,Repairs  Maintenance and Alterations – Other Building Costs ,Group Operations ,MITIE Technical Facilities Management Ltd ,203717-101 ,"1,127.45",
DFID,DFID,03/10/2016,Repairs  Maintenance and Alterations – Other Building Costs ,Group Operations ,MITIE Technical Facilities Management Ltd ,203717-101 ,834.40,
DFID,DFID,13/10/2016,Repairs  Maintenance and Alterations – Other Building Costs ,Group Operations ,MITIE Technical Facilities Management Ltd ,203717-101 ,880.00,
DFID,DFID,07/10/2016,Repairs  Maintenance and Alterations – Other Building Costs ,Group Operations ,MITIE Technical Facilities Management Ltd ,100106-101 ,"4,464.13",
DFID,DFID,19/10/2016,Repairs  Maintenance and Alterations – Other Building Costs ,Group Operations ,MITIE Technical Facilities Management Ltd ,100106-101 ,"2,330.78",
DFID,DFID,06/10/2016,Repairs  Maintenance and Alterations – Other Building Costs ,Group Operations ,MITIE Technical Facilities Management Ltd ,100106-101 ,871.68,
DFID,DFID,10/10/2016,Aid Programme - Partnership Programme Arrangements ,Policy Division ,MALARIA CONSORTIUM ,202700-101 ,"667,567.33",
DFID,DFID,25/10/2016,Aid Programme - Accountable Grant Payments ,Middle East and North Africa Division ,Supplier Name withheld ,300030-101 ,"4,279,453.00",
DFID,DFID,24/10/2016,Contract Catering Services,Top Management Group ,Recipient name withheld ,100232-106 ,751.11,
DFID,DFID,05/10/2016,Aid Programme - Partnership Programme Arrangements ,Policy Division ,MAPACTION ,202793-101 ,"37,789.50",
DFID,DFID,04/10/2016,Aid Programme - Accountable Grant Payments ,Asia  Caribbean and Overseas Territories ,OXFAM INSTITUTIONAL INCOME ACCOUNT ,205138-104 ,"789,289.50",
DFID,DFID,24/10/2016,Aid Programme - Accountable Grant Payments ,East and Central Africa ,OXFAM INSTITUTIONAL INCOME ACCOUNT ,300280-103 ,"769,635.00",
DFID,DFID,13/10/2016,Project delivery costs – supplier services ,East and Central Africa ,Supplier Name withheld ,204439-103 ,"6,869.71",
DFID,DFID,26/10/2016,Project delivery costs – supplier services ,Central Department Division ,Supplier Name withheld ,300336-101 ,"447,483.00",
DFID,DFID,26/10/2016,FCO shared service charges ,Central Department Division ,Supplier Name withheld ,204990-136 ,"899,125.00","Operational costs for DFID overseas office and residential accommodation, maintenance, and corporate services for October to December 2016"
DFID,DFID,18/10/2016,Vehicle Petrol & Oil,West and Southern Africa ,Supplier Name withheld ,101622-104 ,566.74,
DFID,DFID,10/10/2016,Project delivery costs – supplier services ,Asia  Caribbean and Overseas Territories ,OXFORD POLICY MANAGEMENT ,202708-103 ,"7,500.00",
DFID,DFID,05/10/2016,Project delivery costs – supplier services ,East and Central Africa ,OXFORD POLICY MANAGEMENT ,202315-110 ,"33,510.98",
DFID,DFID,21/10/2016,Project delivery costs – supplier services ,East and Central Africa ,OXFORD POLICY MANAGEMENT ,204463-102 ,"30,405.79",
DFID,DFID,18/10/2016,Project delivery costs – supplier services ,Asia  Caribbean and Overseas Territories ,OXFORD POLICY MANAGEMENT ,203180-102 ,"271,228.00",
DFID,DFID,04/10/2016,Project delivery costs – supplier services ,Asia  Caribbean and Overseas Territories ,OXFORD POLICY MANAGEMENT ,202491-104 ,"58,535.00",
DFID,DFID,11/10/2016,Project delivery costs – supplier services ,West and Southern Africa ,OXFORD POLICY MANAGEMENT ,203536-108 ,"5,750.35",
DFID,DFID,04/10/2016,Research and development costs - supplier services ,Research and Evidence Division ,OXFORD POLICY MANAGEMENT ,204773-102 ,"196,224.00",
DFID,DFID,24/10/2016,Research and development costs - supplier services ,Research and Evidence Division ,OXFORD POLICY MANAGEMENT ,204773-102 ,"196,224.00",
DFID,DFID,04/10/2016,Project delivery costs – supplier services ,West and Southern Africa ,OXFORD POLICY MANAGEMENT ,202637-106 ,"204,000.00",
DFID,DFID,27/10/2016,Project delivery costs – supplier services ,Asia  Caribbean and Overseas Territories ,OXFORD POLICY MANAGEMENT ,203186-105 ,"133,796.00",
DFID,DFID,27/10/2016,Project delivery costs – supplier services ,Asia  Caribbean and Overseas Territories ,OXFORD POLICY MANAGEMENT ,203186-105 ,"47,681.68",
DFID,DFID,04/10/2016,Project delivery costs – supplier services ,West and Southern Africa ,OXFORD POLICY MANAGEMENT ,204330-103 ,"441,450.99",
DFID,DFID,12/10/2016,Project delivery costs – supplier services ,East and Central Africa ,OXFORD POLICY MANAGEMENT ,202580-103 ,"45,941.00",
DFID,DFID,20/10/2016,Project delivery costs – supplier services ,West and Southern Africa ,OXFORD POLICY MANAGEMENT ,203536-115 ,"297,436.15",
DFID,DFID,31/10/2016,Project delivery costs – supplier services ,Asia  Caribbean and Overseas Territories ,OXFORD POLICY MANAGEMENT ,201129-109 ,"20,946.00",
DFID,DFID,27/10/2016,Project delivery costs – supplier services ,West and Southern Africa ,OXFORD POLICY MANAGEMENT ,201874-103 ,"174,202.77",
DFID,DFID,27/10/2016,Project delivery costs – supplier services ,West and Southern Africa ,OXFORD POLICY MANAGEMENT ,201874-103 ,"23,782.86",
DFID,DFID,27/10/2016,Project delivery costs – supplier services ,West and Southern Africa ,OXFORD POLICY MANAGEMENT ,205066-101 ,"65,473.16",
DFID,DFID,26/10/2016,Project delivery costs – supplier services ,West and Southern Africa ,OXFORD POLICY MANAGEMENT ,205066-101 ,"57,880.10",
DFID,DFID,26/10/2016,Project delivery costs – supplier services ,West and Southern Africa ,OXFORD POLICY MANAGEMENT ,205182-105 ,"20,049.00",
DFID,DFID,26/10/2016,Project delivery costs – supplier services ,West and Southern Africa ,OXFORD POLICY MANAGEMENT ,205182-105 ,"47,272.00",
DFID,DFID,26/10/2016,Project delivery costs – supplier services ,West and Southern Africa ,OXFORD POLICY MANAGEMENT ,205182-105 ,"25,743.00",
DFID,DFID,07/10/2016,Project delivery costs – supplier services ,Research and Evidence Division ,OXFORD POLICY MANAGEMENT ,204322-101 ,"102,161.00",
DFID,DFID,10/10/2016,Project delivery costs – supplier services ,Research and Evidence Division ,OXFORD POLICY MANAGEMENT ,204322-101 ,"136,214.00",
DFID,DFID,04/10/2016,Project delivery costs – supplier services ,Research and Evidence Division ,OXFORD POLICY MANAGEMENT ,203339-105 ,"6,764.40",
DFID,DFID,06/10/2016,Project delivery costs – supplier services ,Research and Evidence Division ,OXFORD POLICY MANAGEMENT ,203339-105 ,"2,475.00",
DFID,DFID,06/10/2016,Project delivery costs – supplier services ,Research and Evidence Division ,OXFORD POLICY MANAGEMENT ,204806-106 ,"17,031.00",
DFID,DFID,13/10/2016,Project delivery costs – supplier services ,Asia  Caribbean and Overseas Territories ,OXFORD POLICY MANAGEMENT ,202367-103 ,"314,841.58",
DFID,DFID,14/10/2016,Project delivery costs – supplier services ,Asia  Caribbean and Overseas Territories ,OXFORD POLICY MANAGEMENT ,202367-103 ,"48,098.49",
DFID,DFID,17/10/2016,Project delivery costs – supplier services ,Asia  Caribbean and Overseas Territories ,OXFORD POLICY MANAGEMENT ,202367-103 ,"268,798.98",
DFID,DFID,31/10/2016,Project delivery costs – supplier services ,East and Central Africa ,OXFORD POLICY MANAGEMENT ,204463-102 ,"9,410.02",
DFID,DFID,10/10/2016,Project delivery costs – supplier services ,East and Central Africa ,OXFORD POLICY MANAGEMENT ,204633-102 ,"66,879.91",
DFID,DFID,28/10/2016,Project delivery costs – supplier services ,West and Southern Africa ,OXFORD POLICY MANAGEMENT ,203551-103 ,"47,059.59",
DFID,DFID,05/10/2016,Project delivery costs – supplier services ,West and Southern Africa ,OXFORD POLICY MANAGEMENT ,205189-103 ,"74,807.30",
DFID,DFID,04/10/2016,Aid Programme - Accountable Grant Payments ,Policy Division ,OPPORTUNITY INTERNATIONAL UK ,203559-126 ,"376,355.00",
DFID,DFID,19/10/2016,Aid Programme - Accountable Grant Payments ,Policy Division ,OPPORTUNITY INTERNATIONAL UK ,203559-104 ,"65,155.00",
DFID,DFID,31/10/2016,Project delivery costs – supplier services ,Asia  Caribbean and Overseas Territories ,OPTIONS CONSULTANCY SERVICES LIMITED ,203390-104 ,"76,842.00",
DFID,DFID,28/10/2016,Project delivery costs – supplier services ,Asia  Caribbean and Overseas Territories ,OPTIONS CONSULTANCY SERVICES LIMITED ,203390-104 ,"51,762.42",
DFID,DFID,28/10/2016,Project delivery costs – supplier services ,East and Central Africa ,OPTIONS CONSULTANCY SERVICES LIMITED ,203024-103 ,"87,581.00",
DFID,DFID,28/10/2016,Project delivery costs – supplier services ,East and Central Africa ,OPTIONS CONSULTANCY SERVICES LIMITED ,203024-103 ,"87,581.00",
DFID,DFID,28/10/2016,Project delivery costs – supplier services ,East and Central Africa ,OPTIONS CONSULTANCY SERVICES LIMITED ,203024-103 ,"87,581.00",
DFID,DFID,28/10/2016,Project delivery costs – supplier services ,East and Central Africa ,OPTIONS CONSULTANCY SERVICES LIMITED ,203024-103 ,"90,083.00",
DFID,DFID,28/10/2016,Project delivery costs – supplier services ,East and Central Africa ,OPTIONS CONSULTANCY SERVICES LIMITED ,203024-103 ,"21,895.00",
DFID,DFID,28/10/2016,Project delivery costs – supplier services ,East and Central Africa ,OPTIONS CONSULTANCY SERVICES LIMITED ,203024-103 ,"87,581.00",
DFID,DFID,27/10/2016,Project delivery costs – supplier services ,Asia  Caribbean and Overseas Territories ,OPTIONS CONSULTANCY SERVICES LIMITED ,201375-103 ,"5,277.85",
DFID,DFID,28/10/2016,Project delivery costs – supplier services ,West and Southern Africa ,OPTIONS CONSULTANCY SERVICES LIMITED ,202214-103 ,"194,445.00",
DFID,DFID,03/10/2016,Project delivery costs – supplier services ,Asia  Caribbean and Overseas Territories ,OPTIONS CONSULTANCY SERVICES LIMITED ,203413-103 ,"6,499.00",
DFID,DFID,03/10/2016,Project delivery costs – supplier services ,Asia  Caribbean and Overseas Territories ,OPTIONS CONSULTANCY SERVICES LIMITED ,203413-103 ,"36,225.00",
DFID,DFID,07/10/2016,Project delivery costs – supplier services ,Asia  Caribbean and Overseas Territories ,OPTIONS CONSULTANCY SERVICES LIMITED ,203413-103 ,"41,036.00",
DFID,DFID,07/10/2016,Project delivery costs – supplier services ,Asia  Caribbean and Overseas Territories ,OPTIONS CONSULTANCY SERVICES LIMITED ,203413-103 ,"23,995.00",
DFID,DFID,10/10/2016,Project delivery costs – supplier services ,Asia  Caribbean and Overseas Territories ,OPTIONS CONSULTANCY SERVICES LIMITED ,203413-103 ,"41,400.00",
DFID,DFID,10/10/2016,Project delivery costs – supplier services ,Asia  Caribbean and Overseas Territories ,OPTIONS CONSULTANCY SERVICES LIMITED ,203413-103 ,"4,140.00",
DFID,DFID,19/10/2016,Project delivery costs – supplier services ,Asia  Caribbean and Overseas Territories ,OPTIONS CONSULTANCY SERVICES LIMITED ,203413-103 ,"200,000.00",
DFID,DFID,19/10/2016,Project delivery costs – supplier services ,Asia  Caribbean and Overseas Territories ,OPTIONS CONSULTANCY SERVICES LIMITED ,203413-103 ,"7,506.00",
DFID,DFID,07/10/2016,Oil - Other Utilities ,Group Operations ,Government Procurement Service ,203717-101 ,"12,005.45",
DFID,DFID,11/10/2016,Oil - Other Utilities ,Group Operations ,Government Procurement Service ,203717-101 ,"9,386.34",
DFID,DFID,28/10/2016,Project delivery costs – supplier services ,Policy Division ,CENTRE FOR GLOBAL EDUCATION live ,201469-104 ,"16,057.84",
DFID,DFID,11/10/2016,Aid Programme - Accountable Grant Payments ,East and Central Africa ,Supplier Name withheld ,202501-103 ,"478,821.00",
DFID,DFID,07/10/2016,Aid Programme - Partnership Programme Arrangements ,Policy Division ,Supplier Name withheld ,202758-101 ,"2,792,759.00",
DFID,DFID,28/10/2016,Aid Programme - Accountable Grant Payments ,Middle East and North Africa Division ,Supplier Name withheld ,204007-114 ,"2,795,151.53",
DFID,DFID,13/10/2016,Aid Programme - Partnership Programme Arrangements ,Policy Division ,PLAN INTERNATIONAL UK ,202755-101 ,"1,025,263.75",
DFID,DFID,13/10/2016,Aid Programme - Partnership Programme Arrangements ,Policy Division ,PLAN INTERNATIONAL UK ,202755-101 ,"70,656.00",
DFID,DFID,24/10/2016,Aid Programme - Partnership Programme Arrangements ,Policy Division ,PLAN INTERNATIONAL UK ,202755-101 ,"1,025,263.75",
DFID,DFID,06/10/2016,Aid Programme - Partnership Programme Arrangements ,Policy Division ,PENAL REFORM INTERNATIONAL ,202590-101 ,"270,344.25",
DFID,DFID,14/10/2016,Aid Programme - Accountable Grant Payments ,Conflict  Humanitarian  Security & Stabilisation Division ,PENAL REFORM INTERNATIONAL ,203244-112 ,"71,048.22",
DFID,DFID,31/10/2016,Project delivery costs – supplier services ,West and Southern Africa ,PRICEWATERHOUSECOOPERS ,203824-104 ,"60,000.00",
DFID,DFID,25/10/2016,Project delivery costs – supplier services ,Policy Division ,PRICEWATERHOUSECOOPERS ,114370-104 ,"367,371.36",
DFID,DFID,25/10/2016,Project delivery costs – supplier services ,Policy Division ,PRICEWATERHOUSECOOPERS ,114370-104 ,"61,433.70",
DFID,DFID,25/10/2016,Project delivery costs – supplier services ,Policy Division ,PRICEWATERHOUSECOOPERS ,114370-105 ,"34,120.03",
DFID,DFID,25/10/2016,Project delivery costs – supplier services ,Policy Division ,PRICEWATERHOUSECOOPERS ,114370-105 ,"2,329.64",
DFID,DFID,31/10/2016,Project delivery costs – supplier services ,Asia  Caribbean and Overseas Territories ,PRICEWATERHOUSECOOPERS ,203964-101 ,"125,516.41",
DFID,DFID,04/10/2016,Project delivery costs – supplier services ,Policy Division ,PRICEWATERHOUSECOOPERS ,202372-102 ,"793,310.40",
DFID,DFID,31/10/2016,Project delivery costs – supplier services ,Economic Development Division ,PRICEWATERHOUSECOOPERS ,114178-104 ,"233,532.67",
DFID,DFID,19/10/2016,Project delivery costs – supplier services ,Asia  Caribbean and Overseas Territories ,PRICEWATERHOUSECOOPERS ,205093-103 ,"1,054,421.00",
DFID,DFID,21/10/2016,Project delivery costs – supplier services ,Economic Development Division ,PRICEWATERHOUSECOOPERS ,202648-102 ,"31,112.40",
DFID,DFID,21/10/2016,Project delivery costs – supplier services ,Economic Development Division ,PRICEWATERHOUSECOOPERS ,202648-102 ,"36,897.71",
DFID,DFID,24/10/2016,Project delivery costs – supplier services ,Research and Evidence Division ,PRICEWATERHOUSECOOPERS ,200822-103 ,"24,457.44",
DFID,DFID,25/10/2016,Project delivery costs – supplier services ,Research and Evidence Division ,PRICEWATERHOUSECOOPERS ,200822-103 ,"2,329.64",
DFID,DFID,25/10/2016,Project delivery costs – supplier services ,Research and Evidence Division ,PRICEWATERHOUSECOOPERS ,200822-103 ,"61,433.70",
DFID,DFID,25/10/2016,Project delivery costs – supplier services ,Research and Evidence Division ,PRICEWATERHOUSECOOPERS ,200822-103 ,"6,976.57",
DFID,DFID,24/10/2016,Project delivery costs – supplier services ,Research and Evidence Division ,PRICEWATERHOUSECOOPERS ,200822-103 ,"367,371.36",
DFID,DFID,24/10/2016,Project delivery costs – supplier services ,Research and Evidence Division ,PRICEWATERHOUSECOOPERS ,200822-103 ,"34,120.03",
DFID,DFID,03/10/2016,Project delivery costs – supplier services ,Research and Evidence Division ,PRICEWATERHOUSECOOPERS ,200822-103 ,"63,321.97",
DFID,DFID,28/10/2016,Project delivery costs – supplier services ,Economic Development Division ,PRICEWATERHOUSECOOPERS ,202939-103 ,"87,073.87",
DFID,DFID,03/10/2016,Project delivery costs – supplier services ,Economic Development Division ,PRICEWATERHOUSECOOPERS ,202939-113 ,"13,034.07",
DFID,DFID,05/10/2016,Project delivery costs – supplier services ,Economic Development Division ,PRICEWATERHOUSECOOPERS ,202939-101 ,"172,127.90",
DFID,DFID,03/10/2016,Relocation costs ,West and Southern Africa ,PICKFORDS LTD ,101610-101 ,"23,286.77",
DFID,DFID,20/10/2016,Storage & Distribution costs ,Research and Evidence Division ,PICKFORDS LTD ,203874-102 ,625.71,
DFID,DFID,25/10/2016,Storage & Distribution costs ,Asia  Caribbean and Overseas Territories ,PICKFORDS LTD ,101621-101 ,"3,128.57",
DFID,DFID,25/10/2016,Storage & Distribution costs ,East and Central Africa ,PICKFORDS LTD ,101616-101 ,808.69,
DFID,DFID,22/10/2016,Storage & Distribution costs ,East and Central Africa ,PICKFORDS LTD ,101630-101 ,771.71,
DFID,DFID,14/10/2016,Storage & Distribution costs ,Asia  Caribbean and Overseas Territories ,PICKFORDS LTD ,101603-101 ,"1,474.25",
DFID,DFID,06/10/2016,Storage & Distribution costs,West and Southern Africa ,PICKFORDS LTD ,101620-101 ,"6,908.07",
DFID,DFID,04/10/2016,Project delivery costs – supplier services ,East and Central Africa ,PICKFORDS LTD ,204362-101 ,"2,373.04",
DFID,DFID,13/10/2016,Storage & Distribution costs ,West and Southern Africa ,PICKFORDS LTD ,101618-101 ,"2,856.70",
DFID,DFID,10/10/2016,Storage & Distribution costs ,East and Central Africa ,PICKFORDS LTD ,101612-101 ,"1,634.98",
DFID,DFID,24/10/2016,Storage & Distribution costs ,Asia  Caribbean and Overseas Territories ,PICKFORDS LTD ,101624-101 ,"4,599.29",
DFID,DFID,24/10/2016,Storage & Distribution costs ,Asia  Caribbean and Overseas Territories ,PICKFORDS LTD ,204053-101 ,934.21,
DFID,DFID,13/10/2016,Storage & Distribution costs ,Middle East and North Africa Division ,PICKFORDS LTD ,101619-101 ,826.16,
DFID,DFID,07/10/2016,Relocation costs ,Asia  Caribbean and Overseas Territories ,PICKFORDS LTD ,101605-101 ,"1,509.50",
DFID,DFID,21/10/2016,Storage & Distribution costs ,Middle East and North Africa Division ,PICKFORDS LTD ,300078-101 ,694.05,
DFID,DFID,03/10/2016,Relocation costs ,East and Central Africa ,PICKFORDS LTD ,202594-101 ,"4,622.37",
DFID,DFID,20/10/2016,Relocation costs ,East and Central Africa ,PICKFORDS LTD ,203986-103 ,517.14,
DFID,DFID,06/10/2016,Storage & Distribution costs ,East and Central Africa ,PICKFORDS LTD ,101612-101 ,"9,749.51",
DFID,DFID,24/10/2016,Storage & Distribution costs ,Asia  Caribbean and Overseas Territories ,PICKFORDS LTD ,101605-101 ,771.71,
DFID,DFID,04/10/2016,Storage & Distribution costs ,Asia  Caribbean and Overseas Territories ,Supplier Name withheld ,101601-110 ,"3,599.72",
DFID,DFID,14/10/2016,Storage & Distribution costs ,West and Southern Africa ,PICKFORDS LTD ,101613-101 ,625.71,
DFID,DFID,20/10/2016,Storage & Distribution costs ,West and Southern Africa ,PICKFORDS LTD ,101613-101 ,742.31,
DFID,DFID,24/10/2016,Storage & Distribution costs ,West and Southern Africa ,PICKFORDS LTD ,101613-101 ,730.21,
DFID,DFID,28/10/2016,Aid Programme - Accountable Grant Payments ,East and Central Africa ,POPULATION  SERVICES INTERNATIONAL ,113303-120 ,"1,277,571.00",
DFID,DFID,28/10/2016,Training - Course Fees ,Research and Evidence Division ,THE POLICY PRACTICE LTD ,202331-102 ,"23,377.44",
DFID,DFID,12/10/2016,Aid Programme - Partnership Programme Arrangements ,Policy Division ,PRACTICAL ACTION LTD ,202646-101 ,"722,765.33",
DFID,DFID,17/10/2016,Aid Programme - Partnership Programme Arrangements ,Policy Division ,PROGRESSIO ,202503-101 ,"506,253.25",
DFID,DFID,28/10/2016,Aid Programme - Accountable Grant Payments ,Asia  Caribbean and Overseas Territories ,PRACTICAL ACTION (UK) ,204857-104 ,"51,409.00",
DFID,DFID,31/10/2016,Aid Programme - Accountable Grant Payments ,Policy Division ,SCIAF ,203559-132 ,"140,326.00",
DFID,DFID,31/10/2016,Aid Programme - Accountable Grant Payments ,Policy Division ,SCIAF ,203559-169 ,"4,312.00",
DFID,DFID,20/10/2016,Aid Programme - Refugee Relief Payments ,East and Central Africa ,THE SAVE THE CHILDREN FUND ,205070-103 ,"241,150.00",
DFID,DFID,24/10/2016,Aid Programme - Voluntary contributions ,Asia  Caribbean and Overseas Territories ,THE SAVE THE CHILDREN FUND ,204196-108 ,"1,360,979.00",
DFID,DFID,20/10/2016,Project delivery costs – supplier services ,West and Southern Africa ,THE SAVE THE CHILDREN FUND ,202623-116 ,"200,212.00",
DFID,DFID,10/10/2016,Aid Programme - Accountable Grant Payments ,Research and Evidence Division ,THE SAVE THE CHILDREN FUND ,203705-129 ,"507,336.00",
DFID,DFID,26/10/2016,Aid Programme - Accountable Grant Payments ,Middle East and North Africa Division ,SAVE THE CHILDREN ,203847-101 ,"726,431.81",
DFID,DFID,14/10/2016,Aid Programme - Humanitarian Material Relief Assistance and Services ,Conflict  Humanitarian  Security & Stabilisation Division ,SAVE THE CHILDREN ,203044-101 ,"2,032,050.00",
DFID,DFID,07/10/2016,Aid Programme - Partnership Programme Arrangements ,Policy Division ,SAFERWORLD ,202709-101 ,"434,790.00",
DFID,DFID,31/10/2016,Aid Programme - Accountable Grant Payments ,Policy Division ,SENSE INTERNATIONAL ,203559-144 ,"30,068.00",
DFID,DFID,26/10/2016,Project delivery costs – supplier services ,Conflict  Humanitarian  Security & Stabilisation Division ,Social Development Direct Ltd ,204829-101 ,"40,000.00",
DFID,DFID,10/10/2016,Project delivery costs – supplier services ,West and Southern Africa ,Social Development Direct Ltd ,203823-102 ,"65,356.00",
DFID,DFID,11/10/2016,Project delivery costs – supplier services ,West and Southern Africa ,Social Development Direct Ltd ,203823-106 ,"56,558.14",
DFID,DFID,04/10/2016,Aid Programme - Partnership Programme Arrangements ,Policy Division ,SIGHT SAVERS INTERNATIONAL ,202546-101 ,"934,670.00",
DFID,DFID,26/10/2016,Project delivery costs – supplier services ,Group Operations ,SODEXHO PASS LTD ,204999-104 ,"1,495.84",
DFID,DFID,03/10/2016,Aid Programme - Accountable Grant Payments ,West and Southern Africa ,Supplier Name withheld ,205122-103 ,"1,842,463.00",
DFID,DFID,03/10/2016,Aid Programme - Accountable Grant Payments ,Research and Evidence Division ,Supplier Name withheld ,203705-112 ,"375,944.00",
DFID,DFID,10/10/2016,Storage & Distribution costs ,Business Solutions Division Level ,TNT Express (UK) Ltd ,200001-101 ,"1,207.64",
DFID,DFID,26/10/2016,Aid Programme - Accountable Grant Payments ,Policy Division ,TRAIDCRAFT EXCHANGE ,203559-135 ,"23,265.00",
DFID,DFID,06/10/2016,Legal costs ,Asia  Caribbean and Overseas Territories ,GOVERNMENT LEGAL DEPARTMENT ,204619-101 ,"1,529.10",
DFID,DFID,14/10/2016,other information and communication technologies ,Business Solutions Division Level ,TRUSTMARQUE SOLUTIONS LTD ,200002-228 ,"6,152.02",
DFID,DFID,07/10/2016,Research and development costs - supplier services ,Research and Evidence Division ,UNICEF ,203705-125 ,"100,000.00",
DFID,DFID,21/10/2016,Aid Programme - Joint programme contribution ,East and Central Africa ,UNICEF ,204005-102 ,"7,742,367.00",
DFID,DFID,24/10/2016,Aid Programme - Core contributions ,Asia  Caribbean and Overseas Territories ,UNICEF ,205247-101 ,"20,000.00",
DFID,DFID,24/10/2016,Aid Programme - Voluntary contributions ,Asia  Caribbean and Overseas Territories ,UNICEF ,203274-110 ,"317,500.00",
DFID,DFID,04/10/2016,Aid Programme - Accountable Grant Payments ,Policy Division ,Supplier Name withheld ,203559-112 ,"80,150.00",
DFID,DFID,19/10/2016,Project delivery costs – supplier services ,Policy Division ,TROPICAL HEALTH AND EDUCATION TRUST ,202208-101 ,"97,488.25",
DFID,DFID,06/10/2016,Project delivery costs – supplier services ,Policy Division ,TROPICAL HEALTH AND EDUCATION TRUST ,202208-101 ,"502,088.00",
DFID,DFID,13/10/2016,Contract Catering Services ,Research and Evidence Division ,UNIVERSITY OF BIRMINGHAM ,202331-101 ,"5,353.69",
DFID,DFID,06/10/2016,Research and development costs - supplier services ,Research and Evidence Division ,University of Oxford ,201900-101 ,"654,700.00",
DFID,DFID,05/10/2016,Research and development costs - supplier services ,Research and Evidence Division ,University of Oxford ,201900-105 ,"472,300.96",
DFID,DFID,06/10/2016,Research and development costs - supplier services ,Research and Evidence Division ,University of Oxford ,201900-105 ,"259,009.18",
DFID,DFID,03/10/2016,Project delivery costs – supplier services ,Research and Evidence Division ,UNIVERSITY OF EAST ANGLIA ,205043-103 ,"7,725.00",
DFID,DFID,10/10/2016,Aid Programme - Pooled/Basket funding ,East and Central Africa ,Supplier Name withheld ,204788-103 ,"375,000.00",
DFID,DFID,10/10/2016,Aid Programme - Pooled/Basket funding ,East and Central Africa ,Supplier Name withheld ,204788-110 ,"630,000.00",
DFID,DFID,05/10/2016,Aid Programme - Humanitarian Material Relief Assistance and Services ,Asia  Caribbean and Overseas Territories ,Supplier Name withheld ,205028-101 ,"140,969.15",
DFID,DFID,17/10/2016,Aid Programme - Humanitarian Material Relief Assistance and Services ,Asia  Caribbean and Overseas Territories ,Supplier Name withheld ,205138-105 ,"301,160.00",
DFID,DFID,06/10/2016,Aid Programme - Joint programme contribution ,Asia  Caribbean and Overseas Territories ,Supplier Name withheld ,203385-102 ,"150,000.00",
DFID,DFID,19/10/2016,Aid Programme - Voluntary contributions ,Conflict  Humanitarian  Security & Stabilisation Division ,Supplier Name withheld ,300266-104 ,"500,000.00",
DFID,DFID,14/10/2016,Aid Programme - Core contributions ,Asia  Caribbean and Overseas Territories ,Supplier Name withheld ,202949-104 ,"449,755.58",
DFID,DFID,13/10/2016,Aid Programme - Voluntary contributions ,East and Central Africa ,UN WOMEN ,200795-110 ,"150,000.00",
DFID,DFID,28/10/2016,Aid Programme - Voluntary contributions ,East and Central Africa ,Supplier Name withheld ,300316-101 ,"616,529.00",
DFID,DFID,14/10/2016,Aid Programme - Voluntary contributions ,East and Central Africa ,Supplier Name withheld ,204019-118 ,"2,500,000.00",
DFID,DFID,21/10/2016,Aid Programme - Voluntary contributions ,Asia  Caribbean and Overseas Territories ,Supplier Name withheld ,300051-103 ,"86,378.00",
DFID,DFID,31/10/2016,Aid Programme - Core contributions ,West and Southern Africa ,Supplier Name withheld ,202977-101 ,"4,000,000.00",
DFID,DFID,20/10/2016,Aid Programme - Core contributions ,West and Southern Africa ,Supplier Name withheld ,300047-103 ,"12,040,662.00",
DFID,DFID,24/10/2016,Aid Programme - Voluntary contributions ,West and Southern Africa ,Supplier Name withheld ,300036-108 ,"1,900,000.00",
DFID,DFID,17/10/2016,Aid Programme - Voluntary contributions ,West and Southern Africa ,Supplier Name withheld ,300036-108 ,"10,000,000.00",
DFID,DFID,27/10/2016,Aid Programme - Voluntary contributions ,West and Southern Africa ,Supplier Name withheld ,202721-101 ,"661,129.97",
DFID,DFID,17/10/2016,Aid Programme - Voluntary contributions ,West and Southern Africa ,Supplier Name withheld ,202722-108 ,"5,080,383.00",
DFID,DFID,26/10/2016,Aid Programme - Humanitarian Material Relief Assistance and Services ,East and Central Africa ,Supplier Name withheld ,203462-105 ,"1,000,000.00",
DFID,DFID,25/10/2016,Aid Programme - Refugee Relief Payments ,East and Central Africa ,Supplier Name withheld ,205032-103 ,"800,000.00",
DFID,DFID,20/10/2016,Aid Programme - Refugee Relief Payments ,East and Central Africa ,Supplier Name withheld ,205143-105 ,"1,992,518.00",
DFID,DFID,28/10/2016,Aid Programme - Refugee Relief Payments ,East and Central Africa ,Supplier Name withheld ,205143-102 ,"2,569,657.00",
DFID,DFID,11/10/2016,Project delivery costs – supplier services ,Policy Division ,VOLUNTARY SERVICE OVERSEAS ,204894-101 ,"6,270,848.93",
DFID,DFID,21/10/2016,Telephone Usage & services ,Business Solutions Division Level ,VODAFONE CORPORATE ,200002-170 ,"23,861.63",
DFID,DFID,21/10/2016,Telephone Usage & services ,Business Solutions Division Level ,VODAFONE CORPORATE ,200002-170 ,"6,061.34",
DFID,DFID,21/10/2016,Telephone Usage & services ,Business Solutions Division Level ,VODAFONE CORPORATE ,200002-170 ,"3,792.70",
DFID,DFID,17/10/2016,Aid Programme - Voluntary contributions ,Policy Division ,UNICEF UK ,203559-168 ,"2,571,402.00",
DFID,DFID,31/10/2016,Training Providers/Facilitation Services ,Group Operations ,VULCAN FIRE TRAINING CO LTD ,100106-101 ,799.00,
DFID,DFID,04/10/2016,Data Network - land lines ,Business Solutions Division Level ,VERIZON UK LIMITED ,200002-126 ,"7,528.63",
DFID,DFID,26/10/2016,Data Network - land lines ,Business Solutions Division Level ,VERIZON UK LIMITED ,200002-126 ,"7,541.66",
DFID,DFID,11/10/2016,Aid Programme - Strategic Grant Arrangement payments ,Policy Division ,VSO ,202414-102 ,"5,500,000.00",
DFID,DFID,19/10/2016,Aid Programme - Partnership Programme Arrangements ,Policy Division ,WOMANKIND WORLDWIDE (JFS) ,202548-101 ,"140,095.75",
DFID,DFID,07/10/2016,Aid Programme - Partnership Programme Arrangements ,Policy Division ,WATERAID ,202621-101 ,"1,050,410.00",
DFID,DFID,24/10/2016,Aid Programme - Accountable Grant Payments ,Policy Division ,Y CARE INTERNATIONAL ,203559-147 ,"24,306.48",
DFID,DFID,16/10/2016,Repairs  Maint  Alter - Property & Constrct. Services ,Asia  Caribbean and Overseas Territories ,M N Khan & Co ,201652-104 ,"4,827.91",
DFID,DFID,27/10/2016,Air fares ,Asia  Caribbean and Overseas Territories ,Saimon Overseas Ltd ,101603-102 ,"2,721.09",
DFID,DFID,16/10/2016,Air fares ,Asia  Caribbean and Overseas Territories ,Saimon Overseas Ltd ,101603-102 ,"2,454.58",
DFID,DFID,16/10/2016,Air fares ,Asia  Caribbean and Overseas Territories ,Saimon Overseas Ltd ,101603-101 ,"1,094.54",
DFID,DFID,18/10/2016,Training - Travel & Subsistence ,Asia  Caribbean and Overseas Territories ,Saimon Overseas Ltd ,202403-101 ,729.73,
DFID,DFID,20/10/2016,Hotels - Accommodation only ,Business Solutions Division Level ,Capital Hotel ,203329-104 ,704.36,
DFID,DFID,17/10/2016,Research and development costs - supplier services ,Research and Evidence Division ,Institute of Development Studies. ,204584-110 ,"56,660.00",
DFID,DFID,12/10/2016,Air fares ,Middle East and North Africa Division ,Mukwa Travel and Tours ,101619-101 ,990.77,
DFID,DFID,12/10/2016,Air fares ,West and Southern Africa ,Mukwa Travel and Tours ,101631-101 ,519.88,
DFID,DFID,31/10/2016,Hotels - Accommodation only ,Business Solutions Division Level ,Southern Sun Ridgeway ,203329-104 ,638.16,
DFID,DFID,11/10/2016,DFID CPD Conferences ,West and Southern Africa ,Grand Hotel ,101610-101 ,"1,912.63",
DFID,DFID,04/10/2016,Air fares ,West and Southern Africa ,Jeffery Travels ,101610-101 ,"1,009.99",
DFID,DFID,04/10/2016,Air fares ,West and Southern Africa ,Jeffery Travels ,101610-101 ,919.29,
DFID,DFID,04/10/2016,Air fares ,West and Southern Africa ,Jeffery Travels ,101610-101 ,974.63,
DFID,DFID,26/10/2016,Air fares ,West and Southern Africa ,Jeffery Travels ,101610-101 ,833.20,
DFID,DFID,13/10/2016,Hotels - Accommodation only ,West and Southern Africa ,Accra City Hotel ,101613-101 ,710.24,
DFID,DFID,05/10/2016,Hotels - Accommodation only ,West and Southern Africa ,Accra City Hotel ,204918-101 ,"1,541.24",
DFID,DFID,10/10/2016,Hotels - Accommodation only ,West and Southern Africa ,Accra City Hotel ,204918-101 ,"1,413.30",
DFID,DFID,11/10/2016,Hotels - Accommodation only ,West and Southern Africa ,Accra City Hotel ,204918-101 ,"1,413.30",
DFID,DFID,26/10/2016,Project delivery costs � supplier services,West and Southern Africa ,Accra City Hotel ,202455-102 ,"5,747.90",
DFID,DFID,18/10/2016,Hotels - Accommodation only ,East and Central Africa ,Sheraton Hotel ,202594-101 ,"1,759.57",
DFID,DFID,27/10/2016,Aid Programme - Refugee Relief Payments ,East and Central Africa ,Sheraton Hotel ,205032-105 ,"4,155.30",
DFID,DFID,27/10/2016,Hotels - Accommodation only ,East and Central Africa ,Sheraton Hotel ,203603-105 ,"1,618.93",
DFID,DFID,27/10/2016,Project delivery costs – supplier services ,East and Central Africa ,Sheraton Hotel ,101635-101 ,813.34,
DFID,DFID,27/10/2016,Hotels - Accommodation only ,East and Central Africa ,Sheraton Hotel ,101635-101 ,"1,766.11",
DFID,DFID,27/10/2016,Training - Travel & Subsistence ,East and Central Africa ,Simbatravelcare Limited ,101635-101 ,874.59,
DFID,DFID,27/10/2016,Training - Travel & Subsistence ,East and Central Africa ,Simbatravelcare Limited ,101635-101 ,"1,136.07",
DFID,DFID,27/10/2016,Training - Travel & Subsistence ,East and Central Africa ,Simbatravelcare Limited ,101635-101 ,872.95,
DFID,DFID,27/10/2016,Training - Travel & Subsistence ,East and Central Africa ,Simbatravelcare Limited ,101635-101 ,"1,118.03",
DFID,DFID,28/10/2016,Hotels - Accommodation only ,East and Central Africa ,Fairview Hotel ,101634-101 ,"1,950.24",
DFID,DFID,13/10/2016,Hotels - Accommodation only ,Internal Audit ,Fairview Hotel ,100121-101 ,"1,592.86",
DFID,DFID,12/10/2016,Hotels - Accommodation only ,Internal Audit ,Fairview Hotel ,100121-101 ,"1,578.70",
DFID,DFID,12/10/2016,Hotels - Accommodation only ,Internal Audit ,Fairview Hotel ,100121-101 ,"1,578.70",
DFID,DFID,12/10/2016,Hotels - Accommodation only ,Internal Audit ,Fairview Hotel ,100121-101 ,"1,578.70",
DFID,DFID,12/10/2016,Hotels - Accommodation only ,Internal Audit ,Fairview Hotel ,100121-101 ,"1,578.70",
DFID,DFID,13/10/2016,Hotels - Accommodation only ,Internal Audit ,Fairview Hotel ,100121-101 ,"1,592.86",
DFID,DFID,13/10/2016,Hotels - Accommodation only ,Internal Audit ,Fairview Hotel ,100121-101 ,"1,592.86",
DFID,DFID,07/10/2016,Fund monies to be managed and dispersed by the supplier ,East and Central Africa ,The Population Council ,202874-102 ,"563,559.00",
DFID,DFID,07/10/2016,Project delivery costs – supplier services ,Research and Evidence Division ,The Population Council ,202874-103 ,"150,000.00",
DFID,DFID,14/10/2016,Project delivery costs – supplier services ,Asia  Caribbean and Overseas Territories ,The Population Council ,114506-101 ,"20,266.00",
DFID,DFID,05/10/2016,Aid Programme - Accountable Grant Payments ,West and Southern Africa ,FinMark  TRUST ,200880-102 ,"369,422.59",
DFID,DFID,19/10/2016,Hotels - Accommodation only ,Finance and Corporate Performance Division ,Hotel Cardoso S A R L ,204846-101 ,544.78,
DFID,DFID,19/10/2016,Hotels - Accommodation only ,West and Southern Africa ,Hotel Cardoso S A R L ,101620-101 ,592.85,
DFID,DFID,19/10/2016,Hotels - Accommodation only ,West and Southern Africa ,Hotel Cardoso S A R L ,101620-102 ,680.97,
DFID,DFID,19/10/2016,Hotels - Accommodation only ,West and Southern Africa ,Hotel Cardoso S A R L ,101620-102 ,544.78,
DFID,DFID,12/10/2016,Training Providers/Facilitation Services ,West and Southern Africa ,Contacto ,101620-102 ,513.34,
DFID,DFID,25/10/2016,Oil - Other Utilities ,West and Southern Africa ,British  High Commission Abuja ,101622-108 ,"13,299.52",
DFID,DFID,25/10/2016,Oil - Other Utilities ,West and Southern Africa ,British  High Commission Abuja ,100152-117 ,"1,477.72",
DFID,DFID,18/10/2016,Repairs  Maint  Alter - Property & Constrct. Services ,West and Southern Africa ,British  High Commission Abuja ,101622-108 ,"1,834.53",
DFID,DFID,18/10/2016,Vehicle Petrol & Oil ,West and Southern Africa ,British  High Commission Abuja ,101622-108 ,"2,835.47",
DFID,DFID,19/10/2016,Hotels - Accommodation only ,West and Southern Africa ,Supplier Name withheld ,201433-104 ,"2,476.53",
DFID,DFID,11/10/2016,Hotels - Accommodation only ,West and Southern Africa ,Supplier Name withheld ,101622-108 ,646.76,
DFID,DFID,25/10/2016,Repairs  Maint  Alter - Property & Constrct. Services ,West and Southern Africa ,Circuit Board (Nig) Ltd ,101622-108 ,"1,373.73",
DFID,DFID,25/10/2016,Repairs  Maint  Alter - Property & Constrct. Services ,West and Southern Africa ,Circuit Board (Nig) Ltd ,101622-108 ,"1,261.61",
DFID,DFID,11/10/2016,Repairs  Maint  Alter - Property & Constrct. Services ,West and Southern Africa ,Clemto Investments Ltd ,101622-108 ,654.46,
DFID,DFID,19/10/2016,Repairs  Maint  Alter - Property & Constrct. Services ,West and Southern Africa ,Clemto Investments Ltd ,101622-108 ,"1,676.73",
DFID,DFID,18/10/2016,Hotels - Accommodation only ,West and Southern Africa ,Supplier Name withheld ,101622-108 ,785.17,
DFID,DFID,18/10/2016,Cleaning Costs ,West and Southern Africa ,Sparklean Services Nig Ltd ,101622-108 ,"3,346.01",
DFID,DFID,18/10/2016,Cleaning Costs ,West and Southern Africa ,Sparklean Services Nig Ltd ,100152-117 ,939.32,
DFID,DFID,04/10/2016,Project delivery costs – supplier services ,West and Southern Africa ,PKF Professional Services ,201625-105 ,"12,551.91",
DFID,DFID,25/10/2016,Conferences  Seminars & Meeting/Event Resource ,Research and Evidence Division ,COMPASS GROUP ,202331-101 ,"1,575.00",
DFID,DFID,25/10/2016,Conferences  Seminars & Meeting/Event Resource ,Research and Evidence Division ,COMPASS GROUP ,202331-101 ,"1,575.00",
DFID,DFID,25/10/2016,Conferences  Seminars & Meeting/Event Resource ,Research and Evidence Division ,COMPASS GROUP ,202331-101 ,"1,575.00",
DFID,DFID,11/10/2016,Conferences  Seminars & Meeting/Event Resource ,Research and Evidence Division ,COMPASS GROUP ,202331-101 ,"1,750.00",
DFID,DFID,14/10/2016,Conferences  Seminars & Meeting/Event Resource ,Research and Evidence Division ,COMPASS GROUP ,202331-101 ,"1,750.00",
DFID,DFID,13/10/2016,Conferences  Seminars & Meeting/Event Resource ,Research and Evidence Division ,COMPASS GROUP ,202331-101 ,"1,750.00",
DFID,DFID,10/10/2016,Further Education costs ,Human Resources ,ASHRIDGE ,100268-101 ,"6,250.00",
DFID,DFID,10/10/2016,Aid Programme - Accountable Grant Payments ,West and Southern Africa ,Catholic Commission for Justice and Peace ,202559-103 ,"238,740.81",
DFID,DFID,28/10/2016,Project delivery costs – supplier services ,Middle East and North Africa Division ,Supplier Name withheld ,202886-101 ,"26,176.15",
DFID,DFID,17/10/2016,Aid Programme - Accountable Grant Payments ,East and Central Africa ,Supplier Name withheld ,204458-109 ,"33,652.93",
DFID,DFID,10/10/2016,Research and development costs - supplier services ,Research and Evidence Division ,Supplier Name withheld ,204584-123 ,"30,800.00",
DFID,DFID,25/10/2016,Research and development costs - supplier services ,Research and Evidence Division ,Supplier Name withheld ,201009-106 ,"198,037.81",
DFID,DFID,18/10/2016,Project delivery costs – supplier services ,Asia  Caribbean and Overseas Territories ,Supplier Name withheld ,204468-105 ,"53,120.50",
DFID,DFID,31/10/2016,Computer software maintenance ,Business Solutions Division Level ,CESG ,200002-187 ,"1,032.00",
DFID,DFID,27/10/2016,Print Services ,East and Central Africa ,SignCare Ltd ,101635-101 ,874.76,
DFID,DFID,10/10/2016,Project delivery costs – supplier services ,Research and Evidence Division ,ASIAN DEVELOPMENT.BANK ,202125-118 ,"10,200.00",
DFID,DFID,21/10/2016,Aid Programme - Joint programme contribution ,Asia  Caribbean and Overseas Territories ,ASIAN DEVELOPMENT.BANK ,203275-101 ,"200,000.00",
DFID,DFID,31/10/2016,Project delivery costs – supplier services ,International Relations Division ,ART OF LIVING ,205081-101,"1,663.75",
DFID,DFID,14/10/2016,Project delivery costs – supplier services ,International Relations Division ,ART OF LIVING ,205081-101 ,"3,025.00",
DFID,DFID,18/10/2016,Project delivery costs – supplier services ,International Relations Division ,ART OF LIVING ,205081-101 ,"1,187.00",
DFID,DFID,31/10/2016,Project delivery costs – supplier services ,International Relations Division ,ART OF LIVING ,205081-101 ,"2,356.00",
DFID,DFID,05/10/2016,Project delivery costs – supplier services ,International Relations Division ,ART OF LIVING ,205081-101 ,"1,190.00",
DFID,DFID,10/10/2016,Project delivery costs – supplier services ,International Relations Division ,ART OF LIVING ,205081-101 ,"3,688.65",
DFID,DFID,10/10/2016,Project delivery costs – supplier services ,Human Resources ,Tinies UK Ltd ,100269-136 ,"1,487.50",
DFID,DFID,03/10/2016,Aid Programme - Core contributions ,West and Southern Africa ,UN OCHA ,300047-106 ,"650,000.00",
DFID,DFID,21/10/2016,Aid Programme - Humanitarian Material Relief Assistance and Services ,Middle East and North Africa Division ,UN OCHA ,205094-102 ,"8,000,000.00",
DFID,DFID,28/10/2016,Aid Programme - Core contributions ,Conflict  Humanitarian  Security & Stabilisation Division ,UN OCHA ,205038-103 ,"15,000,000.00",
DFID,DFID,11/10/2016,Aid Programme - Accountable Grant Payments ,Research and Evidence Division ,IPDET  CARLETON UNIVERSITY ,203014-104 ,"75,000.00",
DFID,DFID,13/10/2016,Hardware -Laptop PCs ,Business Solutions Division Level ,SOFTWARE BOX LTD (SBL) ,200002-197 ,"6,086.04",
DFID,DFID,14/10/2016,Hardware -Laptop PCs ,Business Solutions Division Level ,SOFTWARE BOX LTD (SBL) ,200002-197 ,"2,618.88",
DFID,DFID,27/10/2016,Hardware -Laptop PCs ,Business Solutions Division Level ,SOFTWARE BOX LTD (SBL) ,200002-197 ,"20,951.47",
DFID,DFID,10/10/2016,Hardware -Laptop PCs ,Business Solutions Division Level ,SOFTWARE BOX LTD (SBL) ,200004-102 ,"80,204.40",
DFID,DFID,27/10/2016,Aid Programme - Voluntary contributions ,West and Southern Africa ,FAO ,203429-101 ,"6,235,318.50",
DFID,DFID,20/10/2016,Aid Programme - Voluntary contributions ,Policy Division ,FAO ,201724-146 ,"850,000.00",
DFID,DFID,27/10/2016,Aid Programme - Voluntary contributions ,West and Southern Africa ,FAO ,203429-108 ,"350,000.00",
DFID,DFID,24/10/2016,Aid Programme - Voluntary contributions ,West and Southern Africa ,Supplier Name withheld ,202541-107 ,"112,465.00",
DFID,DFID,26/10/2016,Aid Programme - Trust Funds contributions ,Economic Development Division ,Supplier Name withheld ,203469-108 ,"607,500.00",
DFID,DFID,11/10/2016,Aid Programme - Humanitarian Material Relief Assistance and Services ,Asia  Caribbean and Overseas Territories ,Supplier Name withheld ,205138-107 ,"900,803.40",
DFID,DFID,20/10/2016,Aid Programme - Humanitarian Material Relief Assistance and Services ,East and Central Africa ,Supplier Name withheld ,203462-107 ,"1,000,000.00",
DFID,DFID,06/10/2016,Aid Programme - Humanitarian Material Relief Assistance and Services ,West and Southern Africa ,Supplier Name withheld ,205161-103 ,"2,000,000.00",
DFID,DFID,24/10/2016,Aid Programme - Joint programme contribution ,Asia  Caribbean and Overseas Territories ,Supplier Name withheld ,203106-105 ,"19,985.48",
DFID,DFID,31/10/2016,Aid Programme - Trust Funds contributions ,Asia  Caribbean and Overseas Territories ,Supplier Name withheld ,203385-102 ,"212,215.60",
DFID,DFID,20/10/2016,Aid Programme - Joint programme contribution ,East and Central Africa ,Supplier Name withheld ,300280-102 ,"1,000,000.00",
DFID,DFID,05/10/2016,Aid Programme - Joint programme contribution ,East and Central Africa ,Supplier Name withheld ,300280-102 ,"4,000,000.00",
DFID,DFID,20/10/2016,Aid Programme - Voluntary contributions ,East and Central Africa ,Supplier Name withheld ,205116-105 ,"3,100,000.00",
DFID,DFID,06/10/2016,Data Network - land lines ,Business Solutions Division Level ,KUBE NETWORKS LTD ,200002-130 ,"1,068.83",
DFID,DFID,07/10/2016,Data Network - land lines ,Business Solutions Division Level ,KUBE NETWORKS LTD ,200002-130 ,"1,082.69",
DFID,DFID,03/10/2016,DFID Purchased Relief Supplies ,Policy Division ,IPA-International Procurement Agency (BV) ,203148-102 ,"123,854.84",
DFID,DFID,05/10/2016,DFID Purchased Relief Supplies ,West and Southern Africa ,IPA-International Procurement Agency (BV) ,202722-103 ,"624,483.54",
DFID,DFID,05/10/2016,Project delivery costs – supplier services ,West and Southern Africa ,IPA-International Procurement Agency (BV) ,205182-104 ,"573,210.11",
DFID,DFID,26/10/2016,DFID Purchased Relief Supplies ,Policy Division ,IPA-International Procurement Agency (BV) ,201724-144 ,"1,889.63",
DFID,DFID,12/10/2016,DFID Purchased Relief Supplies ,East and Central Africa ,IPA-International Procurement Agency (BV) ,203109-111 ,"5,626.15",
DFID,DFID,03/10/2016,DFID Purchased Relief Supplies ,East and Central Africa ,IPA-International Procurement Agency (BV) ,203109-111 ,"152,111.05",
DFID,DFID,12/10/2016,DFID Purchased Relief Supplies ,East and Central Africa ,IPA-International Procurement Agency (BV) ,203109-111 ,"190,716.81",
DFID,DFID,05/10/2016,Project delivery costs – supplier services ,West and Southern Africa ,IPA-International Procurement Agency (BV) ,205182-104 ,"563,887.60",
DFID,DFID,25/10/2016,Project delivery costs – supplier services ,West and Southern Africa ,IPA-International Procurement Agency (BV) ,203714-103 ,538.13,
DFID,DFID,24/10/2016,DFID Purchased Relief Supplies ,West and Southern Africa ,IPA-International Procurement Agency (BV) ,203714-103 ,"10,762.58",
DFID,DFID,24/10/2016,DFID Purchased Relief Supplies ,East and Central Africa ,IPA-International Procurement Agency (BV) ,204861-101 ,"183,905.35",
DFID,DFID,21/10/2016,Project delivery costs – supplier services ,East and Central Africa ,IPA-International Procurement Agency (BV) ,204861-101 ,"5,425.21",
DFID,DFID,14/10/2016,DFID Purchased Relief Supplies ,East and Central Africa ,IPA-International Procurement Agency (BV) ,204861-101 ,"4,496.95",
DFID,DFID,19/10/2016,Aid Programme - Accountable Grant Payments ,East and Central Africa ,AGRA IN AFRICA (NO2) ,201575-105 ,"293,599.00",
DFID,DFID,19/10/2016,Aid Programme - Accountable Grant Payments ,East and Central Africa ,AGRA IN AFRICA (NO2) ,203574-104 ,"1,116,358.00",
DFID,DFID,19/10/2016,Aid Programme - Accountable Grant Payments ,East and Central Africa ,AGRA IN AFRICA (NO2) ,203574-107 ,"132,941.00",
DFID,DFID,18/10/2016,Project delivery costs – supplier services ,Asia  Caribbean and Overseas Territories ,Sustainable Development Associates ,113287-102 ,"1,648.07",
DFID,DFID,03/10/2016,Project delivery costs – supplier services ,West and Southern Africa ,ABT ASSOCIATES INC ,104229-101 ,"470,854.52",
DFID,DFID,04/10/2016,Fund monies to be managed and dispersed by the supplier ,East and Central Africa ,KPMG EAST AFRICA LTD ,200498-101 ,"35,965.82",
DFID,DFID,04/10/2016,Fund monies to be managed and dispersed by the supplier ,East and Central Africa ,KPMG EAST AFRICA LTD ,200498-105 ,"14,977.27",
DFID,DFID,07/10/2016,Fund monies to be managed and dispersed by the supplier ,Policy Division ,KPMG EAST AFRICA LTD ,201724-142 ,"5,726,279.00",
DFID,DFID,10/10/2016,Aid Programme - Accountable Grant Payments ,East and Central Africa ,LONDON SCHOOL OF ECONOMICS AND POLITICAL SCIENCE ,204803-103 ,"37,700.00",
DFID,DFID,28/10/2016,Project delivery costs – supplier services ,Economic Development Division ,LONDON SCHOOL OF ECONOMICS AND POLITICAL SCIENCE ,203286-101 ,"2,076,764.14",
DFID,DFID,28/10/2016,Project delivery costs – supplier services ,Economic Development Division ,LONDON SCHOOL OF ECONOMICS AND POLITICAL SCIENCE ,203286-101 ,"816,354.16",
DFID,DFID,25/10/2016,Aid Programme - Voluntary contributions ,East and Central Africa ,United Nations Economic Commission ,204458-105 ,"615,000.00",
DFID,DFID,24/10/2016,Air fares ,West and Southern Africa ,Premier Travel ,101638-101 ,"1,275.55",
DFID,DFID,26/10/2016,Air fares ,West and Southern Africa ,Premier Travel ,101638-101 ,973.02,
DFID,DFID,24/10/2016,Air fares ,West and Southern Africa ,Premier Travel ,101638-101 ,865.09,
DFID,DFID,04/10/2016,Aid Programme - Core contributions ,Asia  Caribbean and Overseas Territories ,Supplier Name withheld ,205112-101 ,"352,640.00",
DFID,DFID,13/10/2016,Aid Programme - Voluntary contributions ,Middle East and North Africa Division ,Supplier Name withheld ,205073-101 ,"2,000,000.00",
DFID,DFID,06/10/2016,Project delivery costs – supplier services ,West and Southern Africa ,Cambridge  Education Limited ,104200-101 ,"267,146.21",
DFID,DFID,28/10/2016,Aid Programme - Voluntary contributions ,Asia  Caribbean and Overseas Territories ,Supplier Name withheld ,203904-109 ,"5,000,000.00",
DFID,DFID,04/10/2016,Aid Programme - Voluntary contributions ,East and Central Africa ,Supplier Name withheld ,203462-104 ,"3,085,978.00",
DFID,DFID,26/10/2016,Aid Programme - Refugee Relief Payments ,East and Central Africa ,Supplier Name withheld ,205032-101 ,"1,500,000.00",
DFID,DFID,31/10/2016,Aid Programme - Refugee Relief Payments ,East and Central Africa ,Supplier Name withheld ,205143-101 ,"1,756,807.00",
DFID,DFID,26/10/2016,Aid Programme - Voluntary contributions ,Conflict  Humanitarian  Security & Stabilisation Division ,Supplier Name withheld ,300264-103 ,"9,800,000.00",
DFID,DFID,20/10/2016,Aid Programme - Voluntary contributions ,East and Central Africa ,Supplier Name withheld ,205116-101 ,"2,675,000.00",
DFID,DFID,20/10/2016,Aid Programme - Voluntary contributions ,East and Central Africa ,Supplier Name withheld ,205116-102 ,"500,000.00",
DFID,DFID,20/10/2016,Project delivery costs – supplier services ,Economic Development Division ,KPMG LLP ,204255-101 ,"55,001.88",
DFID,DFID,17/10/2016,Project delivery costs – supplier services ,Middle East and North Africa Division ,KPMG LLP ,204516-105 ,"26,019.00",
DFID,DFID,17/10/2016,Project delivery costs – supplier services ,Middle East and North Africa Division ,KPMG LLP ,204516-105 ,"26,019.00",
DFID,DFID,26/10/2016,Aid Programme - Core contributions ,Global Funds ,Supplier Name withheld ,203826-101 ,"25,000,000.00",
DFID,DFID,27/10/2016,Aid Programme - Voluntary contributions ,East and Central Africa ,Supplier Name withheld ,113303-122 ,"500,000.00",
DFID,DFID,06/10/2016,Aid Programme - Voluntary contributions ,Policy Division ,Supplier Name withheld ,202918-101 ,"1,500,000.00",
DFID,DFID,25/10/2016,Aid Programme - Voluntary contributions ,West and Southern Africa ,Supplier Name withheld ,300036-111 ,"1,500,000.00",
DFID,DFID,31/10/2016,Aid Programme - Humanitarian Material Relief Assistance and Services ,Conflict  Humanitarian  Security & Stabilisation Division ,Supplier Name withheld ,205196-104 ,"5,000,000.00",
DFID,DFID,07/10/2016,Aid Programme - Voluntary contributions ,West and Southern Africa ,Supplier Name withheld ,204640-104 ,"623,131.74",
DFID,DFID,07/10/2016,Aid Programme - Voluntary contributions ,West and Southern Africa ,Supplier Name withheld ,204640-110 ,"64,740.96",
DFID,DFID,07/10/2016,Aid Programme - Voluntary contributions ,West and Southern Africa ,Supplier Name withheld ,204640-111 ,"121,389.30",
DFID,DFID,11/10/2016,Subscriptions ,Communications Division ,THE PRESS ASSOCIATION ,100197-101 ,607.92,
DFID,DFID,03/10/2016,Project delivery costs – supplier services ,Middle East and North Africa Division ,CHEMONICS ,205048-104 ,"49,237.00",
DFID,DFID,19/10/2016,Project delivery costs – supplier services ,Research and Evidence Division ,Action Against Hunger UK (ACF-UK) ,203705-130 ,"260,683.00",
DFID,DFID,20/10/2016,Aid Programme - Refugee Relief Payments ,East and Central Africa ,IOM ,205143-105 ,"1,907,500.00",
DFID,DFID,04/10/2016,Aid Programme - Humanitarian Material Relief Assistance and Services ,Asia  Caribbean and Overseas Territories ,IOM ,205138-106 ,"400,000.00",
DFID,DFID,20/10/2016,Aid Programme - Humanitarian Material Relief Assistance and Services ,Middle East and North Africa Division ,IOM ,205094-104 ,"7,000,000.00",
DFID,DFID,21/10/2016,Aid Programme - Voluntary contributions ,Asia  Caribbean and Overseas Territories ,IOM ,300051-101 ,"100,000.00",
DFID,DFID,21/10/2016,Aid Programme - Voluntary contributions ,Asia  Caribbean and Overseas Territories ,IOM ,300051-101 ,"300,000.00",
DFID,DFID,25/10/2016,Aid Programme - Accountable Grant Payments ,Asia  Caribbean and Overseas Territories ,SEARCH FOR COMMON GROUND ,203274-102 ,"242,788.00",
DFID,DFID,04/10/2016,Educational Supplies/Aids ,Asia  Caribbean and Overseas Territories ,BMB MOTT  MACDONALD ,107480-102 ,"14,791.35",
DFID,DFID,04/10/2016,Project delivery costs – supplier services ,Asia  Caribbean and Overseas Territories ,BMB MOTT  MACDONALD ,107480-101 ,"84,683.36",
DFID,DFID,10/10/2016,Project delivery costs – supplier services ,Asia  Caribbean and Overseas Territories ,BMB MOTT  MACDONALD ,107480-101 ,"132,087.07",
DFID,DFID,24/10/2016,Project delivery costs – supplier services ,Asia  Caribbean and Overseas Territories ,BMB MOTT  MACDONALD ,107480-101 ,"127,104.87",
DFID,DFID,24/10/2016,Project delivery costs – supplier services ,Asia  Caribbean and Overseas Territories ,BMB MOTT  MACDONALD ,107480-101 ,"74,687.29",
DFID,DFID,24/10/2016,Educational Supplies/Aids ,Asia  Caribbean and Overseas Territories ,BMB MOTT  MACDONALD ,107480-102 ,"30,819.12",
DFID,DFID,14/10/2016,Project delivery costs – supplier services ,Asia  Caribbean and Overseas Territories ,IPE Global Ltd. ,204237-101 ,"126,500.00",
DFID,DFID,14/10/2016,Project delivery costs – supplier services ,Asia  Caribbean and Overseas Territories ,IPE Global Ltd. ,204237-101 ,"115,000.00",
DFID,DFID,17/10/2016,Project delivery costs – supplier services ,Asia  Caribbean and Overseas Territories ,IPE Global Ltd. ,114040-101 ,"36,578.06",
DFID,DFID,14/10/2016,Project delivery costs – supplier services ,Asia  Caribbean and Overseas Territories ,IPE Global Ltd. ,114040-101 ,"24,385.76",
DFID,DFID,14/10/2016,Project delivery costs – supplier services ,Asia  Caribbean and Overseas Territories ,IPE Global Ltd. ,203217-101 ,"59,420.60",
DFID,DFID,12/10/2016,Project delivery costs – supplier services ,Asia  Caribbean and Overseas Territories ,IPE Global Ltd. ,203217-101 ,"88,793.80",
DFID,DFID,26/10/2016,Project delivery costs – supplier services ,Asia  Caribbean and Overseas Territories ,IPE Global Ltd. ,203217-101 ,"105,630.43",
DFID,DFID,05/10/2016,Project delivery costs – supplier services ,Asia  Caribbean and Overseas Territories ,IPE Global Ltd. ,204623-113 ,"18,806.00",
DFID,DFID,11/10/2016,Project delivery costs – supplier services ,Policy Division ,IPE Global Ltd. ,202208-102 ,"77,086.00",
DFID,DFID,25/10/2016,Aid Programme - Core contributions ,West and Southern Africa ,USAID/NIGERIA ,203851-104 ,"1,659,238.00",
DFID,DFID,20/10/2016,Aid Programme - Partnership Programme Arrangements ,Policy Division ,Transparency International Secr ,202505-101 ,"843,586.00",
DFID,DFID,31/10/2016,Aid Programme - Accountable Grant Payments ,West and Southern Africa ,EFInA ,104187-104 ,"443,727.59",
DFID,DFID,17/10/2016,Aid Programme - Humanitarian Material Relief Assistance and Services ,East and Central Africa ,Supplier Name withheld ,204439-110 ,"6,500,000.00",
DFID,DFID,31/10/2016,Aid Programme - Core contributions ,Conflict  Humanitarian  Security & Stabilisation Division ,Supplier Name withheld ,205039-101 ,"31,500,000.00",
DFID,DFID,07/10/2016,Aid Programme - Humanitarian Material Relief Assistance and Services ,Middle East and North Africa Division ,Supplier Name withheld ,205094-102 ,"6,000,000.00",
DFID,DFID,31/10/2016,Aid Programme - Voluntary contributions ,Asia  Caribbean and Overseas Territories ,Supplier Name withheld ,203904-103 ,"3,500,000.00",
DFID,DFID,20/10/2016,Aid Programme - Accountable Grant Payments ,West and Southern Africa ,CIP (Centro de Integridade Publica) ,203311-101 ,"101,963.00",
DFID,DFID,06/10/2016,Aid Programme - Partnership Programme Arrangements ,Policy Division ,Fairtrade Labelling Organizations International e.V. ,201718-101 ,"750,000.00",
DFID,DFID,03/10/2016,Auditors Remuneration & Expenses - Cash ,East and Central Africa ,KPMG Kenya ,202698-102 ,"25,000.00",
DFID,DFID,14/10/2016,Aid Programme - Accountable Grant Payments ,Economic Development Division ,International Centre for Trade and Sustainable Development ,204717-101 ,"425,000.00",
DFID,DFID,28/10/2016,Aid Programme - Accountable Grant Payments ,West and Southern Africa ,Supplier Name withheld ,205234-104 ,"730,966.00",
DFID,DFID,28/10/2016,Aid Programme - Accountable Grant Payments ,West and Southern Africa ,Supplier Name withheld ,205234-105 ,"4,741,150.00",
DFID,DFID,12/10/2016,Project delivery costs – supplier services ,Asia  Caribbean and Overseas Territories ,Crown Agents Bank ,201645-105 ,"618,229.74",
DFID,DFID,25/10/2016,Project delivery costs – supplier services ,Middle East and North Africa Division ,Crown Agents Bank ,201828-101 ,"95,000.00",
DFID,DFID,14/10/2016,Project delivery costs – supplier services ,Middle East and North Africa Division ,Crown Agents Bank ,201828-101 ,"90,000.00",
DFID,DFID,24/10/2016,Aid Programme - Core contributions ,Research and Evidence Division ,Medicines for Malaria Venture ,204066-103 ,"1,733,105.00",
DFID,DFID,25/10/2016,Project delivery costs – supplier services ,East and Central Africa ,The Centre for Humanitarian Dialogue ,204019-107 ,"97,956.00",
DFID,DFID,25/10/2016,Project delivery costs – supplier services ,West and Southern Africa ,ECORYS UK Ltd. ,204899-101 ,"54,147.49",
DFID,DFID,04/10/2016,Aid Programme - Core contributions ,Research and Evidence Division ,BILL & MELINDA GATES FOUNDATION (USD) ,204420-102 ,"186,754.95",
DFID,DFID,13/10/2016,Aid Programme - Core contributions ,Research and Evidence Division ,BILL & MELINDA GATES FOUNDATION (USD) ,204420-102 ,"172,782.62",
DFID,DFID,31/10/2016,Aid Programme - Core contributions ,Research and Evidence Division ,BILL & MELINDA GATES FOUNDATION (USD) ,204420-103 ,"1,224,929.50",
DFID,DFID,11/10/2016,Hotels - Accommodation only ,West and Southern Africa ,Supplier Name withheld ,101622-105 ,"1,161.85",
DFID,DFID,11/10/2016,Hotels - Accommodation only ,West and Southern Africa ,Supplier Name withheld ,101622-105 ,903.66,
DFID,DFID,11/10/2016,Project delivery costs – supplier services ,East and Central Africa ,BMB  MOTT  MACDONALD ,202513-101 ,"37,415.55",
DFID,DFID,05/10/2016,Project delivery costs – supplier services ,East and Central Africa ,BMB  MOTT  MACDONALD ,202511-102 ,"710,132.14",
DFID,DFID,10/10/2016,Project delivery costs – supplier services ,East and Central Africa ,BMB  MOTT  MACDONALD ,202511-102 ,"159,910.84",
DFID,DFID,21/10/2016,Project delivery costs – supplier services ,West and Southern Africa ,BMB  MOTT  MACDONALD ,204242-102 ,"399,600.00",
DFID,DFID,24/10/2016,Project delivery costs – supplier services ,West and Southern Africa ,BMB  MOTT  MACDONALD ,204242-102 ,"132,000.00",
DFID,DFID,26/10/2016,Project delivery costs – supplier services ,West and Southern Africa ,BMB  MOTT  MACDONALD ,204242-102 ,"340,231.10",
DFID,DFID,18/10/2016,Aid Programme - Accountable Grant Payments ,East and Central Africa ,HARVARD UNIVERSITY (OFFICE FOR SPONSERED PROGRAMS) ,202574-106 ,"90,576.10",
DFID,DFID,06/10/2016,Aid Programme - Core contributions ,Research and Evidence Division ,INTERNATIONAL DEVELOPMENT RESEARCH CENTRE ,203737-102 ,"359,673.00",
DFID,DFID,11/10/2016,Storage & Distribution costs ,West and Southern Africa ,Conote Services Ltd ,101622-108 ,"1,065.41",
DFID,DFID,18/10/2016,Storage & Distribution costs ,West and Southern Africa ,Conote Services Ltd ,101622-108 ,"3,837.60",
DFID,DFID,11/10/2016,Storage & Distribution costs ,West and Southern Africa ,Conote Services Ltd ,100152-117 ,976.62,
DFID,DFID,20/10/2016,Aid Programme - Trust Funds contributions ,Asia  Caribbean and Overseas Territories ,UNOPS ,201239-101 ,"6,000,000.00",
DFID,DFID,20/10/2016,Aid Programme - Trust Funds contributions ,Asia  Caribbean and Overseas Territories ,UNOPS ,201239-103 ,"6,000,000.00",
DFID,DFID,20/10/2016,Aid Programme - Trust Funds contributions ,Asia  Caribbean and Overseas Territories ,UNOPS ,201239-104 ,"2,000,000.00",
DFID,DFID,28/10/2016,Aid Programme - Accountable Grant Payments ,Asia  Caribbean and Overseas Territories ,UCEP - Underpriveliged Childrens Education Programs ,203870-102 ,"440,000.00",
DFID,DFID,28/10/2016,Aid Programme - Accountable Grant Payments ,Asia  Caribbean and Overseas Territories ,UCEP - Underpriveliged Childrens Education Programs ,203870-104 ,"4,320,000.00",
DFID,DFID,04/10/2016,Aid Programme - Accountable Grant Payments ,Research and Evidence Division ,International Center for Research on Women (ICRW) ,203199-111 ,"22,498.58",
DFID,DFID,07/10/2016,Air fares ,Asia  Caribbean and Overseas Territories ,Jaya Travels & Tours Pvt Ltd. (US$) ,101621-108 ,927.73,
DFID,DFID,28/10/2016,DFID Purchased Relief Supplies ,East and Central Africa ,CARDNO EMERGING MARKETS (UK) LTD ,203596-103 ,"19,480.99",
DFID,DFID,25/10/2016,Research and development costs - supplier services ,Research and Evidence Division ,CARDNO EMERGING MARKETS (UK) LTD ,203048-107 ,"215,418.22",
DFID,DFID,31/10/2016,Project delivery costs – supplier services ,East and Central Africa ,CARDNO EMERGING MARKETS (UK) LTD ,203596-101 ,"171,230.00",
DFID,DFID,31/10/2016,Project delivery costs – supplier services ,Economic Development Division ,CARDNO EMERGING MARKETS (UK) LTD ,203535-102 ,"16,486.01",
DFID,DFID,31/10/2016,Project delivery costs – supplier services ,Economic Development Division ,CARDNO EMERGING MARKETS (UK) LTD ,203535-102 ,"21,101.21",
DFID,DFID,31/10/2016,Project delivery costs – supplier services ,Economic Development Division ,CARDNO EMERGING MARKETS (UK) LTD ,203535-102 ,"32,340.68",
DFID,DFID,31/10/2016,Project delivery costs – supplier services ,Economic Development Division ,CARDNO EMERGING MARKETS (UK) LTD ,203535-102 ,"42,840.58",
DFID,DFID,10/10/2016,Aid Programme - Accountable Grant Payments ,Research and Evidence Division ,International Initiative for Impact Evaluation(3ie) ,203705-126 ,"132,040.00",
DFID,DFID,11/10/2016,Aid Programme - Accountable Grant Payments ,Research and Evidence Division ,International Initiative for Impact Evaluation(3ie) ,200135-107 ,"425,970.00",
DFID,DFID,10/10/2016,Aid Programme - Accountable Grant Payments ,Research and Evidence Division ,International Initiative for Impact Evaluation(3ie) ,200135-108 ,"106,067.00",
DFID,DFID,07/10/2016,Aid Programme - Accountable Grant Payments ,Research and Evidence Division ,International Initiative for Impact Evaluation(3ie) ,203650-104 ,"79,801.00",
DFID,DFID,17/10/2016,Aid Programme - Accountable Grant Payments ,East and Central Africa ,International Initiative for Impact Evaluation(3ie) ,200795-109 ,"150,785.00",
DFID,DFID,18/10/2016,Project delivery costs – supplier services ,West and Southern Africa ,ADAM SMITH INTERNATIONAL ,201139-101 ,"16,837.17",
DFID,DFID,07/10/2016,Aid Programme - Joint programme contribution ,West and Southern Africa ,UNDP MULTI-PARTNER TRUST FUND OFFICE (USD) ACCOUNT ,205122-102 ,"8,966,013.00",
DFID,DFID,03/10/2016,Aid Programme - Voluntary contributions ,East and Central Africa ,UNDP MULTI-PARTNER TRUST FUND OFFICE (USD) ACCOUNT ,203383-111 ,"500,000.00",
DFID,DFID,03/10/2016,Aid Programme - Voluntary contributions ,East and Central Africa ,UNDP MULTI-PARTNER TRUST FUND OFFICE (USD) ACCOUNT ,205065-101 ,"120,000.00",
DFID,DFID,17/10/2016,Aid Programme - Voluntary contributions ,East and Central Africa ,UNDP MULTI-PARTNER TRUST FUND OFFICE (USD) ACCOUNT ,205110-101 ,"1,000,000.00",
DFID,DFID,28/10/2016,Aid Programme - Core contributions ,Research and Evidence Division ,Asian Vegetable Research and Development Center (AVRDC) ,205271-102 ,"1,000,000.00",
DFID,DFID,10/10/2016,Aid Programme - Partnership Programme Arrangements ,Policy Division ,AVOCATS SANS FRONTIERES ,202739-101 ,"362,612.75",
DFID,DFID,26/10/2016,Aid Programme - Voluntary contributions ,Asia  Caribbean and Overseas Territories ,UNOPS - support for Access Cell unit ,203274-106 ,"2,400,000.00",
DFID,DFID,26/10/2016,Aid Programme - Voluntary contributions ,Asia  Caribbean and Overseas Territories ,UNOPS - support for Access Cell unit ,203274-109 ,"600,000.00",
DFID,DFID,04/10/2016,Aid Programme - Humanitarian Material Relief Assistance and Services ,Asia  Caribbean and Overseas Territories ,UNOPS - support for Access Cell unit ,205138-106 ,"432,850.00",
DFID,DFID,06/10/2016,Aid Programme - Voluntary contributions ,Middle East and North Africa Division ,UNOPS - support for Access Cell unit ,204797-103 ,"900,000.00",
DFID,DFID,27/10/2016,Project delivery costs – supplier services ,Asia  Caribbean and Overseas Territories ,RURAL RECONSTRUCTION NEPAL ,203764-104 ,"276,349.00",
DFID,DFID,27/10/2016,Project delivery costs – supplier services ,Asia  Caribbean and Overseas Territories ,RURAL RECONSTRUCTION NEPAL ,203764-110 ,"218,651.00",
DFID,DFID,26/10/2016,Aid Programme - Accountable Grant Payments ,Asia  Caribbean and Overseas Territories ,THE GURKHA WELFARE SCHEME ,203187-102 ,"589,440.00",
DFID,DFID,26/10/2016,Aid Programme - Accountable Grant Payments ,Asia  Caribbean and Overseas Territories ,THE GURKHA WELFARE SCHEME ,203187-103 ,"142,560.00",
DFID,DFID,11/10/2016,Training - Travel & Subsistence ,Asia  Caribbean and Overseas Territories ,BONDS TRAVEL BUREAU ,101624-101 ,914.29,
DFID,DFID,11/10/2016,Training - Travel & Subsistence ,Asia  Caribbean and Overseas Territories ,BONDS TRAVEL BUREAU ,101624-101 ,705.70,
DFID,DFID,11/10/2016,Training - Travel & Subsistence ,Asia  Caribbean and Overseas Territories ,BONDS TRAVEL BUREAU ,101624-101 ,762.96,
DFID,DFID,18/10/2016,Training - Travel & Subsistence ,Asia  Caribbean and Overseas Territories ,BONDS TRAVEL BUREAU ,101624-101 ,735.40,
DFID,DFID,19/10/2016,Training - Travel & Subsistence ,Asia  Caribbean and Overseas Territories ,BONDS TRAVEL BUREAU ,101624-101 ,915.27,
DFID,DFID,07/10/2016,Training - Travel & Subsistence ,Asia  Caribbean and Overseas Territories ,BONDS TRAVEL BUREAU ,101624-101 ,755.86,
DFID,DFID,19/10/2016,Air fares ,Asia  Caribbean and Overseas Territories ,BONDS TRAVEL BUREAU ,101624-101 ,"1,466.35",
DFID,DFID,26/10/2016,Training - Travel & Subsistence ,Asia  Caribbean and Overseas Territories ,BONDS TRAVEL BUREAU ,101624-101 ,741.36,
DFID,DFID,26/10/2016,Air fares ,Asia  Caribbean and Overseas Territories ,BONDS TRAVEL BUREAU ,204619-101 ,"3,476.58",
DFID,DFID,26/10/2016,Project delivery costs – supplier services ,Asia  Caribbean and Overseas Territories ,BONDS TRAVEL BUREAU ,204619-101 ,"8,192.41",
DFID,DFID,26/10/2016,Hotels - Accommodation only ,Asia  Caribbean and Overseas Territories ,BONDS TRAVEL BUREAU ,204619-101 ,"1,421.02",
DFID,DFID,26/10/2016,Project delivery costs – supplier services ,Asia  Caribbean and Overseas Territories ,BONDS TRAVEL BUREAU ,204619-101 ,"12,729.06",
DFID,DFID,03/10/2016,Training - Travel & Subsistence ,Asia  Caribbean and Overseas Territories ,BONDS TRAVEL BUREAU ,101624-101 ,747.80,
DFID,DFID,03/10/2016,Air fares ,Asia  Caribbean and Overseas Territories ,BONDS TRAVEL BUREAU ,101624-101 ,753.44,
DFID,DFID,19/10/2016,Data Network - land lines ,Business Solutions Division Level ,NAYATEL (PVT) LTD ,200002-121 ,735.65,
DFID,DFID,19/10/2016,Data Network - land lines ,Business Solutions Division Level ,NAYATEL (PVT) LTD ,203329-102 ,735.65,
DFID,DFID,03/10/2016,Training - Travel & Subsistence ,Asia  Caribbean and Overseas Territories ,OMAR TRAVELS ,202495-112 ,656.55,
DFID,DFID,05/10/2016,Training - Travel & Subsistence ,Asia  Caribbean and Overseas Territories ,OMAR TRAVELS ,101624-101 ,696.00,
DFID,DFID,18/10/2016,Training - Travel & Subsistence ,Asia  Caribbean and Overseas Territories ,OMAR TRAVELS ,101624-101 ,687.00,
DFID,DFID,26/10/2016,Training - Travel & Subsistence ,Asia  Caribbean and Overseas Territories ,OMAR TRAVELS ,101624-101 ,746.13,
DFID,DFID,05/10/2016,Air fares ,Asia  Caribbean and Overseas Territories ,OMAR TRAVELS ,101624-101 ,"2,076.82",
DFID,DFID,02/10/2016,Hotels - Accommodation only ,Asia  Caribbean and Overseas Territories ,Supplier Name withheld ,101624-101 ,761.61,
DFID,DFID,11/10/2016,Hotels - Accommodation only ,Asia  Caribbean and Overseas Territories ,Supplier Name withheld ,101624-101 ,501.94,
DFID,DFID,19/10/2016,Hotels - Accommodation only ,Asia  Caribbean and Overseas Territories ,Supplier Name withheld ,101624-101 ,722.88,
DFID,DFID,27/10/2016,Aid Programme - Accountable Grant Payments ,Research and Evidence Division ,Practical Action (GBP) ,204343-104 ,"49,556.85",
DFID,DFID,27/10/2016,Aid Programme - Accountable Grant Payments ,Research and Evidence Division ,Practical Action (GBP) ,204343-106 ,"1,248.15",
DFID,DFID,03/10/2016,Aid Programme - Voluntary contributions ,Policy Division ,Access to Medicine Foundation ,204689-101 ,"1,000,000.00",
DFID,DFID,14/10/2016,Hostile Environment Training ,East and Central Africa ,UNDP Somalia ,101630-102 ,"1,394.55",
DFID,DFID,11/10/2016,Project delivery costs � supplier services,West and Southern Africa ,La Palm Royal Beach Hotel (Ghana) ,202455-104 ,793.66,
DFID,DFID,11/10/2016,Project delivery costs � supplier services,West and Southern Africa ,La Palm Royal Beach Hotel (Ghana) ,202455-104 ,795.49,
DFID,DFID,11/10/2016,Project delivery costs � supplier services,West and Southern Africa ,La Palm Royal Beach Hotel (Ghana) ,202455-104 ,745.27,
DFID,DFID,11/10/2016,Project delivery costs � supplier services,West and Southern Africa ,La Palm Royal Beach Hotel (Ghana) ,202455-104 ,745.27,
DFID,DFID,24/10/2016,Aid Programme - Core contributions ,Economic Development Division ,World Economic Forum ,204249-101 ,"190,944.63",
DFID,DFID,12/10/2016,Aid Programme - Trust Funds contributions ,Economic Development Division ,World Economic Forum ,204713-102 ,"350,000.00",
DFID,DFID,24/10/2016,Aid Programme - Joint programme contribution ,West and Southern Africa ,Ministry of Foreign Affairs of the Republic of Finland ,202536-102 ,"4,000,000.00",
DFID,DFID,20/10/2016,Further Education costs,Group Operations ,QA Limited ,204284-101 ,"3,901.50",
DFID,DFID,03/10/2016,Project delivery costs – supplier services ,West and Southern Africa ,Futures Group Europe ,202819-102 ,"596,676.71",
DFID,DFID,18/10/2016,Project delivery costs – supplier services ,West and Southern Africa ,Futures Group Europe ,202819-102 ,"327,022.81",
DFID,DFID,06/10/2016,Project delivery costs – supplier services ,West and Southern Africa ,Futures Group Europe ,202992-101 ,"1,114,804.00",
DFID,DFID,31/10/2016,Project delivery costs – supplier services ,Asia  Caribbean and Overseas Territories ,Futures Group Europe ,202488-105 ,"336,648.62",
DFID,DFID,09/10/2016,Project delivery costs – supplier services ,East and Central Africa ,Futures Group Europe ,202547-102 ,"738,379.26",
DFID,DFID,19/10/2016,Aid Programme - Voluntary contributions ,Research and Evidence Division ,International Monetary Fund (GBP) ,204933-101 ,"607,345.00",
DFID,DFID,24/10/2016,Aid Programme - Voluntary contributions ,Asia  Caribbean and Overseas Territories ,International Monetary Fund (GBP) ,205047-101 ,"2,000,000.00",
DFID,DFID,28/10/2016,Recruitment costs ,Human Resources ,HM REVENUE AND CUSTOMS Acc ,100269-163 ,"4,800.00",
DFID,DFID,18/10/2016,Aid Programme - Accountable Grant Payments ,West and Southern Africa ,Basel Institute On Governance ,205173-101 ,"103,435.00",
DFID,DFID,07/10/2016,Aid Programme - Accountable Grant Payments ,East and Central Africa ,Basel Institute On Governance ,204437-107 ,"51,365.52",
DFID,DFID,05/10/2016,Aid Programme - Trust Funds contributions ,West and Southern Africa ,Basel Institute On Governance ,200469-117 ,"97,868.90",
DFID,DFID,11/10/2016,Project delivery costs – supplier services ,East and Central Africa ,Montrose International ,200250-111 ,"47,806.98",
DFID,DFID,10/10/2016,Project delivery costs – supplier services ,East and Central Africa ,Montrose International ,203308-108 ,"706,808.40",
DFID,DFID,10/10/2016,Project delivery costs – supplier services ,East and Central Africa ,Perspectives GmbH ,202597-104 ,"28,608.76",
DFID,DFID,05/10/2016,Aid Programme - Accountable Grant Payments ,West and Southern Africa ,Farmers Union of Malawi ,202524-117 ,"25,850.58",
DFID,DFID,20/10/2016,Aid Programme - Joint programme contribution ,Asia  Caribbean and Overseas Territories ,DFID-GIZ Risk Management Office  Kathmandu ,204293-101 ,"48,000.00",
DFID,DFID,19/10/2016,Air fares ,East and Central Africa ,Bon Voyage Travel Centre Ltd(USD) ,101625-102 ,"1,027.12",
DFID,DFID,12/10/2016,Project delivery costs – supplier services ,East and Central Africa ,Bon Voyage Travel Centre Ltd(USD) ,202770-101 ,"3,472.67",
DFID,DFID,10/10/2016,Project delivery costs – supplier services ,East and Central Africa ,Bon Voyage Travel Centre Ltd(USD) ,202770-101 ,"4,233.13",
DFID,DFID,31/10/2016,Air fares ,East and Central Africa ,Bon Voyage Travel Centre Ltd(USD) ,101634-101 ,923.71,
DFID,DFID,25/10/2016,Air fares ,East and Central Africa ,Bon Voyage Travel Centre Ltd(USD) ,101634-101 ,950.92,
DFID,DFID,18/10/2016,Air fares ,East and Central Africa ,Bon Voyage Travel Centre Ltd(USD) ,101634-101 ,"1,119.63",
DFID,DFID,10/10/2016,Hotels - Accommodation only ,East and Central Africa ,Bon Voyage Travel Centre Ltd(USD) ,101634-101 ,"1,213.83",
DFID,DFID,10/10/2016,Air fares ,East and Central Africa ,Bon Voyage Travel Centre Ltd(USD) ,101634-101 ,840.03,
DFID,DFID,19/10/2016,Air fares ,East and Central Africa ,Bon Voyage Travel Centre Ltd(USD) ,101634-101 ,721.90,
DFID,DFID,11/10/2016,Air fares ,East and Central Africa ,Bon Voyage Travel Centre Ltd(Tsh) ,101634-101 ,555.49,
DFID,DFID,27/10/2016,Air fares ,East and Central Africa ,Bon Voyage Travel Centre Ltd(Tsh) ,101634-101 ,620.36,
DFID,DFID,10/10/2016,Project delivery costs – supplier services ,East and Central Africa ,Bon Voyage Travel Centre Ltd(Tsh) ,205144-103 ,"1,010.98",
DFID,DFID,11/10/2016,Research and development costs - supplier services ,Research and Evidence Division ,Tim Leyland ,204823-102 ,"6,432.75",
DFID,DFID,12/10/2016,Research and development costs - supplier services ,Research and Evidence Division ,Tim Leyland ,204823-102 ,"1,396.51",
DFID,DFID,04/10/2016,Aid Programme - Accountable Grant Payments ,East and Central Africa ,International Institute for Environment and Development (IIED) ,203574-114 ,"70,636.00",
DFID,DFID,04/10/2016,Aid Programme - Accountable Grant Payments ,East and Central Africa ,International Institute for Environment and Development (IIED) ,203574-114 ,"240,011.00",
DFID,DFID,04/10/2016,Aid Programme - Accountable Grant Payments ,East and Central Africa ,International Institute for Environment and Development (IIED) ,203574-110 ,"113,881.00",
DFID,DFID,04/10/2016,Aid Programme - Accountable Grant Payments ,East and Central Africa ,International Institute for Environment and Development (IIED) ,203574-110 ,"155,842.00",
DFID,DFID,24/10/2016,Training - Course Fees ,West and Southern Africa ,Purple Griffon Limited ,100152-117 ,"3,940.00",
DFID,DFID,18/10/2016,Project delivery costs – supplier services ,Asia  Caribbean and Overseas Territories ,Landell Mills Ltd ,202787-102 ,"80,139.54",
DFID,DFID,11/10/2016,Aid Programme - Programme Contribution ,Research and Evidence Division ,USAID Washington ,203486-104 ,"1,563,910.00",
DFID,DFID,10/10/2016,Aid Programme - Core contributions ,Research and Evidence Division ,Program for Appropriate Technology in Health ,202045-102 ,"326,800.00",
DFID,DFID,31/10/2016,Aid Programme - Core contributions ,Economic Development Division ,SG HAMBROS BANK & TRUST LTD (USD) ,203232-101 ,"971,955.00",
DFID,DFID,26/10/2016,Encashment of Promissory Notes ,Policy Division ,International Bank for Reconstruction and Development-Climate Investment Fund ,200368-101 ,"3,142,000.00",
DFID,DFID,31/10/2016,Encashment of Promissory Notes ,Global Funds ,Global Fund to Fight Aids  Tuberculosis and Malaria ,204389-101 ,"415,000,000.00",
DFID,DFID,13/10/2016,Encashment of Promissory Notes ,Economic Development Division ,International Development Association,204002-102 ,"109,745,000.00",
DFID,DFID,13/10/2016,Encashment of Promissory Notes ,Economic Development Division ,International Development Association,202969-106 ,"59,662,500.00",
DFID,DFID,04/10/2016,Encashment of Promissory Notes ,Economic Development Division ,Asian Development Fund ,200614-104 ,"3,161,000.00",
DFID,DFID,26/10/2016,Encashment of Promissory Notes ,Economic Development Division ,Asian Development Fund ,203547-102 ,"8,300,000.00",
DFID,DFID,09/10/2016,Encashment of Promissory Notes ,Policy Division ,International Bank for Reconstruction and Development - Global Environment Fund ,202216-104 ,"2,100,000.00",
DFID,DFID,09/10/2016,Encashment of Promissory Notes ,Policy Division ,International Bank for Reconstruction and Development - Global Environment Fund ,202216-105 ,"3,150,000.00",
DFID,DFID,09/10/2016,Encashment of Promissory Notes ,Policy Division ,International Bank for Reconstruction and Development - Global Environment Fund ,204056-101 ,"2,100,000.00",
DFID,DFID,09/10/2016,Encashment of Promissory Notes ,Policy Division ,International Bank for Reconstruction and Development - Global Environment Fund ,204056-102 ,"3,150,000.00",
DFID,DFID,19/10/2016,Vehicle Purchase Costs ,Policy Division ,Nile Insurance Company S.C Megenagna Branch  ,203148-102 ,679.84,
DFID,DFID,12/10/2016,Aid Programme - Accountable Grant Payments ,East and Central Africa ,Supplier Name withheld ,205032-106 ,"250,000.00",
DFID,DFID,04/10/2016,Aid Programme - Accountable Grant Payments ,East and Central Africa ,Supplier Name withheld ,300280-104 ,"1,000,000.00",
DFID,DFID,13/10/2016,Project delivery costs – supplier services ,Asia  Caribbean and Overseas Territories ,SIDBI MUMBAI ,114293-103 ,"56,516.72",
DFID,DFID,13/10/2016,Project delivery costs – supplier services ,Asia  Caribbean and Overseas Territories ,SIDBI MUMBAI ,114293-103 ,"115,047.39",
DFID,DFID,21/10/2016,Project delivery costs – supplier services ,Asia  Caribbean and Overseas Territories ,SIDBI MUMBAI ,114293-103 ,"180,814.26",
DFID,DFID,25/10/2016,Project delivery costs – supplier services ,Asia  Caribbean and Overseas Territories ,SIDBI MUMBAI ,114293-103 ,"89,766.06",
DFID,DFID,25/10/2016,Project delivery costs – supplier services ,Asia  Caribbean and Overseas Territories ,SIDBI MUMBAI ,114293-103 ,"44,757.01",
DFID,DFID,13/10/2016,Hotels - Accommodation only ,East and Central Africa ,DOUBLE TREE by Hilton ,101634-101 ,966.32,
DFID,DFID,18/10/2016,Research and development costs - supplier services ,Research and Evidence Division ,Humanitarian Outcomes Limited ,203704-115 ,"106,191.00",
DFID,DFID,21/10/2016,Aid Programme - Accountable Grant Payments ,Research and Evidence Division ,MASSACHUSETTS INSTITUTE OF TECHNOLOGY ,204291-102 ,"63,892.00",
DFID,DFID,20/10/2016,Hotels - Accommodation only ,East and Central Africa ,Doubletree by Hilton Dar es Salaam ,101634-101 ,"1,937.55",
DFID,DFID,11/10/2016,Aid Programme - Accountable Grant Payments ,Research and Evidence Division ,Clinton Health Access Initiative ,205105-102 ,"189,620.00",
DFID,DFID,18/10/2016,Aid Programme - Partnership Programme Arrangements ,Policy Division ,The Asia Foundation (GBP) ,202703-101 ,"611,257.50",
DFID,DFID,18/10/2016,Aid Programme - Partnership Programme Arrangements ,Policy Division ,The Asia Foundation (GBP) ,202703-101 ,"611,258.00",
DFID,DFID,20/10/2016,Project delivery costs – supplier services ,Asia  Caribbean and Overseas Territories ,Pricewaterhousecoopers Pvt. Ltd. ,202765-111 ,"8,476.70",
DFID,DFID,18/10/2016,Air fares ,West and Southern Africa ,Supplier Name withheld ,101622-105 ,"3,995.90",
DFID,DFID,25/10/2016,Aid Programme - Accountable Grant Payments ,Asia  Caribbean and Overseas Territories ,OBSERVER RESEARCH FOUNDATION ,202765-105 ,"40,139.55",
DFID,DFID,19/10/2016,Aid Programme - Accountable Grant Payments ,West and Southern Africa ,POLICY AND LEGAL ADVOCACY CENTRE ,203851-117 ,"378,199.48",
DFID,DFID,20/10/2016,Aid Programme - Voluntary contributions ,International Relations Division ,OECD ,205030-101 ,"666,121.18",
DFID,DFID,18/10/2016,Aid Programme - Partnership Programme Arrangements ,Policy Division ,Supplier Name withheld ,202688-101 ,"635,786.75",
DFID,DFID,07/10/2016,Aid Programme - Refugee Relief Payments ,East and Central Africa ,Supplier Name withheld ,203462-102 ,"1,900,000.00",
DFID,DFID,07/10/2016,Aid Programme - Accountable Grant Payments ,East and Central Africa ,Supplier Name withheld ,203462-102 ,"1,500,000.00",
DFID,DFID,03/10/2016,Aid Programme - Accountable Grant Payments ,East and Central Africa ,Supplier Name withheld ,205116-109 ,"120,000.00",
DFID,DFID,03/10/2016,Training - Travel & Subsistence ,Asia  Caribbean and Overseas Territories ,Gerry's Travel Agency Private Limited ,101624-101 ,930.75,
DFID,DFID,04/10/2016,Training - Travel & Subsistence ,Asia  Caribbean and Overseas Territories ,Gerry's Travel Agency Private Limited ,101624-101 ,"1,129.44",
DFID,DFID,04/10/2016,Aid Programme - Accountable Grant Payments ,East and Central Africa ,Supplier Name withheld ,203928-103 ,"172,966.36",
DFID,DFID,21/10/2016,Aid Programme - Trust Funds contributions ,East and Central Africa ,THE WORLD BANK ,204246-102 ,"75,000.00",
DFID,DFID,25/10/2016,Project delivery costs – supplier services ,East and Central Africa ,Kaleb Hotel ,204957-102 ,"2,113.41",
DFID,DFID,04/10/2016,Project delivery costs – supplier services ,Policy Division ,iMEDIA ASSOCIATES LTD ,202629-102 ,"2,951.63",
DFID,DFID,27/10/2016,Aid Programme - Accountable Grant Payments ,East and Central Africa ,AgDevCo ,204270-108 ,"51,934.40",
DFID,DFID,27/10/2016,Aid Programme - Accountable Grant Payments ,East and Central Africa ,AgDevCo ,204270-118 ,"77,901.60",
